Workbook

Sheet Identification
F1: English | O1: Français
B2: =IF(Eng_Fren=1,F2,O2) -> USE THIS PAGE TO IDENTIFY YOUR DIVISION / DISTRICT | F2: USE THIS PAGE TO IDENTIFY YOUR DIVISION / DISTRICT | O2: UTILISER CETTE PAGE POUR INSCRIRE LE NOM DE VOTRE DIVISION SCOLAIRE
B4: =IF(Eng_Fren=1,F4,O4) -> To begin: press the down arrow button and select your Division or District then language. | F4: To begin: press the down arrow button and select your Division or District then language. | O4: Pour commencer, cliquer sur la flèche descendante et sélectionner la division scolaire, puis la langue.
B8: =IF(Eng_Fren=1,F8,O8) -> This will insert your division/district's name at the top of pages for identification. | F8: This will insert your division/district's name at the top of pages for identification. | O8: Cette action inscrira le nom de la division scolaire en haut de chaque page aux fins d'identification.
B11: =IF(Eng_Fren=1,F11,O11) -> When entering amounts on these schedules, do not enter the cents. Round amounts to the nearest dollar. | F11: When entering amounts on these schedules, do not enter the cents. Round amounts to the nearest dollar. | O11: Lors de l'inscription des montants dans les tableaux de ce document, ne pas indiquer les cents. Arrondir au dollar près.
B14: =IF(Eng_Fren=1,F14,O14) -> First Select the paper size then print. (In order to use the buttons you have to enable the macros). | F14: First Select the paper size then print. (In order to use the buttons you have to enable the macros). | O14: Sélectionner le format du papier avant d'imprimer. (Pour utiliser les boutons, il faut activer les macros.)
R17: Grand format
B18: =IF(Eng_Fren=1,F18,O18) -> Select Paper Size | F18: Select Paper Size | O18: Sélectionner le format du papier
R19: Format lettre
C20: =IF(Eng_Fren=1,F20,O20) -> Print All | F20: Print All | O20: Tout imprimer

Sheet CONS Fin Pos
B1: =DIVNAME ->  | H1: =IF(DATE=0,"",DATE) -> 2022-04-27T11:41:17.460
B2: =IF(Eng_Fren=1,"CONSOLIDATED STATEMENT OF FINANCIAL POSITION","ÉTAT CONSOLIDÉ DE LA SITUATION FINANCIÈRE") -> CONSOLIDATED STATEMENT OF FINANCIAL POSITION
B3: =ASAT -> as at March 31, 2022
F5: =YEAR -> 2022 | H5: =YEAR_LY -> 2021
B6: =IF(Eng_Fren=1,K6,N6) -> Financial Assets | K6: Financial Assets | N6: Actif
C7: =IF(Eng_Fren=1,K7,N7) -> Cash and Bank | F7: =IF(OP_CASH+CAP_CASH+SPF_CASH>OP_ODRAFT+CAP_ODRAFT,(OP_CASH+CAP_CASH+SPF_CASH)-(OP_ODRAFT+CAP_ODRAFT),0) -> 0 | H7: =IF(OP_CASHPR+CAP_CASHPR+SPF_CASHPR>OP_ODRAFTPR+CAP_ODRAFTPR,(OP_CASHPR+CAP_CASHPR+SPF_CASHPR)-(OP_ODRAFTPR+CAP_ODRAFTPR),0) -> 0 | K7: Cash and Bank | N7: Encaisse et fonds en banque
C8: =IF(Eng_Fren=1,K8,N8) -> Due from | D8: =IF(Eng_Fren=1,L8,O8) -> - Provincial Government | F8: =OP_ARPROV+CAP_ARPROV -> 0 | H8: =OP_ARPROVPR+CAP_ARPROVPR -> 0 | K8: Due from | L8: - Provincial Government | N8: Sommes recevables | O8: - au gouv. du Manitoba
D9: =IF(Eng_Fren=1,L9,O9) -> - Federal Government | F9: =OP_ARFED+CAP_ARFED+OTHFUNDGST -> 0 | H9: =OP_ARFEDPR+CAP_ARFEDPR+OTHFUNDGSTPR -> 0 | L9: - Federal Government | O9: - au gouv. fédéral
D10: =IF(Eng_Fren=1,L10,O10) -> - Municipal Government | F10: =OP_ARMUN+CAP_ARMUN -> 0 | H10: =OP_ARMUNPR+CAP_ARMUNPR -> 0 | L10: - Municipal Government | O10: - à l'admin. municipale
D11: =IF(Eng_Fren=1,L11,O11) -> - Other School Divisions | F11: =OP_AROSD -> 0 | H11: =OP_AROSDPR -> 0 | L11: - Other School Divisions | O11: - à d'autres divisions scol.
D12: =IF(Eng_Fren=1,L12,O12) -> - First Nations | F12: =OP_ARFNATION+CAP_ARFNATION -> 0 | H12: =OP_ARFNATIONPR+CAP_ARFNATIONPR -> 0 | L12: - First Nations | O12: - aux Premières nations
C13: =IF(Eng_Fren=1,K13,N13) -> Accounts Receivable | F13: =OP_AR+CAP_AR -> 0 | H13: =OP_ARPR+CAP_ARPR -> 0 | K13: Accounts Receivable | N13: Comptes clients
C14: =IF(Eng_Fren=1,K14,N14) -> Accrued Investment Income | F14: =OP_AIR+CAP_AIR+SPF_AIR -> 0 | H14: =OP_AIRPR+CAP_AIRPR+SPF_AIRPR -> 0 | K14: Accrued Investment Income | N14: Revenu de placements à recevoir
C15: =IF(Eng_Fren=1,K15,N15) -> Portfolio Investments | F15: =SPF_OTHINVEST+OP_STI+CAP_STI -> 0 | H15: =SPF_OTHINVESTPR+OP_STIPR+CAP_STIPR -> 0 | K15: Portfolio Investments | N15: Placements de portefeuille
F16: =SUM(F7:F15) -> 0 | H16: =SUM(H7:H15) -> 0
B17: =IF(Eng_Fren=1,K17,N17) -> Liabilities | K17: Liabilities | N17: Passif
C18: =IF(Eng_Fren=1,K18,N18) -> Overdraft | F18: =IF(OP_ODRAFT+CAP_ODRAFT>OP_CASH+CAP_CASH+SPF_CASH,(OP_ODRAFT+CAP_ODRAFT)-(OP_CASH+CAP_CASH+SPF_CASH),0) -> 0 | H18: =IF(OP_ODRAFTPR+CAP_ODRAFTPR>OP_CASHPR+CAP_CASHPR+SPF_CASHPR,(OP_ODRAFTPR+CAP_ODRAFTPR)-(OP_CASHPR+CAP_CASHPR+SPF_CASHPR),0) -> 0 | K18: Overdraft | N18: Découverts
C19: Accounts Payable | F19: =OP_AP+CAP_AP+SPF_AP -> 0 | H19: =OP_APPR+CAP_APPR+SPF_APPR -> 0 | K19: Accounts Payable | N19: Comptes fournisseurs
C20: Accrued Liabilities | F20: =OP_ACCLIAB+CAP_ACCLIAB+SPF_ACCLIAB -> 0 | H20: =OP_ACCLIABPR+CAP_ACCLIABPR+SPF_ACCLIABPR -> 0 | K20: Accrued Liabilities | N20: Charges à payer
C21: Employee Future Benefits | F21: =OP_EMPFUTBEN -> 0 | H21: =OP_EMPFUTBENPR -> 0 | K21: Employee Future Benefits | N21: Avantages sociaux à venir
C22: Accrued Interest Payable | F22: =OP_AIP+CAP_AIP -> 0 | H22: =OP_AIPPR+CAP_AIPPR -> 0 | K22: Accrued Interest Payable | N22: Intérêts courus à payer
C23: Due to | D23: =IF(Eng_Fren=1,L23,O23) -> - Provincial Government | F23: =OP_APPROV+CAP_APPROV -> 0 | H23: =OP_APPROVPR+CAP_APPROVPR -> 0 | K23: Due to | L23: - Provincial Government | N23: Sommes payables | O23: - au gouv. du Manitoba
D24: =IF(Eng_Fren=1,L24,O24) -> - Federal Government | F24: =OP_APFED+CAP_APFED -> 0 | H24: =OP_APFEDPR+CAP_APFEDPR -> 0 | L24: - Federal Government | O24: - au gouv. fédéral
D25: =IF(Eng_Fren=1,L25,O25) -> - Municipal Government | F25: =OP_APMUN+CAP_APMUN -> 0 | H25: =OP_APMUNPR+CAP_APMUNPR -> 0 | L25: - Municipal Government | O25: - à l'admin. municipale
D26: =IF(Eng_Fren=1,L26,O26) -> - Other School Divisions | F26: =OP_APOSD -> 0 | H26: =OP_APOSDPR -> 0 | L26: - Other School Divisions | O26: - à d'autres divisions scol.
D27: =IF(Eng_Fren=1,L27,O27) -> - First Nations | F27: =OP_APFNATION+CAP_APFNATION -> 0 | H27: =OP_APFNATIONPR+CAP_APFNATIONPR -> 0 | L27: - First Nations | O27: - aux Premières nations
C28: =IF(Eng_Fren=1,K28,N28) -> Deferred Revenue | F28: =OP_DEFREV+CAP_DEFREV+SPF_DEFREV -> 0 | H28: =OP_DEFREVPR+CAP_DEFREVPR+SPF_DEFREVPR -> 0 | K28: Deferred Revenue | N28: Revenus reportés
C29: =IF(Eng_Fren=1,K29,N29) -> Borrowings from the Provincial Government | F29: =CAP_DEBDEBT -> 0 | H29: =CAP_DEBDEBTPR -> 0 | K29: Borrowings from the Provincial Government | N29: Emprunts contractés auprès du gouvernement provincial
C30: =IF(Eng_Fren=1,K30,N30) -> Other Borrowings | F30: =OP_OTHBORROW+CAP_OTHBORROW -> 0 | H30: =OP_OTHBORROWPR+CAP_OTHBORROWPR -> 0 | K30: Other Borrowings | N30: Autres emprunts
C31: =IF(Eng_Fren=1,K31,N31) -> School Generated Funds Liability | F31: =SPF_SGFLIAB -> 0 | H31: =SPF_SGFLIABPR -> 0 | K31: School Generated Funds Liability | N31: Passif des fonds générés par les écoles
F32: =SUM(F18:F31) -> 0 | H32: =SUM(H18:H31) -> 0
B33: =IF(Eng_Fren=1,K33,N33) -> Net Debt | F33: =F16-F32 -> 0 | H33: =H16-H32 -> 0 | K33: Net Debt | N33: Dette nette
B34: =IF(Eng_Fren=1,K34,N34) -> Non-Financial Assets | K34: Non-Financial Assets | N34: Actif non financier
C35: =IF(Eng_Fren=1,K35,N35) -> Net Tangible Capital Assets (TCA Schedule) | F35: =CAP_NETTCA -> 0 | H35: =CAP_NETTCAPR -> 0 | K35: Net Tangible Capital Assets (TCA Schedule) | N35: Immobilisations corporelles nettes (État des IC)
C36: =IF(Eng_Fren=1,K36,N36) -> Inventories | F36: =OP_INVENTORY -> 0 | H36: =OP_INVENTORYPR -> 0 | K36: Inventories | N36: Inventaires
C37: =IF(Eng_Fren=1,K37,N37) -> Prepaid Expenses | F37: =OP_PREPAID -> 0 | H37: =OP_PREPAIDPR -> 0 | K37: Prepaid Expenses | N37: Dépenses payées d'avance
F38: =SUM(F35:F37) -> 0 | H38: =SUM(H35:H37) -> 0
B39: =IF(Eng_Fren=1,K39,N39) -> Accumulated Surplus | F39: =SUM(F33,F38) -> 0 | H39: =SUM(H33,H38) -> 0 | K39: Accumulated Surplus | N39: Excédent accumulé
B43: <<<<<<<<<<<< ERROR MESSAGES >>>>>>>>>>>> | K43: <<<<<<<<<<<< ERROR MESSAGES >>>>>>>>>>>> | N43: <<<<<<<<<<<< ERROR MESSAGES >>>>>>>>>>>>
B45: =IF((OP_AROTHER+CAP_AROTHER)=(OP_APCAP+CAP_APOPFUND+SPF_APOTHER),"",TEXT(F5,"0")& " INTERFUNDS DO NOT BALANCE") ->  | E45: =IF(Identification!$A$33=0,"",H5& " INTERFUNDS DO NOT BALANCE") ->  | K45: INTERFUNDS DO NOT BALANCE
B47: =IF(CONSREV_CLOSESURP<>F39,TEXT(F5,"0")&" ACCUMULATED SURPLUS DOES NOT","") ->  | E47: =IF(Identification!$A$32=1,H5&" ACCUMULATED SURPLUS DOES NOT","") -> 
B48: =IF(CONSREV_CLOSESURP<>F39,"EQUAL CLOSING ACCUMULATED SURPLUS","") ->  | E48: =IF(Identification!$A$32=1,"EQUAL CLOSING ACCUMULATED SURPLUS","") -> 
B49: =IF(CONSREV_CLOSESURP<>F39,"FROM THE REVENUE AND EXPENSE STATEMENT","") ->  | E49: =IF(Identification!$A$32=1,"FROM THE REVENUE AND EXPENSE STATEMENT","") -> 
B50: =IF(CONSREV_CLOSESURP<>F39,"Out by:","") ->  | C50: =IF(CONSREV_CLOSESURP<>F39,CONSREV_CLOSESURP-F39,"") -> 
B51: =IF(F39<>(OP_ACCSURP+CAP_ACCSURP+SPF_ACCSURP),TEXT(F5,"0")&" ACCUMULATED SURPLUS DOES NOT EQUAL","") ->  | E51: =IF(Identification!$A$34=1,H5& " ACCUMULATED SURPLUS DOES NOT EQUAL","") -> 
B52: =IF(F39<>(OP_ACCSURP+CAP_ACCSURP+SPF_ACCSURP),"THE SUM OF THE ACCUMULATED SURPLUS","") ->  | E52: =IF(Identification!$A$34=1,"THE SUM OF THE ACCUMULATED SURPLUS","") -> 
B53: =IF(F39<>(OP_ACCSURP+CAP_ACCSURP+SPF_ACCSURP),"BALANCES FROM THE FUND ACCOUNTS","") ->  | E53: =IF(Identification!$A$34=1,"BALANCES FROM THE FUND ACCOUNTS","") -> 
B55: =IF(F35<>TCA_NETTCA,F5& " NET TANGIBLE CAPITAL ASSET BALANCE DOES","") ->  | E55: =IF(Identification!$A$34=1,H5&" NET TANGIBLE CAPITAL ASSET BALANCE DOES","") -> 
B56: =IF(F35<>TCA_NETTCA,"NOT EQUAL NET TANGIBLE CAPITAL ASSET BALANCE","") ->  | E56: =IF(Identification!$A$34=1,"NOT EQUAL NET TANGIBLE CAPITAL ASSET BALANCE","") -> 
B57: =IF(F35<>TCA_NETTCA,"FROM THE TANGIBLE CAPITAL ASSET SCHEDULE","") ->  | E57: =IF(Identification!$A$34=1,"FROM THE TANGIBLE CAPITAL ASSET SCHEDULE","") -> 

Sheet CONS Rev Exp
B1: =DIVNAME ->  | I1: =IF(DATE=0,"",DATE) -> 2022-04-27T11:41:17.460
B2: =IF(Eng_Fren=1,"CONSOLIDATED STATEMENT","ÉTAT CONSOLIDÉ") -> CONSOLIDATED STATEMENT
B3: =IF(Eng_Fren=1,"OF REVENUE, EXPENSES","DES RECETTES, DES DÉPENSES") -> OF REVENUE, EXPENSES
B4: =IF(Eng_Fren=1," AND ACCUMULATED SURPLUS"," ET DE L'EXCÉDENT ACCUMULÉ") -> AND ACCUMULATED SURPLUS
B5: =ForYr -> For the Year Ended March 31, 2022
G7: =YEAR -> 2022 | I7: =YEAR_LY -> 2021
B8: =IF(Eng_Fren=1,N8,P8) -> Revenue | N8: Revenue | P8: Recettes
C9: =IF(Eng_Fren=1,N9,P9) -> Provincial Government | G9: =OPREV_PROVTOTAL+CAPREV_PROVTOTAL -> 0 | I9: =OPREV_PROVTOTALPR+CAPREV_PROVTOTALPR -> 0 | N9: Provincial Government | P9: Gouvernement du Manitoba
C10: Federal Government | G10: =OPREV_FED+CAPREV_FED -> 0 | I10: =OPREV_FEDPR+CAPREV_FEDPR -> 0 | N10: Federal Government | P10: Gouvernement fédéral
C11: Municipal Government | G11: =OPREV_MUN+CAPREV_MUN -> 0 | I11: =OPREV_MUNPR+CAPREV_MUNPR -> 0 | N11: Municipal Government | P11: Administration municipale
C12: Other School Divisions | G12: =OPREV_OSD -> 0 | I12: =OPREV_OSDPR -> 0 | N12: Other School Divisions | P12: Autres divisions scolaires
C13: First Nations | G13: =OPREV_FNATION -> 0 | I13: =OPREV_FNATIONPR -> 0 | N13: First Nations | P13: Premières nations
C14: Private Organizations and Individuals | G14: =OPREV_POI -> 0 | I14: =OPREV_POIPR -> 0 | N14: Private Organizations and Individuals | P14: Organismes privés et particuliers
C15: Other Sources | G15: =OPREV_OTH+CAPREV_INVEST+CAPREV_DON+CAPREV_OTHER+CAPREV_ASSETDISP+GAINMODCLASS -> 0 | I15: =OPREV_OTHPR+CAPREV_INVESTPR+CAPREV_DONPR+CAPREV_OTHERPR+CAPREV_ASSETDISPPR+GAINMODCLASSPR -> 0 | N15: Other Sources | P15: Autres sources
C16: School Generated Funds | G16: =SPFREV_SGF -> 0 | I16: =SPFREV_SGFPR -> 0 | N16: School Generated Funds | P16: Fonds générés par les écoles
C17: Other Special Purpose Funds | G17: =SPFREV_OTHREV1+SPFREV_OTHREV2 -> 0 | I17: =SPFREV_OTHREV1PR+SPFREV_OTHREV2PR -> 0 | N17: Other Special Purpose Funds | P17: Autres fonds à fins spéciales
G18: =SUM(G9:G17) -> 0 | I18: =SUM(I9:I17) -> 0
B19: =IF(Eng_Fren=1,N19,P19) -> Expenses | N19: Expenses | P19: Dépenses
C20: =IF(Eng_Fren=1,O20,Q20) -> Salaries | G20: =OPEXP_300SAL -> 0 | I20: =OPEXP_300SALPR -> 0 | O20: Salaries | Q20: Salaires
C21: Employees Benefits and Allowances | G21: =OPEXP_400BEN -> 0 | I21: =OPEXP_400BENPR -> 0 | O21: Employees Benefits and Allowances | Q21: Avantages sociaux et indemnités des employés
C22: Services | G22: =SUM('OP Rev Exp'!J31:J45) -> 0 | I22: =SUM('OP Rev Exp'!L31:L45) -> 0 | O22: Services | Q22: Services
C23: Supplies, Materials and Minor Equipment | G23: =SUM('OP Rev Exp'!J46:J49) -> 0 | I23: =SUM('OP Rev Exp'!L46:L49) -> 0 | O23: Supplies, Materials and Minor Equipment | Q23: Fournitures, matériel et petit équipement
C24: Interest, Bank Charges and Bad Debt Expense | G24: =OPEXP_910+OPEXP_950+CAPEXP_DDI+CAPEXP_OTHERINT -> 0 | I24: =OPEXP_910PR+OPEXP_950PR+CAPEXP_DDIPR+CAPEXP_OTHERINTPR -> 0 | O24: Interest, Bank Charges and Bad Debt Expense | Q24: Intérêts et frais bancaires
C25: Transfers | G25: =SUM('OP Rev Exp'!J52:J54) -> 0 | I25: =SUM('OP Rev Exp'!L52:L54) -> 0 | O25: Transfers | Q25: Transferts
C26: Amortization | G26: =CAPEXP_AMORT -> 0 | I26: =CAPEXP_AMORTPR -> 0 | O26: Amortization | Q26: Amortissement
C27: Other Capital Items | G27: =CAPEXP_OTHER1+CAPEXP_OTHER2 -> 0 | I27: =CAPEXP_OTHER1PR+CAPEXP_OTHER2PR -> 0 | O27: Other Capital Items | Q27: Autres dépenses de capital
C28: School Generated Funds | G28: =SPFEXP_SGF -> 0 | I28: =SPFEXP_SGFPR -> 0 | O28: School Generated Funds | Q28: Fonds générés par les écoles
C29: Other Special Purpose Funds | G29: =SPFEXP_OTHEXP1+SPFEXP_OTHEXP2 -> 0 | I29: =SPFEXP_OTHEXP1PR+SPFEXP_OTHEXP2PR -> 0 | O29: Other Special Purpose Funds | Q29: Autres fonds à fins spéciales
G30: =SUM(G20:G29) -> 0 | I30: =SUM(I20:I29) -> 0
B31: =IF(Eng_Fren=1,N31,P31) -> Current Year Surplus (Deficit) before Non-vested Sick Leave | G31: =CONSREV_TOTAL-CONSEXP_TOTAL -> 0 | I31: =CONSREV_TOTALPR-CONSEXP_TOTALPR -> 0 | N31: Current Year Surplus (Deficit) before Non-vested Sick Leave | P31: Excédent (Déficit) de l'exercice en cours
B32: Less: Non-vested Sick Leave Expense (Recovery) | G32: =+'OP Rev Exp'!J57 -> 0 | I32: =+'OP Rev Exp'!L57 -> 0 | N32: Less: Non-vested Sick Leave Expense (Recovery) | P32: Moins : Congé de maladie en surplus (Recouvrement)
B33: Net Current Year Surplus (Deficit) | G33: =+CONSREV_CURSURP-G32 -> 0 | I33: =+CONSREV_CURSURPPR-I32 -> 0 | N33: Net Current Year Surplus (Deficit) | P33: Excédent (Déficit) net de l'exercice en cours
B34: Opening Accumulated Surplus | G34: =OPREV_OPENSURP+CAPREV_OPENSURP+SPFREV_OPENSURP -> 0 | I34: =OPREV_OPENSURPPR+CAPREV_OPENSURPPR+SPFREV_OPENSURPPR -> 0 | N34: Opening Accumulated Surplus | P34: Excédent accumulé d'ouverture
B35: Adjustments to Opening Accumulated Surplus | G35: =OPREV_EQUADJ1+OPREV_EQUADJ2+CAPREV_EQUADJ1+CAPREV_EQUADJ2+SPFREV_EQUADJ1+SPFREV_EQUADJ2 -> 0 | I35: =OPREV_EQUADJ1PR+OPREV_EQUADJ2PR+CAPREV_EQUADJ1PR+CAPREV_EQUADJ2PR+SPFREV_EQUADJ1PR+SPFREV_EQUADJ2PR -> 0 | N35: Adjustments to Opening Accumulated Surplus | P35: Redressements à l'excédent accumulé d'ouverture
B36: Opening Accumulated Surplus, as restated | G36: =CONSREV_OPENSURP+CONSREV_EQUADJ -> 0 | I36: =CONSREV_OPENSURPPR+CONSREV_EQUADJPR -> 0 | N36: Opening Accumulated Surplus, as restated | P36: Excédent accumulé d'ouverture, réévalué
B37: Closing Accumulated Surplus | G37: =+G33+CONSREV_OPENSURPREST -> 0 | I37: =+I33+CONSREV_OPENSURPRESTPR -> 0 | N37: Closing Accumulated Surplus | P37: Excédent accumulé de clôture
B40: <<<<<<<<<<<< ERROR MESSAGES >>>>>>>>>>>>
B42: =IF(Identification!$A$38=1,G7&" OPENING ACCUMULATED SURPLUS BALANCE DOES NOT","") -> 
B43: =IF(Identification!$A$38=1,"EQUAL " &I7&" CLOSING ACCUMULATED SURPLUS BALANCE","") -> 
B45: =IF(Identification!$A$39=1,G7& " ACCUMULATED SURPLUS DOES NOT EQUAL","") -> 
B46: =IF(Identification!$A$39=1,"THE SUM OF THE ACCUMULATED SURPLUS","") -> 
B47: =IF(Identification!$A$39=1,"BALANCES FROM THE FUND ACCOUNTS","") -> 

Sheet OP Fin Pos
B1: =DIVNAME ->  | H1: =IF(DATE=0,"",DATE) -> 2022-04-27T11:41:17.460
B2: =IF(Eng_Fren=1,L2,O2) -> OPERATING FUND | L2: OPERATING FUND | O2: FONDS DE FONCTIONNEMENT
B3: =IF(Eng_Fren=1,L3,O3) -> STATEMENT OF FINANCIAL POSITION | L3: STATEMENT OF FINANCIAL POSITION | O3: ÉTAT DE LA SITUATION FINANCIÈRE
B4: =ASAT -> as at March 31, 2022
F6: =YEAR -> 2022 | H6: =YEAR_LY -> 2021
B7: =IF(Eng_Fren=1,K7,O7) -> Financial Assets | K7: Financial Assets | O7: Actif
C8: =IF(Eng_Fren=1,L8,O8) -> Cash and Bank | F8: 0 | H8: =Code!I144 -> 0 | L8: Cash and Bank | O8: Encaisse et fonds en banque
C9: =IF(Eng_Fren=1,L9,O9) -> Due from | D9: =IF(Eng_Fren=1,M9,P9) -> - Provincial Government | F9: 0 | H9: =Code!I145 -> 0 | L9: Due from | M9: - Provincial Government | O9: Sommes recevables | P9: - du gouvernement du Manitoba
D10: - Federal Government | F10: 0 | H10: =Code!I146 -> 0 | M10: - Federal Government | P10: - du gouvernement fédéral
D11: - Municipal Government | F11: 0 | H11: =Code!I147 -> 0 | M11: - Municipal Government | P11: - de l'administration municipale
D12: - Other School Divisions | F12: 0 | H12: =Code!I148 -> 0 | M12: - Other School Divisions | P12: - d'autres divisions scolaires
D13: - First Nations | F13: 0 | H13: =Code!I149 -> 0 | M13: - First Nations | P13: - des Premières Nations
D14: - Capital and Special Purpose Fund | F14: 0 | H14: =Code!I150 -> 0 | M14: - Capital and Special Purpose Fund | P14: - du fonds de cap. et d'empr. et du fonds à des fins spéc.
C15: =IF(Eng_Fren=1,L15,O15) -> Accounts Receivable | F15: 0 | H15: =Code!I151 -> 0 | L15: Accounts Receivable | O15: Comptes clients
C16: =IF(Eng_Fren=1,L16,O16) -> Accrued Investment Income | F16: 0 | H16: =Code!I152 -> 0 | L16: Accrued Investment Income | O16: Revenu de placements à recevoir
C17: =IF(Eng_Fren=1,L17,O17) -> Portfolio Investments | F17: 0 | H17: =Code!I153 -> 0 | L17: Portfolio Investments | O17: Placements de portefeuille
F18: =SUM(F8:F17) -> 0 | H18: =SUM(H8:H17) -> 0
B19: =IF(Eng_Fren=1,K19,O19) -> Liabilities | K19: Liabilities | O19: Passif
C20: =IF(Eng_Fren=1,L20,O20) -> Overdraft | F20: 0 | H20: =Code!I156 -> 0 | L20: Overdraft | O20: Découverts
C21: Accounts Payable | F21: 0 | H21: =Code!I157 -> 0 | L21: Accounts Payable | O21: Comptes fournisseurs
C22: Accrued Liabilities | F22: 0 | H22: =Code!I158 -> 0 | L22: Accrued Liabilities | O22: Charges à payer
C23: Employee Future Benefits | F23: 0 | H23: =Code!I159 -> 0 | L23: Employee Future Benefits | O23: Avantages sociaux à venir
C24: Accrued Interest Payable | F24: 0 | H24: =Code!I160 -> 0 | L24: Accrued Interest Payable | O24: Intérêts courus à payer
C25: Due to | D25: =IF(Eng_Fren=1,M25,P25) -> - Provincial Government | F25: 0 | H25: =Code!I161 -> 0 | L25: Due to | M25: - Provincial Government | O25: Sommes payables | P25: - au gouvernement du Manitoba
D26: - Federal Government | F26: 0 | H26: =Code!I162 -> 0 | M26: - Federal Government | P26: - au gouvernement fédéral
D27: - Municipal Government | F27: 0 | H27: =Code!I163 -> 0 | M27: - Municipal Government | P27: - à l'administration municipale
D28: - Other School Divisions | F28: 0 | H28: =Code!I164 -> 0 | M28: - Other School Divisions | P28: - à d'autres divisions scolaires
D29: - First Nations | F29: 0 | H29: =Code!I165 -> 0 | M29: - First Nations | P29: - aux Premières Nations
D30: - Capital and Special Purpose Fund | F30: 0 | H30: =Code!I166 -> 0 | M30: - Capital and Special Purpose Fund | P30: - au fonds de cap. et d'empr. et au fonds à des fins spéc.
C31: =IF(Eng_Fren=1,L31,O31) -> Deferred Revenue | F31: 0 | H31: =Code!I167 -> 0 | L31: Deferred Revenue | O31: Revenus reportés
C32: =IF(Eng_Fren=1,L32,O32) -> Other Borrowings | F32: 0 | H32: =Code!I168 -> 0 | L32: Other Borrowings | O32: Autres emprunts
F33: =SUM(F20:F32) -> 0 | H33: =SUM(H20:H32) -> 0
B34: =IF(Eng_Fren=1,K34,O34) -> Net Financial Assets (Net Debt) | F34: =F18-F33 -> 0 | H34: =H18-H33 -> 0 | K34: Net Financial Assets (Net Debt) | O34: Actif (Passif) net
B35: =IF(Eng_Fren=1,K35,O35) -> Non-Financial Assets | K35: Non-Financial Assets | O35: Actif non financier
C36: =IF(Eng_Fren=1,L36,O36) -> Inventories | F36: 0 | H36: =Code!I172 -> 0 | L36: Inventories | O36: Inventaires
C37: =IF(Eng_Fren=1,L37,O37) -> Prepaid Expenses | F37: 0 | H37: =Code!I173 -> 0 | L37: Prepaid Expenses | O37: Dépenses payées d'avance
F38: =SUM(F36:F37) -> 0 | H38: =SUM(H36:H37) -> 0
B39: =IF(Eng_Fren=1,K39,O39) -> Accumulated Surplus (Deficit) | F39: =SUM(F34,F38) -> 0 | H39: =SUM(H34,H38) -> 0 | K39: Accumulated Surplus (Deficit) | O39: Excédent (Déficit) accumulé
B42: <<<<<<<<<<<< ERROR MESSAGES >>>>>>>>>>>> | L42: <<<<<<<<<<<< ERROR MESSAGES >>>>>>>>>>>> | O42: <<<<<<<<<<<< MESSAGES D'ERREUR >>>>>>>>>>>>
B44: =IF(OPREV_CLOSESURP<>F39,IF(Eng_Fren=1,L44,O44),"") ->  | E44: =IF(Identification!$A$42=1,H6&" ACCUMULATED SURPLUS DOES NOT","") ->  | L44: =TEXT(F6,"0")&" ACCUMULATED SURPLUS DOES NOT" -> 2022 ACCUMULATED SURPLUS DOES NOT | O44: ="'L'EXCÉDENT ACCUMULÉ DE "&TEXT(F6,"0")&" N'EST PAS" -> 'L'EXCÉDENT ACCUMULÉ DE 2022 N'EST PAS
B45: =IF(OPREV_CLOSESURP<>F39,IF(Eng_Fren=1,L45,O45),"") ->  | E45: =IF(Identification!$A$42=1,"EQUAL "& H6&" CLOSING ACCUMULATED SURPLUS","") ->  | L45: ="EQUAL "&TEXT(F6,"0")&" CLOSING ACCUMULATED SURPLUS" -> EQUAL 2022 CLOSING ACCUMULATED SURPLUS | O45: ÉGAL À L'EXCÉDENT ACCUMULÉ DE CLÔTURE DE
B46: =IF(OPREV_CLOSESURP<>F39,IF(Eng_Fren=1,L46,O46),"") ->  | E46: =IF(Identification!$A$42=1,"FROM THE REVENUE AND EXPENSE STATEMENT","") ->  | L46: FROM THE REVENUE AND EXPENSE STATEMENT | O46: ="'L'ÉTAT DES RECETTES ET DES DÉPENSES DE "&TEXT(F6,"0") -> 'L'ÉTAT DES RECETTES ET DES DÉPENSES DE 2022
B47: =IF(OPREV_CLOSESURP<>F39,IF(Eng_Fren=1,L47,O47),"") ->  | C47: =IF(OPREV_CLOSESURP<>F39,OPREV_CLOSESURP-F39,"") ->  | L47: Out by: | O47: Différence :

Sheet OP Rev Exp
B1: =DIVNAME ->  | L1: =IF(DATE=0,"",DATE) -> 2022-04-27T11:41:17.460
B2: =IF(Eng_Fren=1,"OPERATING FUND","FONDS D'ADMINISTRATION GÉNÉRALE") -> OPERATING FUND
B3: =IF(Eng_Fren=1,"SCHEDULE OF REVENUE, EXPENSES","ÉTAT DES RECETTES, DES DÉPENSES") -> SCHEDULE OF REVENUE, EXPENSES
B4: =IF(Eng_Fren=1," AND ACCUMULATED SURPLUS","ET DE L'EXCÉDENT ACCUMULÉ") -> AND ACCUMULATED SURPLUS
B5: =FOR -> For the Year Ended March 31, 2022
F7: ="April-June "&L7 -> April-June 2021 | H7: ="July-March "&J7 -> July-March 2022 | J7: =TEXT(YEAR,"0") -> 2022 | L7: =TEXT(YEAR_LY,"0") -> 2021 | O7: English | S7: French
B8: =IF(Eng_Fren=1,O8,S8) -> Revenue | O8: Revenue | S8: Recettes
C9: =IF(Eng_Fren=1,P9,T9) -> Provincial Government | P9: Provincial Government | T9: Gouvernement du Manitoba
C10: Department of Education | P10: Department of Education | T10: Ministère de l’Éducation
C11: Funding of Schools Program | F11: 0 | H11: 0 | J11: =F11+H11 -> 0 | L11: =Code!I192 -> 0 | P11: Funding of Schools Program | T11: Programme de financement des écoles
C12: Education Property Tax Credit | F12: 0 | H12: 0 | J12: =F12+H12 -> 0 | L12: =Code!I193 -> 0 | P12: Education Property Tax Credit | T12: Crédit d'impôt foncier en matière d'éducation
C13: Tax Incentive Grant | F13: 0 | H13: 0 | J13: 0 | L13: =Code!I194 -> 0 | P13: Tax Incentive Grant | T13: Incitatif fiscal
C14: Property Tax Offset Grant | F14: 0 | H14: 0 | J14: =F14+H14 -> 0 | L14: =Code!I195 -> 0 | P14: General Support Grant | T14: Subventions d'aide générale
C15: General Support Grant | F15: 0 | H15: 0 | J15: 0 | L15: =Code!I196 -> 0 | P15: General Support Grant | T15: Subventions d'aide générale
C16: Other Funding | F16: 0 | H16: 0 | J16: 0 | L16: =Code!I197 -> 0 | P16: Other Funding | T16: Autres sources
C17: All Other Provincial Government Departments (Core Gov't) | F17: 0 | H17: 0 | J17: 0 | L17: =Code!I198 -> 0 | P17: All Other Provincial Government Departments (Core Gov't) | T17: Autres ministères du gouvernement du Manitoba (opér. fond. du gouv.)
C18: Other Government Reporting Entities (except School Divisions) | F18: 0 | H18: 0 | J18: 0 | L18: =Code!I199 -> 0 | P18: Other Government Reporting Entities (except School Divisions) | T18: Reste du périmètre comptable du gouvernement (sauf les div. scol.)
C19: Total Provincial Government | F19: =SUM(F11:F18) -> 0 | H19: =SUM(H11:H18) -> 0 | J19: =SUM(J11:J18) -> 0 | L19: =SUM(L11:L18) -> 0 | P19: Total Provincial Government | T19: Total des recettes du gouvernement du Manitoba
C21: =IF(Eng_Fren=1,P21,T21) -> Federal Government | J21: =OPREVDET_TOTFED -> 0 | L21: =OPREVDET_TOTFEDPR -> 0 | P21: Federal Government | T21: Gouvernement fédéral
C22: Municipal Government | J22: =OPREVDET_TOTMUN -> 0 | L22: =OPREVDET_TOTMUNPR -> 0 | P22: Municipal Government | T22: Administration municipale
C23: Other School Divisions | J23: =OPREVDET_TOTOSD -> 0 | L23: =OPREVDET_TOTOSDPR -> 0 | P23: Other School Divisions | T23: Autres divisions scolaires
C24: First Nations | J24: =OPREVDET_TOTFN -> 0 | L24: =OPREVDET_TOTFNPR -> 0 | P24: First Nations | T24: Premières Nations
C25: Private Organizations & Individuals (incl GBE's) | J25: =OPREVDET_TOTPOI -> 0 | L25: =OPREVDET_TOTPOIPR -> 0 | P25: Private Organizations & Individuals (incl GBE's) | T25: Organismes privés et particuliers (y inclus les entreprises publiques)
C26: Other Sources | J26: =OPREVDET_TOTOTH -> 0 | L26: =OPREVDET_TOTOTHPR -> 0 | P26: Other Sources | T26: Autres sources
D27: =IF(Eng_Fren=1,Q27,U27) -> Total Revenue | J27: =SUM(J19:J26) -> 0 | L27: =SUM(L19:L26) -> 0 | Q27: Total Revenue | U27: Total des recettes
B28: =IF(Eng_Fren=1,O28,S28) -> Expenses | O28: Expenses | S28: Dépenses
C29: =IF(Eng_Fren=1,P29,T29) -> 300 Salaries | F29: 0 | H29: 0 | J29: =F29+H29 -> 0 | L29: =Code!I210 -> 0 | P29: 300 Salaries | T29: 300 Salaires
C30: 400 Employee Benefits And Allowances | F30: 0 | H30: 0 | J30: =F30+H30 -> 0 | L30: =Code!I211 -> 0 | P30: 400 Employee Benefits And Allowances | T30: 400 Avantages sociaux et indemnités des employés
C31: 510 Professional, Technical and Specialized | F31: 0 | H31: 0 | J31: 0 | L31: =Code!I212 -> 0 | P31: 510 Professional, Technical and Specialized | T31: 510 Services professionnels, techniques et spécialisés
C32: 520 Communications | F32: 0 | H32: 0 | J32: 0 | L32: =Code!I213 -> 0 | P32: 520 Communications | T32: 520 Communications
C33: 530 Utility Services | F33: 0 | H33: 0 | J33: 0 | L33: =Code!I214 -> 0 | P33: 530 Utility Services | T33: 530 Services publics
C34: 540 Travel and Meetings | F34: 0 | H34: 0 | J34: 0 | L34: =Code!I215 -> 0 | P34: 540 Travel and Meetings | T34: 540 Déplacements et réunions
C35: 550 Transportation of Pupils | F35: 0 | H35: 0 | J35: 0 | L35: =Code!I216 -> 0 | P35: 550 Transportation of Pupils | T35: 550 Transport des élèves
C36: 560 Tuition | F36: 0 | H36: 0 | J36: 0 | L36: =Code!I217 -> 0 | P36: 560 Tuition | T36: 560 Frais de scolarité
C37: 570 Printing and Binding | F37: 0 | H37: 0 | J37: 0 | L37: =Code!I218 -> 0 | P37: 570 Printing and Binding | T37: 570 Impression et reliure
C38: 580 Insurance and Bond Premiums | F38: 0 | H38: 0 | J38: 0 | L38: =Code!I219 -> 0 | P38: 580 Insurance and Bond Premiums | T38: 580 Primes d'assurance et d'émission d'obligations
C39: 590 Maintenance and Repair Services | F39: 0 | H39: 0 | J39: 0 | L39: =Code!I220 -> 0 | P39: 590 Maintenance and Repair Services | T39: 590 Services d'entretien et de réparation
C40: 610 Rentals | F40: 0 | H40: 0 | J40: 0 | L40: =Code!I221 -> 0 | P40: 610 Rentals | T40: 610 Locations
C41: 620 Property Taxes | F41: 0 | H41: 0 | J41: 0 | L41: =Code!I222 -> 0 | P41: 620 Property Taxes | T41: 620 Impôt foncier
C42: 630 Advertising | F42: 0 | H42: 0 | J42: 0 | L42: =Code!I223 -> 0 | P42: 630 Advertising | T42: 630 Publicité
C43: 640 Dues and Fees | F43: 0 | H43: 0 | J43: 0 | L43: =Code!I224 -> 0 | P43: 640 Dues and Fees | T43: 640 Cotisations et frais
C44: 650 Professional and Staff Development | F44: 0 | H44: 0 | J44: 0 | L44: =Code!I225 -> 0 | P44: 650 Professional and Staff Development | T44: 650 Perfectionnement professionnel et du personnel
C45: 680 Information Technology Services | F45: 0 | H45: 0 | J45: 0 | L45: =Code!I226 -> 0 | P45: 680 Information Technology Services | T45: 680 Services d'informatique
C46: 710 Supplies | F46: 0 | H46: 0 | J46: 0 | L46: =Code!I227 -> 0 | P46: 710 Supplies | T46: 710 Fournitures
C47: 740 Curricular and Media Materials | F47: 0 | H47: 0 | J47: 0 | L47: =Code!I228 -> 0 | P47: 740 Curricular and Media Materials | T47: 740 Matériels pédagogiques et médiatiques
C48: 760 Minor Equipment | F48: 0 | H48: 0 | J48: 0 | L48: =Code!I229 -> 0 | P48: 760 Minor Equipment | T48: 760 Petit équipement
C49: 780 Information Technology Equipment | F49: 0 | H49: 0 | J49: 0 | L49: =Code!I230 -> 0 | P49: 780 Information Technology Equipment | T49: 780 Matériel informatique
C50: 910 Loan Interest and Bank Charges | F50: 0 | H50: 0 | J50: 0 | L50: =Code!I231 -> 0 | P50: 910 Loan Interest and Bank Charges | T50: 910 Intérêts des emprunts et frais bancaires
C51: 950 Bad Debt Expense | F51: 0 | H51: 0 | J51: 0 | L51: =Code!I232 -> 0 | P51: 950 Bad Debt Expense | T51: 950 Créances douteuses
C52: 960 School Divisions | F52: 0 | H52: 0 | J52: 0 | L52: =Code!I233 -> 0 | P52: 960 School Divisions | T52: 960 Divisions scolaires
C53: 970 Payroll Tax | F53: 0 | H53: 0 | J53: 0 | L53: =Code!I234 -> 0 | P53: 970 Payroll Tax | T53: 970 Impôt sur la paye
C54: 980 Organizations, Individuals and Other Entities | F54: 0 | H54: 0 | J54: 0 | L54: =Code!I235 -> 0 | P54: 980 Organizations, Individuals and Other Entities | T54: 980 Organismes, particuliers et entités distinctes
D55: =IF(Eng_Fren=1,Q55,U55) -> Total Expenses | F55: =SUM(F29:F54) -> 0 | H55: =SUM(H29:H54) -> 0 | J55: =SUM(J29:J54) -> 0 | L55: =SUM(L29:L54) -> 0 | Q55: Total Expenses | U55: Total des dépenses
B56: =IF(Eng_Fren=1,O56,S56) -> Current Year Surplus (Deficit) before Non-vested Sick Leave | J56: =J27-J55 -> 0 | L56: =L27-L55 -> 0 | O56: Current Year Surplus (Deficit) before Non-vested Sick Leave | S56: Excédent (Déficit) de l'exercice en cours avant congé de maladie en surplus
B57: Less: Non-vested Sick Leave Expense (Recovery) | J57: 0 | L57: =Code!I238 -> 0 | O57: Less: Non-vested Sick Leave Expense (Recovery) | S57: Moins : Congé de maladie en surplus (recouvrement)
B58: Current Year Surplus (Deficit) | J58: =J56-J57 -> 0 | L58: =L56-L57 -> 0 | O58: Current Year Surplus (Deficit) | S58: Excédent (Déficit) net de l'exercice en cours
B59: Transfers from (to) Capital Fund | J59: 0 | L59: =Code!I240 -> 0 | O59: Transfers from (to) Capital Fund | S59: Transferts du (au) fonds de capital et d'emprunt
B60: Transfers from (to) Special Purpose Funds | J60: =-SPFREV_TRANSOP -> 0 | L60: =-SPFREV_TRANSOPPR -> 0 | O60: Transfers from (to) Special Purpose Funds | S60: Transferts des (aux) fonds à fins spéciales
B61: Net Current Year Surplus (Deficit) | J61: =SUM(J58:J60) -> 0 | L61: =SUM(L58:L60) -> 0 | O61: Net Current Year Surplus (Deficit) | S61: Excédent (Déficit) net de l'exercice en cours
B62: Opening Accumulated Surplus (Deficit) | J62: =L66 -> 0 | L62: =Code!I243 -> 0 | O62: Opening Accumulated Surplus (Deficit) | S62: Excédent (Déficit) accumulé d'ouverture
B63: Adjustments: | J63: 0 | L63: =Code!I244 -> 0 | O63: Adjustments: | S63: Redressements :
J64: 0 | L64: =Code!I245 -> 0
B65: =IF(Eng_Fren=1,O65,S65) -> Opening Accumulated Surplus (Deficit), as adjusted | J65: =SUM(J62:J64) -> 0 | L65: =SUM(L62:L64) -> 0 | O65: Opening Accumulated Surplus (Deficit), as adjusted | S65: Excédent (Déficit) accumulé d'ouverture, réévalué
B66: =IF(Eng_Fren=1,O66,S66) -> Closing Accumulated Surplus (Deficit) | J66: =SUM(J61,J65) -> 0 | L66: =SUM(L61,L65) -> 0 | O66: Closing Accumulated Surplus (Deficit) | S66: Excédent (Déficit) accumulé de clôture
B69: <<<<<<<<<<<< ERROR MESSAGES >>>>>>>>>>>>
B71: =IF(Identification!$A$45=1,J7&" OPENING ACCUMULATED SURPLUS BALANCE DOES NOT","") -> 
B72: =IF(Identification!$A$45=1,"EQUAL "&L7&" CLOSING ACCUMULATED SURPLUS BALANCE","") -> 

Sheet OP Oth Rev
B1: =DIVNAME ->  | L1: =IF(DATE=0,"",DATE) -> 2022-04-27T11:41:17.460
B2: =IF(Eng_Fren=1,"OPERATING FUND - REVENUE DETAIL","FONDS D'ADMINISTRATION GÉNÉRALE – ÉTAT DÉTAILLÉ DES RECETTES") -> OPERATING FUND - REVENUE DETAIL
B3: =IF(Eng_Fren=1,"NON-PROVINCIAL GOVERNMENT SOURCES","DE SOURCES AUTRES QUE LE GOUVERNEMENT DU MANITOBA") -> NON-PROVINCIAL GOVERNMENT SOURCES
B4: =FOR -> For the Year Ended March 31, 2022
F6: =+'OP Rev Exp'!F7 -> April-June 2021 | H6: =+'OP Rev Exp'!H7 -> July-March 2022 | J6: =YEAR -> 2022 | L6: =YEAR_LY -> 2021
C8: =IF(Eng_Fren=1,P8,U8) -> Federal Government | P8: Federal Government | U8: Gouvernement fédéral
D9: =IF(Eng_Fren=1,Q9,U9) -> Tuition Fees | F9: 0 | H9: 0 | J9: =+F9+H9 -> 0 | L9: =+Code!I259 -> 0 | Q9: Tuition Fees | U9: Droits de scolarité
D10: =IF(Eng_Fren=1,Q10,U10) -> Transportation of Pupils | F10: 0 | H10: 0 | J10: =+F10+H10 -> 0 | L10: =+Code!I260 -> 0 | Q10: Transportation of Pupils | U10: Transport des élèves
D11: =IF(Eng_Fren=1,Q11,U11) -> French Language Monitor | F11: 0 | H11: 0 | J11: 0 | L11: =+Code!I261 -> 0 | Q11: French Language Monitor | U11: Moniteur de langue française
D12: =IF(Eng_Fren=1,Q12,U12) -> English as an Additional Language (Adults) | F12: 0 | H12: 0 | J12: 0 | L12: =+Code!I262 -> 0 | Q12: English as an Additional Language (Adults) | U12: Anglais langue additionnelle (pour adultes)
D13: =IF(Eng_Fren=1,Q13,U13) -> Other: | F13: 0 | H13: 0 | J13: 0 | L13: =+Code!I263 -> 0 | Q13: Other: | U13: Autres :
F14: =SUM(F9:F13) -> 0 | H14: =SUM(H9:H13) -> 0 | J14: =SUM(J9:J13) -> 0 | L14: =SUM(L9:L13) -> 0
C17: =IF(Eng_Fren=1,P17,U17) -> Municipal Government | P17: Municipal Government | U17: Administration municipale
D18: =IF(Eng_Fren=1,Q18,U18) -> Special Requirement | F18: 0 | H18: 0 | J18: =+F18+H18 -> 0 | L18: =+Code!I268 -> 0 | Q18: Special Requirement | U18: Fonds spéciaux
D19: =IF(Eng_Fren=1,Q19,U19) -> Less: Education Property Tax Credit | J19: =-OPREV_PROVECYEPTC -> 0 | L19: =-OPREV_PROVECYEPTCPR -> 0 | Q19: Less: Education Property Tax Credit | U19: Moins : Crédit d'impôt foncier du Man. en matière d'éducation
D20: =IF(Eng_Fren=1,Q20,U20) -> Less: Tax Incentive Grant | J20: =-OPREV_PROVECYTIG -> 0 | L20: =-OPREV_PROVECYTIGPR -> 0 | Q20: Less: Tax Incentive Grant | U20: Moins : Incitatif fiscal
D21: =IF(Eng_Fren=1,Q21,U21) -> Less: Property Tax Offset Grant | J21: =-OPREV_PROVECYPTOG -> 0 | L21: =-OPREV_PROVECYPTOGPR -> 0 | Q21: Less: Property Tax Offset Grant | U21: Moins : Subvention compensatoire des taxes foncières
D22: =IF(Eng_Fren=1,Q22,U22) -> All other: | F22: 0 | H22: 0 | J22: =+F22+H22 -> 0 | L22: =+Code!I271 -> 0 | Q22: All other: | U22: Autres :
J23: =SUM(J18:J22) -> 0 | L23: =SUM(L18:L22) -> 0
C26: =IF(Eng_Fren=1,P26,U26) -> Other School Divisions | P26: Other School Divisions | U26: Autres divisions scolaires
D27: =IF(Eng_Fren=1,Q27,U27) -> Tuition Fees | F27: 0 | H27: 0 | J27: =+F27+H27 -> 0 | L27: =+Code!I276 -> 0 | Q27: Tuition Fees | U27: Droits de scolarité
D28: =IF(Eng_Fren=1,Q28,U28) -> Transfer Fees | F28: 0 | H28: 0 | J28: 0 | L28: =+Code!I277 -> 0 | Q28: Transfer Fees | U28: Frais de transfert
D29: =IF(Eng_Fren=1,Q29,U29) -> Residual Fees | F29: 0 | H29: 0 | J29: =+F29+H29 -> 0 | L29: =+Code!I278 -> 0 | Q29: Residual Fees | U29: Frais supplémentaires
D30: =IF(Eng_Fren=1,Q30,U30) -> Transportation of Pupils | F30: 0 | H30: 0 | J30: 0 | L30: =+Code!I279 -> 0 | Q30: Transportation of Pupils | U30: Transport des élèves
D31: =IF(Eng_Fren=1,Q31,U31) -> All other: | F31: 0 | H31: 0 | J31: 0 | L31: =+Code!I280 -> 0 | Q31: All other: | U31: Autres :
F32: =SUM(F27:F31) -> 0 | H32: =SUM(H27:H31) -> 0 | J32: =SUM(J27:J31) -> 0 | L32: =SUM(L27:L31) -> 0
C35: =IF(Eng_Fren=1,P35,U35) -> First Nations | P35: First Nations | U35: Premières nations
D36: =IF(Eng_Fren=1,Q36,U36) -> Tuition Fees | F36: 0 | H36: 0 | J36: =+F36+H36 -> 0 | L36: =+Code!I284 -> 0 | Q36: Tuition Fees | U36: Droits de scolarité
D37: =IF(Eng_Fren=1,Q37,U37) -> Transportation of Pupils | F37: 0 | H37: 0 | J37: 0 | L37: =+Code!I285 -> 0 | Q37: Transportation of Pupils | U37: Transport des élèves
D38: =IF(Eng_Fren=1,Q38,U38) -> All other: | F38: 0 | H38: 0 | J38: 0 | L38: =+Code!I286 -> 0 | Q38: All other: | U38: Autres :
F39: =SUM(F36:F38) -> 0 | H39: =SUM(H36:H38) -> 0 | J39: =SUM(J36:J38) -> 0 | L39: =SUM(L36:L38) -> 0
C42: =IF(Eng_Fren=1,P42,U42) -> Private Organizations and Individuals | P42: Private Organizations and Individuals | U42: Particuliers et organismes privés privés (incluant les entreprises publiques)
D43: =IF(Eng_Fren=1,Q43,U43) -> Regular Tuition | F43: 0 | H43: 0 | J43: =+F43+H43 -> 0 | L43: =+Code!I291 -> 0 | Q43: Regular Tuition | U43: Droits de scolarité ordinaires
D44: International Tuition | F44: 0 | H44: 0 | J44: 0 | L44: =+Code!I292 -> 0 | Q44: International Tuition | U44: Frais de scolarité applicables aux étudiants étrangers
D45: Continuing Education | F45: 0 | H45: 0 | J45: 0 | L45: =+Code!I293 -> 0 | Q45: Continuing Education | U45: Éducation permanente
D46: Other Tuition: | F46: 0 | H46: 0 | J46: 0 | L46: =+Code!I294 -> 0 | Q46: Other Tuition: | U46: Autres droits de scolarité
D47: Government Business Enterprises (GBE's) | F47: 0 | H47: 0 | J47: 0 | L47: =+Code!I295 -> 0 | Q47: Government Business Enterprises (GBE's) | U47: Entreprises publiques
D48: All other: | F48: 0 | H48: 0 | J48: 0 | L48: =+Code!I296 -> 0 | Q48: All other: | U48: Autres :
F49: =SUM(F43:F48) -> 0 | H49: =SUM(H43:H48) -> 0 | J49: =SUM(J43:J48) -> 0 | L49: =SUM(L43:L48) -> 0
C52: =IF(Eng_Fren=1,P52,U52) -> Other Sources | P52: Other Sources | U52: Autres sources
D53: =IF(Eng_Fren=1,Q53,U53) -> Interest | F53: 0 | H53: 0 | J53: =+F53+H53 -> 0 | L53: =+Code!I301 -> 0 | Q53: Interest | U53: Intérêts
D54: =IF(Eng_Fren=1,Q54,U54) -> All other: | F54: 0 | H54: 0 | J54: 0 | L54: =+Code!I302 -> 0 | Q54: All other: | U54: Autres :
F55: =SUM(F53:F54) -> 0 | H55: =SUM(H53:H54) -> 0 | J55: =SUM(J53:J54) -> 0 | L55: =SUM(L53:L54) -> 0
C58: =IF(Eng_Fren=1,P58,U58) -> TOTAL NON-PROVINCIAL GOVERNMENT REVENUE | F58: =SUM(F14,F23,F32,F39,F49,F55) -> 0 | H58: =SUM(H14,H23,H32,H39,H49,H55) -> 0 | J58: =SUM(J14,J23,J32,J39,J49,J55) -> 0 | L58: =SUM(L14,L23,L32,L39,L49,L55) -> 0 | P58: TOTAL NON-PROVINCIAL GOVERNMENT REVENUE | U58: TOTAL – RECETTES DE SOURCES AUTRES QUE LE GOUV. DU MANITOBA

Sheet CAP Fin Pos
B1: =DIVNAME ->  | H1: =IF(DATE=0,"",DATE) -> 2022-04-27T11:41:17.460
B2: =IF(Eng_Fren=1,L2,N2) -> CAPITAL FUND | L2: CAPITAL FUND | N2: FONDS DE CAPITAL ET D'EMPRUNT
B3: =IF(Eng_Fren=1,L3,N3) -> STATEMENT OF FINANCIAL POSITION | L3: STATEMENT OF FINANCIAL POSITION | N3: ÉTAT DE LA SITUATION FINANCIÈRE
B4: =ASAT -> as at March 31, 2022
F6: =YEAR -> 2022 | H6: =YEAR_LY -> 2021
B7: =IF(Eng_Fren=1,L7,N7) -> Financial Assets | L7: Financial Assets | N7: Actif financier
C8: =IF(Eng_Fren=1,L8,N8) -> Cash and Bank | F8: 0 | H8: =Code!I319 -> 0 | L8: Cash and Bank | N8: Encaisse et fonds en banque
C9: =IF(Eng_Fren=1,L9,N9) -> Due from | D9: =IF(Eng_Fren=1,M9,O9) -> - Provincial Government | F9: 0 | H9: =Code!I320 -> 0 | L9: Due from | M9: - Provincial Government | N9: Sommes recevables | O9: - du gouv. du Manitoba
D10: =IF(Eng_Fren=1,M10,O10) -> - Federal Government | F10: 0 | H10: =Code!I321 -> 0 | M10: - Federal Government | O10: - du gouv. fédéral
D11: =IF(Eng_Fren=1,M11,O11) -> - Municipal Government | F11: 0 | H11: =Code!I322 -> 0 | M11: - Municipal Government | O11: - de l'admin. municipale
D12: =IF(Eng_Fren=1,M12,O12) -> - First Nations | F12: 0 | H12: =Code!I323 -> 0 | M12: - First Nations | O12: - des Premières Nations
D13: - Operating and Special Purpose Funds | F13: 0 | H13: =Code!I324 -> 0 | M13: - Operating and Special Purpose Funds | O13: - du fonds de fonc. et du fonds à des fins spéc.
C14: =IF(Eng_Fren=1,L14,N14) -> Accounts Receivable | F14: 0 | H14: =Code!I325 -> 0 | L14: Accounts Receivable | N14: Comptes clients
C15: =IF(Eng_Fren=1,L15,N15) -> Accrued Investment Income | F15: 0 | H15: =Code!I326 -> 0 | L15: Accrued Investment Income | N15: Revenu de placements à recevoir
C16: =IF(Eng_Fren=1,L16,N16) -> Portfolio Investments | F16: 0 | H16: =Code!I327 -> 0 | L16: Portfolio Investments | N16: Placements de portefeuille
F17: =SUM(F8:F16) -> 0 | H17: =SUM(H8:H16) -> 0
B18: =IF(Eng_Fren=1,L18,N18) -> Liabilities | L18: Liabilities | N18: Passif
C19: =IF(Eng_Fren=1,L19,N19) -> Overdraft | F19: 0 | H19: =Code!I330 -> 0 | L19: Overdraft | N19: Découverts
C20: =IF(Eng_Fren=1,L20,N20) -> Accounts Payable | F20: 0 | H20: =Code!I331 -> 0 | L20: Accounts Payable | N20: Comptes fournisseurs
C21: =IF(Eng_Fren=1,L21,N21) -> Accrued Liabilities | F21: 0 | H21: =Code!I332 -> 0 | L21: Accrued Liabilities | N21: Charges à payer
C22: =IF(Eng_Fren=1,L22,N22) -> Accrued Interest Payable | F22: 0 | H22: =Code!I333 -> 0 | L22: Accrued Interest Payable | N22: Intérêts courus à payer
C23: =IF(Eng_Fren=1,L23,N23) -> Due to | D23: =D9 -> - Provincial Government | F23: 0 | H23: =Code!I334 -> 0 | L23: Due to | M23: - Provincial Government | N23: Sommes payables | O23: - au gouv. du Manitoba
D24: =D10 -> - Federal Government | F24: 0 | H24: =Code!I335 -> 0 | M24: - Federal Government | O24: - au gouv. fédéral
D25: =D11 -> - Municipal Government | F25: 0 | H25: =Code!I336 -> 0 | M25: - Municipal Government | O25: - à l'admin. municipale
D26: =D12 -> - First Nations | F26: 0 | H26: =Code!I337 -> 0 | M26: - First Nations | O26: - aux Premières Nations
D27: =D13 -> - Operating and Special Purpose Funds | F27: 0 | H27: =Code!I338 -> 0 | M27: - Operating and Special Purpose Funds | O27: - au fonds de fonc. et au fonds à des fins spéc.
C28: =IF(Eng_Fren=1,L28,N28) -> Deferred Revenue | F28: 0 | H28: =Code!I339 -> 0 | L28: Deferred Revenue | N28: Revenus reportés
C29: =IF(Eng_Fren=1,L29,N29) -> Borrowings from the Provincial Government | F29: 0 | H29: =Code!I340 -> 0 | L29: Borrowings from the Provincial Government | N29: Emprunts contractés auprès du gouvernement provincial
C30: =IF(Eng_Fren=1,L30,N30) -> Other Borrowings | F30: 0 | H30: =Code!I341 -> 0 | L30: Other Borrowings | N30: Autres emprunts
F31: =SUM(F19:F30) -> 0 | H31: =SUM(H19:H30) -> 0
B32: =IF(Eng_Fren=1,L32,N32) -> Net Debt | F32: =F17-F31 -> 0 | H32: =H17-H31 -> 0 | L32: Net Debt | N32: Dette nette
B33: =IF(Eng_Fren=1,L33,N33) -> Non-Financial Assets | L33: Non-Financial Assets | N33: Actif non financier
C34: =IF(Eng_Fren=1,L34,N34) -> Net Tangible Capital Assets | F34: =TCA_NETTCA -> 0 | H34: =Code!I345 -> 0 | L34: Net Tangible Capital Assets | N34: Immobilisations corporelles nettes
B35: =IF(Eng_Fren=1,L35,N35) -> Accumulated Surplus / Equity | F35: =F32+F34 -> 0 | H35: =H32+H34 -> 0 | L35: Accumulated Surplus / Equity | N35: Excédent accumulé / Avoir propre *
B38: <<<<<<<<<<<< ERROR MESSAGES >>>>>>>>>>>>
B40: =IF(CAPREV_CLOSESURP<>F35,TEXT(F6,"0")&" ACCUMULATED SURPLUS DOES NOT","") ->  | E40: =IF(Identification!$A$48=1,H6&" ACCUMULATED SURPLUS DOES NOT","") -> 
B41: =IF(CAPREV_CLOSESURP<>F35,"EQUAL CLOSING "&TEXT(F6,"0")&" ACCUMULATED SURPLUS","") ->  | E41: =IF(Identification!$A$48=1,"EQUAL "&H6&" CLOSING ACCUMULATED SURPLUS","") -> 
B42: =IF(CAPREV_CLOSESURP<>F35,"FROM REVENUE AND EXPENSE STATEMENT","") ->  | E42: =IF(Identification!$A$48=1,"FROM REVENUE AND EXPENSE STATEMENT","") -> 
B43: =IF(CAPREV_CLOSESURP<>F35,"Out by:","") ->  | C43: =IF(CAPREV_CLOSESURP<>F35,CAPREV_CLOSESURP-F35,"") -> 

Sheet CAP Rev Exp
B1: =DIVNAME ->  | H1: =IF(DATE=0,"",DATE) -> 2022-04-27T11:41:17.460
B2: =IF(Eng_Fren=1,M2,O2) -> CAPITAL FUND | M2: CAPITAL FUND | O2: FONDS DE CAPITAL ET D'EMPRUNT
B3: =IF(Eng_Fren=1,M3,O3) -> SCHEDULE OF REVENUE, EXPENSES | M3: SCHEDULE OF REVENUE, EXPENSES | O3: ÉTAT DES RECETTES, DES DÉPENSES
B4: =IF(Eng_Fren=1,M4,O4) -> AND ACCUMULATED SURPLUS | M4: AND ACCUMULATED SURPLUS | O4: ET DE L'EXCÉDENT ACCUMULÉ
B5: =FOR -> For the Year Ended March 31, 2022
F7: =YEAR -> 2022 | H7: =YEAR_LY -> 2021
B8: =IF(Eng_Fren=1,M8,O8) -> Revenue | M8: Revenue | O8: Recettes
B9: =IF(Eng_Fren=1,M9,O9) -> Provincial Government | M9: Provincial Government | O9: Gouvernement du Manitoba
B10: =IF(Eng_Fren=1,M10,O10) -> Grants | F10: 0 | H10: =Code!I361 -> 0 | M10: Grants | O10: Subventions
B11: =IF(Eng_Fren=1,M11,O11) -> Debt Servicing | D11: =IF(Eng_Fren=1,N11,P11) -> - Principal | F11: 0 | H11: =Code!I362 -> 0 | M11: Debt Servicing | N11: - Principal | O11: Serv. de la dette | P11: - Principal
D12: =IF(Eng_Fren=1,N12,P12) -> - Interest | F12: 0 | H12: =Code!I363 -> 0 | N12: - Interest | P12: - Intérêts
C13: =IF(Eng_Fren=1,M13,O13) -> Total Provincial Government Revenue | F13: =SUM(F10:F12) -> 0 | H13: =SUM(H10:H12) -> 0 | M13: Total Provincial Government Revenue | O13: Total des recettes du gouvernement du Manitoba
B15: =IF(Eng_Fren=1,M15,O15) -> Federal Government | F15: 0 | H15: =Code!I366 -> 0 | M15: Federal Government | O15: Gouvernement fédéral
B16: =IF(Eng_Fren=1,M16,O16) -> Municipal Government | F16: 0 | H16: =Code!I367 -> 0 | M16: Municipal Government | O16: Administration municipale
B17: =IF(Eng_Fren=1,M17,O17) -> Other Sources: | M17: Other Sources: | O17: Autres sources :
C18: =IF(Eng_Fren=1,N18,P18) -> Investment Income | F18: 0 | H18: =Code!I369 -> 0 | N18: Investment Income | P18: Revenus de placement
C19: =IF(Eng_Fren=1,N19,P19) -> Donations | F19: 0 | H19: =Code!I370 -> 0 | N19: Donations | P19: Dons
F20: 0 | H20: =Code!I371 -> 0
C21: =IF(Eng_Fren=1,M21,O21) -> Gain / (Loss) on Disposal of Capital Assets | F21: =-TCA_ASSETDISP+TCA_AMORTDISP+TCA_PROCEEDS -> 0 | H21: =-TCA_ASSETDISPPR+TCA_AMORTDISPPR+TCA_PROCEEDSPR -> 0 | M21: Gain / (Loss) on Disposal of Capital Assets | O21: Gain (Perte) à l'aliénation des immobilisations
C22: =IF(Eng_Fren=1,M22,O22) -> Gain on receipt of Modular classroom | F22: 0 | H22: =Code!I373 -> 0 | M22: Gain on receipt of Modular classroom | O22: Gain à la réception de salles de classe modulaires
D23: =IF(Eng_Fren=1,M23,O23) -> Total Revenue | F23: =SUM(F13:F22) -> 0 | H23: =SUM(H13:H22) -> 0 | M23: Total Revenue | O23: Total des recettes
B24: =IF(Eng_Fren=1,M24,O24) -> Expenses | M24: Expenses | O24: Dépenses
B25: =IF(Eng_Fren=1,M25,O25) -> Amortization | F25: =TCA_AMORTADD -> 0 | H25: =TCA_AMORTADDPR -> 0 | M25: Amortization | O25: Amortissements
B26: =IF(Eng_Fren=1,M26,O26) -> Interest on Borrowings from the Provincial Government | F26: 0 | H26: =Code!I377 -> 0 | M26: Interest on Borrowings from the Provincial Government | O26: Intérêts sur les emprunts contractés auprès du gouvernement provincial
B27: =IF(Eng_Fren=1,M27,O27) -> Other Interest | F27: 0 | H27: =Code!I378 -> 0 | M27: Other Interest | O27: Autres intérêts
B28: =IF(Eng_Fren=1,M28,O28) -> Other | F28: 0 | H28: =Code!I379 -> 0 | M28: Other | O28: Autres
F29: 0 | H29: =Code!I380 -> 0
D30: =IF(Eng_Fren=1,M30,O30) -> Total Expenses | F30: =SUM(F25:F29) -> 0 | H30: =SUM(H25:H29) -> 0 | M30: Total Expenses | O30: Total des dépenses
B31: =IF(Eng_Fren=1,M31,O31) -> Current Year Surplus / (Deficit) | F31: =F23-F30 -> 0 | H31: =H23-H30 -> 0 | M31: Current Year Surplus / (Deficit) | O31: Excédent (Déficit) de l'exercice en cours
B32: =IF(Eng_Fren=1,M32,O32) -> Net Transfers from (to) Operating Fund | F32: =-OPREV_TRANSCAP -> 0 | H32: =-OPREV_TRANSCAPPR -> 0 | M32: Net Transfers from (to) Operating Fund | O32: Transferts nets du (au) fonds de fonctionnement
B33: =IF(Eng_Fren=1,M33,O33) -> Transfers from (to) Special Purpose Fund | F33: =-SPFREV_TRANSCAP -> 0 | H33: =-SPFREV_TRANSCAPPR -> 0 | M33: Transfers from (to) Special Purpose Fund | O33: Transferts du (au) fonds à des fins spéciales
B34: =IF(Eng_Fren=1,M34,O34) -> Net Current Year Surplus (Deficit) | F34: =SUM(F31:F33) -> 0 | H34: =SUM(H31:H33) -> 0 | M34: Net Current Year Surplus (Deficit) | O34: Excédent (Déficit) net de l'exercice en cours
B36: =IF(Eng_Fren=1,M36,O36) -> Opening Accumulated Surplus / Equity | F36: =H40 -> 0 | H36: =Code!I387 -> 0 | M36: Opening Accumulated Surplus / Equity | O36: Excédent / Avoir propre accumulé d'ouverture
B37: =IF(Eng_Fren=1,M37,O37) -> Adjustments: | C37: =IF(Eng_Fren=1,N37,P37) -> Tangible Cap. Assets and Accum. Amort. | F37: =NETTANCAPADJ-ACCAMORADJ -> 0 | H37: =Code!I388 -> 0 | M37: Adjustments: | N37: Tangible Cap. Assets and Accum. Amort. | O37: Redressements : | P37: Immobilisations corp. et amortissements cum.
F38: 0 | H38: =Code!I389 -> 0
B39: =IF(Eng_Fren=1,M39,O39) -> Opening Accumulated Surplus / Equity as adjusted | F39: =SUM(F36:F38) -> 0 | H39: =SUM(H36:H38) -> 0 | M39: Opening Accumulated Surplus / Equity as adjusted | O39: Excédent / Avoir propre accumulé d'ouverture, réévalué
B40: =IF(Eng_Fren=1,M40,O40) -> Closing Accumulated Surplus / Equity | F40: =SUM(F34,F39) -> 0 | H40: =SUM(H34,H39) -> 0 | M40: Closing Accumulated Surplus / Equity | O40: Excédent / Avoir propre accumulé de clôture
B43: <<<<<<<<<<<< ERROR MESSAGES >>>>>>>>>>>>
B45: =IF(Identification!$A$51=1,F7&" OPENING ACCUMULATED SURPLUS BALANCE DOES NOT","") -> 
B46: =IF(Identification!$A$51=1,"EQUAL "&H7&" CLOSING ACCUMULATED SURPLUS BALANCE","") -> 

Sheet TCA Schedule
B1: =DIVNAME ->  | C1: =IF(Eng_Fren=1,"SCHEDULE OF TANGIBLE CAPITAL ASSETS","ÉTAT DES IMMOBILISATIONS CORPORELLES") -> SCHEDULE OF TANGIBLE CAPITAL ASSETS | M1: =IF(DATE=0,"",DATE) -> 2022-04-27T11:41:17.460
C2: =ATJUN2 -> at March 31, 2022
C4: =IF(Eng_Fren=1,R6,R9) -> Buildings and Leasehold Improvements | F4: =IF(Eng_Fren=1,U5,U8) ->  | G4: Furniture / | H4: Computer | K4: =IF(Eng_Fren=1,Z5,Z8) -> Assets | L4: =YREND -> 2022 | M4: =+L4-1 -> 2021
E5: =IF(Eng_Fren=1,T6,T9) -> School | F5: Other | G5: Fixtures & | H5: Hardware & | J5: =IF(Eng_Fren=1,Y6,Y9) -> Land | K5: =IF(Eng_Fren=1,Z6,Z9) -> Under | V5: Furniture / | W5: Computer | Z5: Assets
C6: =IF(Eng_Fren=1,R7,Y10) -> School | D6: =IF(Eng_Fren=1,S7,S10) -> Non-School | E6: =IF(Eng_Fren=1,T7,T10) -> Buses | F6: Vehicles | G6: Equipment | H6: Software * | I6: =IF(Eng_Fren=1,X7,X10) -> Land | J6: =IF(Eng_Fren=1,Y7,Y10) -> Improvements | K6: =IF(Eng_Fren=1,Z7,Z10) -> Construction | L6: =IF(Eng_Fren=1,"Totals","Totaux") -> Totals | M6: =+L6 -> Totals | R6: Buildings and Leasehold Improvements | T6: School | U6: Other | V6: Fixtures & | W6: Hardware & | Y6: Land | Z6: Under
B7: =IF(Eng_Fren=1,P7,Q7) -> Tangible Capital Asset Cost | P7: Tangible Capital Asset Cost | Q7: Coût des immobilisations corp. | R7: School | S7: Non-School | T7: Buses | U7: Vehicles | V7: Equipment | W7: Software * | X7: Land | Y7: Improvements | Z7: Construction
B8: =IF(Eng_Fren=1," Opening Cost March 31, "&M4," Coût d'ouv. Mars 31 "&M4) -> Opening Cost March 31, 2021 | C8: =+Code!M490 -> 0 | D8: =+Code!N490 -> 0 | E8: =+Code!O490 -> 0 | F8: =+Code!P490 -> 0 | G8: =+Code!Q490 -> 0 | H8: =+Code!R490 -> 0 | I8: =+Code!S490 -> 0 | J8: =+Code!T490 -> 0 | K8: =+Code!U490 -> 0 | L8: =SUM(C8:K8) -> 0 | M8: =+Code!I460 -> 0 | P8: Opening Cost, as previously reported | Q8: Coût d'ouv., signalé antérieurement | V8: Mobilier / | W8: Matériel | Z8: Immeubles
B9: =IF(Eng_Fren=1,P9,Q9) -> Opening Cost adjusted | C9: 0 | D9: 0 | E9: 0 | F9: 0 | G9: 0 | H9: 0 | I9: 0 | J9: 0 | K9: 0 | L9: =SUM(C9:K9) -> 0 | M9: =+Code!I461 -> 0 | P9: Opening Cost adjusted | Q9: Coût d'ouverture, réévalué | R9: Immeubles et améliorations locatives | T9: Autobus | U9: Autres | V9: Accessoires et | W9: informatique et | Y9: Améliorations | Z9: en
B10: Add: | P10: Add: | Q10: Plus : | R10: Écoles | S10: Autres | T10: scolaires | U10: véhicules | V10: équipement | W10: logiciels* | X10: Terrains | Y10: foncières | Z10: construction
B11: Additions during the year | D11: 0 | E11: 0 | F11: 0 | G11: 0 | H11: 0 | I11: 0 | J11: 0 | K11: 0 | L11: =SUM(C11:K11) -> 0 | M11: =+Code!I463 -> 0 | P11: Additions during the year | Q11: Ajouts faits durant l'exercice
B12: Less: | P12: Less: | Q12: Moins :
B13: Disposals and write downs | D13: 0 | E13: 0 | F13: 0 | G13: 0 | H13: 0 | I13: 0 | J13: 0 | K13: 0 | L13: =SUM(C13:K13) -> 0 | M13: =+Code!I465 -> 0 | P13: Disposals and write downs | Q13: Liquidations et radiations
B14: Closing Cost | C14: =C8+C9+C11-C13 -> 0 | D14: =D8+D9+D11-D13 -> 0 | E14: 0 | F14: 0 | G14: 0 | H14: 0 | I14: 0 | J14: 0 | K14: 0 | L14: 0 | M14: 0 | P14: Closing Cost | Q14: Coût de clôture
B15: Accumulated Amortization | P15: Accumulated Amortization | Q15: Amortissements cumulés
B16: =IF(Eng_Fren=1," Opening Balance March 31, "&M4," Valeur d'ouv. Mars 31 "&M4) -> Opening Balance March 31, 2021 | C16: =+Code!M492 -> 0 | D16: =+Code!N492 -> 0 | E16: =+Code!O492 -> 0 | F16: =+Code!P492 -> 0 | G16: =+Code!Q492 -> 0 | H16: =+Code!R492 -> 0 | I16: =+Code!S492 -> 0 | J16: =+Code!T492 -> 0 | K16: =+Code!U492 -> 0 | L16: =SUM(C16:K16) -> 0 | M16: =+Code!I468 -> 0 | P16: Opening, as previously reported | Q16: Valeur d'ouv., signalée antérieurement
B17: =IF(Eng_Fren=1,P17,Q17) -> Adjustments | C17: 0 | D17: 0 | E17: 0 | F17: 0 | G17: 0 | H17: 0 | I17: 0 | J17: 0 | K17: 0 | L17: =SUM(C17:K17) -> 0 | M17: =+Code!I469 -> 0 | P17: Adjustments | Q17: Redressements :
B18: Add: | P18: Add: | Q18: Plus :
B19: Current period Amortization | D19: 0 | E19: 0 | F19: 0 | G19: 0 | H19: 0 | I19: 0 | J19: 0 | K19: 0 | L19: =SUM(C19:K19) -> 0 | M19: =+Code!I471 -> 0 | P19: Current period Amortization | Q19: Amortissements : pér. courante
B20: Less: | P20: Less: | Q20: Moins :
B21: Accumulated Amortization | P21: Accumulated Amortization | Q21: Amortissements cumulés sur les
B22: on Disposals and Writedowns | D22: 0 | E22: 0 | F22: 0 | G22: 0 | H22: 0 | I22: 0 | J22: 0 | K22: 0 | L22: =SUM(C22:K22) -> 0 | M22: =+Code!I474 -> 0 | P22: on Disposals and Writedowns | Q22: liquidations et les radiations
B23: Closing Accumulated Amortization | C23: =C16+C17+C19-C22 -> 0 | D23: =D16+D17+D19-D22 -> 0 | E23: =E16+E17+E19-E22 -> 0 | F23: 0 | G23: 0 | H23: 0 | I23: 0 | J23: 0 | K23: 0 | L23: 0 | M23: 0 | P23: Closing Accumulated Amortization | Q23: Amortissements cumulés de clôture
B24: Net Tangible Capital Asset | C24: =C14-C23 -> 0 | D24: =D14-D23 -> 0 | E24: 0 | F24: 0 | G24: 0 | H24: 0 | I24: 0 | J24: 0 | K24: 0 | L24: =L14-L23 -> 0 | M24: 0 | P24: Net Tangible Capital Asset | Q24: Immobilisations corporelles nettes
B25: Proceeds from Disposal of Capital Assets | C25: 0 | D25: 0 | E25: 0 | F25: 0 | G25: 0 | H25: 0 | I25: 0 | L25: =SUM(C25:I25) -> 0 | M25: =+Code!I477 -> 0 | P25: Proceeds from Disposal of Capital Assets | Q25: Produit de la liquidation des immobilisations
B27: =IF(Eng_Fren=1,P27,Q27) -> * Includes network infrastructure. | P27: * Includes network infrastructure. | Q27: *Comprend l'infrastructure du réseau.
I29: <<<<<<<<<<<<< ERROR MESSAGES >>>>>>>>>>>>>
I31: =IF(TCA_ASSETOPEN<>TCA_ASSETCLOSEPR,L4&" TANGIBLE CAPITAL ASSET OPENING COST DOES","") -> 
I32: =IF(TCA_ASSETOPEN<>TCA_ASSETCLOSEPR,"NOT MATCH "&M4&" TANGIBLE CAPITAL ASSET CLOSING COST.","") -> 
I34: =IF(TCA_AMORTOPEN<>TCA_AMORTCLOSEPR,L4&" ACCUMULATED AMORTIZATION OPENING BALANCE DOES","") -> 
I35: =IF(TCA_AMORTOPEN<>TCA_AMORTCLOSEPR,"NOT MATCH "&M4&" ACCUMULATED AMORTIZATION CLOSING BALANCE.","") -> 

Sheet SPF Fin Pos
B1: =DIVNAME ->  | H1: =IF(DATE=0,"",DATE) -> 2022-04-27T11:41:17.460
B2: =IF(Eng_Fren=1,M2,N2) -> SPECIAL PURPOSE FUND | M2: SPECIAL PURPOSE FUND | N2: FONDS À DES FINS SPÉCIALES
B3: =IF(Eng_Fren=1,M3,N3) -> STATEMENT OF FINANCIAL POSITION | M3: STATEMENT OF FINANCIAL POSITION | N3: ÉTAT DE LA SITUATION FINANCIÈRE
B4: =ASAT -> as at March 31, 2022
F6: =YEAR -> 2022 | H6: =YEAR_LY -> 2021
B7: =IF(Eng_Fren=1,M7,N7) -> Financial Assets | M7: Financial Assets | N7: Actif financier
C8: =IF(Eng_Fren=1,M8,N8) -> Cash and Bank | F8: 0 | H8: =+Code!I404 -> 0 | M8: Cash and Bank | N8: Encaisse et fonds en banque
C9: =IF(Eng_Fren=1,M9,N9) -> GST Receivable | F9: 0 | H9: =+Code!I405 -> 0 | M9: GST Receivable | N9: TPS à recouvrer
C10: =IF(Eng_Fren=1,M10,N10) -> Accrued Investment Income | F10: 0 | H10: =+Code!I406 -> 0 | M10: Accrued Investment Income | N10: Revenu de placements à recevoir
C11: =IF(Eng_Fren=1,M11,N11) -> Portfolio Investments | F11: 0 | H11: =+Code!I407 -> 0 | M11: Portfolio Investments | N11: Placements de portefeuille
F12: =SUM(F8:F11) -> 0 | H12: =SUM(H8:H11) -> 0
B13: =IF(Eng_Fren=1,M13,N13) -> Liabilities | M13: Liabilities | N13: Passif
C14: =IF(Eng_Fren=1,M14,N14) -> Accounts Payable | F14: 0 | H14: =+Code!I410 -> 0 | M14: Accounts Payable | N14: Comptes fournisseurs
C15: =IF(Eng_Fren=1,M15,N15) -> Accrued Liabilities | F15: 0 | H15: =+Code!I411 -> 0 | M15: Accrued Liabilities | N15: Charges à payer
C16: =IF(Eng_Fren=1,M16,N16) -> Due to Other Funds | F16: 0 | H16: =+Code!I412 -> 0 | M16: Due to Other Funds | N16: Sommes payables à d'autres fonds
C17: =IF(Eng_Fren=1,M17,N17) -> Deferred Revenue | F17: 0 | H17: =+Code!I413 -> 0 | M17: Deferred Revenue | N17: Revenu reporté
C18: =IF(Eng_Fren=1,M18,N18) -> School Generated Funds Liability | F18: 0 | H18: =+Code!I414 -> 0 | M18: School Generated Funds Liability | N18: Passif des fonds générés par les écoles
F19: =SUM(F14:F18) -> 0 | H19: =SUM(H14:H18) -> 0
B20: =IF(Eng_Fren=1,M20,N20) -> Accumulated Surplus | F20: =SPF_TOTALASSET-SPF_TOTALLIAB -> 0 | H20: =SPF_TOTALASSETPR-SPF_TOTALLIABPR -> 0 | M20: Accumulated Surplus | N20: Excédent accumulé
M21: * Comprised of: | N21: * Comprend :
M22: School Generated Funds Accumulated Surplus | N22: Excédent accumulé des fonds générés par les écoles
B23: <<<<<<<<<<<< ERROR MESSAGES >>>>>>>>>>>> | M23: Other Funds Accumulated Surplus | N23: Excédent accumulé d'autres fonds
M24: Accumulated Surplus * | N24: Excédent accumulé *
B26: =IF(SPFREV_CLOSESURP<>SPF_ACCSURP,F6&" ACCUMULATED SURPLUS DOES NOT","") ->  | E26: =IF(Identification!$A$54=1,H6&" ACCUMULATED SURPLUS DOES NOT","") -> 
B27: =IF(SPFREV_CLOSESURP<>SPF_ACCSURP,"EQUAL "&F6&" CLOSING ACCUMULATED SURPLUS","") ->  | E27: =IF(Identification!$A$54=1,"EQUAL "&H6&" CLOSING ACCUMULATED SURPLUS","") -> 
B28: =IF(SPFREV_CLOSESURP<>SPF_ACCSURP,"FROM REVENUE AND EXPENSE STATEMENT.","") ->  | E28: =IF(Identification!$A$54=1,"FROM REVENUE AND EXPENSE STATEMENT.","") -> 
B29: =IF(SPFREV_CLOSESURP<>SPF_ACCSURP,"Out by:","") ->  | C29: =IF(SPFREV_CLOSESURP<>SPF_ACCSURP,SPFREV_CLOSESURP-SPF_ACCSURP,"") -> 

Sheet SPF Rev Exp
B1: =DIVNAME ->  | H1: =IF(DATE=0,"",DATE) -> 2022-04-27T11:41:17.460
B2: =IF(Eng_Fren=1,L2,N2) -> SPECIAL PURPOSE FUND | L2: SPECIAL PURPOSE FUND | N2: FONDS À FINS SPÉCIALES
B3: =IF(Eng_Fren=1,L3,N3) -> SCHEDULE OF REVENUE, EXPENSES | L3: SCHEDULE OF REVENUE, EXPENSES | N3: ÉTAT DES RECETTES, DES DÉPENSES
B4: =IF(Eng_Fren=1,L4,N4) -> AND ACCUMULATED SURPLUS | L4: AND ACCUMULATED SURPLUS | N4: ET DE L'EXCÉDENT ACCUMULÉ
B5: =FOR -> For the Year Ended March 31, 2022
F7: =YEAR -> 2022 | H7: =YEAR_LY -> 2021
B8: =IF(Eng_Fren=1,L8,N8) -> Revenue | L8: Revenue | N8: Recettes
C9: =IF(Eng_Fren=1,L9,N9) -> School Generated Funds | F9: 0 | H9: =+Code!I430 -> 0 | L9: School Generated Funds | N9: Fonds générés par les écoles
C10: =IF(Eng_Fren=1,L10,N10) -> Other Funds | F10: 0 | H10: =+Code!I431 -> 0 | L10: Other Funds | N10: Autres fonds
F11: 0 | H11: =+Code!I432 -> 0
F12: =SUM(F9:F11) -> 0 | H12: =SUM(H9:H11) -> 0
B13: =IF(Eng_Fren=1,L13,N13) -> Expenses | L13: Expenses | N13: Dépenses
C14: =IF(Eng_Fren=1,L14,N14) -> School Generated Funds | F14: 0 | H14: =+Code!I435 -> 0 | L14: School Generated Funds | N14: Fonds générés par les écoles
C15: =IF(Eng_Fren=1,L15,N15) -> Other Funds | F15: 0 | H15: =+Code!I436 -> 0 | L15: Other Funds | N15: Autres fonds
F16: 0 | H16: =+Code!I437 -> 0
F17: =SUM(F14:F16) -> 0 | H17: =SUM(H14:H16) -> 0
B18: =IF(Eng_Fren=1,L18,N18) -> Current Year Surplus (Deficit) | F18: =SPFREV_TOTALREV-SPFEXP_TOTALEXP -> 0 | H18: =SPFREV_TOTALREVPR-SPFEXP_TOTALEXPPR -> 0 | L18: Current Year Surplus (Deficit) | N18: Excédent (Déficit) de l'exercice en cours
B19: Transfers (to) Operating Fund | F19: 0 | H19: =+Code!I440 -> 0 | L19: Transfers (to) Operating Fund | N19: Transferts (au) fonds d'administration générale
B20: Transfers (to) Capital Fund | F20: 0 | H20: =+Code!I441 -> 0 | L20: Transfers (to) Capital Fund | N20: Transferts (au) fonds de capital et d'emprunt
B21: Net Current Year Surplus (Deficit) | F21: =SUM(F18:F20) -> 0 | H21: =SUM(H18:H20) -> 0 | L21: Net Current Year Surplus (Deficit) | N21: Excédent (Déficit) de l'exercice en cours
B22: Opening Accumulated Surplus | F22: =SPFREV_CLOSESURPPR -> 0 | H22: =+Code!I443 -> 0 | L22: Opening Accumulated Surplus | N22: Excédent accumulé d'ouverture
B23: Adjustments: | F23: 0 | H23: =+Code!I444 -> 0 | L23: Adjustments: | N23: Redressements :
F24: 0 | H24: =+Code!I445 -> 0
B25: =IF(Eng_Fren=1,L25,N25) -> Opening Accumulated Surplus as adjusted | F25: =SUM(F22:F24) -> 0 | H25: =SUM(H22:H24) -> 0 | L25: Opening Accumulated Surplus as adjusted | N25: Excédent accumulé d'ouverture, réévalué
B26: =IF(Eng_Fren=1,L26,N26) -> Closing Accumulated Surplus | F26: =SPFREV_NETCURSURP+SPFREV_OPENSURPREST -> 0 | H26: =SPFREV_NETACCSURPPR+SPFREV_OPENSURPRESTPR -> 0 | L26: Closing Accumulated Surplus | N26: Excédent accumulé de clôture
B30: <<<<<<<<<<<< ERROR MESSAGES >>>>>>>>>>>>
B32: =IF(Identification!$A$58=1,F7&" OPENING ACCUMULATED SURPLUS BALANCE DOES NOT","") -> 
B33: =IF(Identification!$A$58=1,"EQUAL "&H7&" CLOSING ACCUMULATED SURPLUS BALANCE.","") -> 

Sheet Code (hidden)
N1: =SUM(N5:N42) -> -1.560474346 | R1: =SUM(R5:R42) -> -0.8899095471 | V1: =SUM(V5:V42) -> -3.875882261 | Y1: =SUM(Y5:Y42) -> 2.1 | AB1: =SUM(AB5:AB42) -> 0
K2: Cons Fin Pos | L2: Cons Rev Exp | M2: Opening Accumulated Surplus | N2: Variance | O2: Op. Fin Pos | P2: Op. Rev Exp | Q2: Opening Accumulated Surplus | R2: Variance | S2: Cap Fin Pos | T2: Cap Rev Exp | U2: Opening Accumulated Surplus | V2: Variance | W2: SFP Fin Pos | X2: SPF Rev Exp | Y2: Variance | Z2: CAP Fin Pos Net TCA | AA2: TCA Sch Net TCA | AB2: Variance | AC2: TCA Sch Closing TCA | AD2: TCA Closing Total | AE2: Variance | AF2: TCA Sch Closing Acc Amort | AG2: TCA Closing Acc Amort | AH2: Variance
H3: 39 | K3: =CONS_ACCSURPPR -> 0 | L3: =CONSREV_CLOSESURPPR -> 0 | M3: =CONSREV_OPENSURP -> 0 | N3: =K3-L3+K3-M3+L3-M3 -> 0 | O3: =OP_ACCSURPPR -> 0 | P3: =OPREV_CLOSESURPPR -> 0 | Q3: =OPREV_OPENSURP -> 0 | R3: =O3-P3+O3-Q3+P3-Q3 -> 0 | S3: =CAP_ACCSURPPR -> 0 | T3: =CAPREV_CLOSESURPPR -> 0 | U3: =CAPREV_OPENSURP -> 0 | V3: =S3-T3+S3-U3+T3-U3 -> 0 | W3: =SPF_ACCSURPPR -> 0 | X3: =SPFREV_CLOSESURPPR -> 0 | Y3: =W3-X3 -> 0 | Z3: =CAP_NETTCAPR -> 0 | AA3: =TCA_NETTCAPR -> 0 | AB3: =Z3-AA3 -> 0 | AC3: =TCA_ASSETOPEN -> 0 | AD3: =TCA_ASSETCLOSEPR -> 0 | AE3: =AC3-AD3 -> 0 | AF3: =TCA_AMORTOPEN -> 0 | AG3: =TCA_AMORTCLOSEPR -> 0 | AH3: =AF3-AG3 -> 0
A4: DIVNAME | B4: =IF(B33=1,"",VLOOKUP($B$33,$D$4:$H$42,2)) ->  | D4: 1 | E4: Press down arrow for School Division name -> | F4: Address1 | G4: Address2
A5: Address1 | B5: =VLOOKUP($B$33,$D$4:$H$42,3) -> Address1 | D5: 2 | E5: Beautiful Plains School Division | F5: P.O. BOX 700 | G5: NEEPAWA, MANITOBA R0J 1H0 | H5: BE | K5: 9938480.47 | L5: 9938480.84 | M5: 9938480.84 | N5: =K5-L5 -> -0.3700000085 | O5: 1842410 | P5: 1842410.68 | Q5: 1842410.68 | R5: =O5-P5 -> -0.6800000072 | S5: 7821946.47 | T5: 7821946.16 | U5: 7821946.16 | V5: =S5-T5 -> 0.3099999987 | W5: 274124 | X5: 274124 | Y5: =W5-X5 -> 0 | Z5: 35289668.47 | AA5: 35289668.47 | AB5: =Z5-AA5 -> 0 | AC5: 59190750.47 | AD5: 59190750.47 | AE5: =AC5-AD5 -> 0 | AF5: 23901082 | AG5: 23901082 | AH5: =AF5-AG5 -> 0
A6: Address2 | B6: =VLOOKUP($B$33,$D$4:$H$42,4) -> Address2 | D6: 3 | E6: Border Land School Division | F6: 120-9th Street NW | G6: Altona, MANITOBA R0G 0B1 | H6: BO | K6: 15033727.23 | L6: 15033727.19 | M6: 15033727.19 | N6: =K6-L6 -> 0.04009050317 | O6: 1328005 | P6: 1328005.27 | Q6: 1328005.27 | R6: =O6-P6 -> -0.2699094992 | S6: 13320263.23 | T6: 13320263.36 | U6: 13320263.36 | V6: =S6-T6 -> -0.1299999971 | W6: 385459 | X6: 385458.56 | Y6: =W6-X6 -> 0.44 | Z6: 22152798.23 | AA6: 22152798.23 | AB6: =Z6-AA6 -> 0 | AC6: 53293006.23 | AD6: 53293006.23 | AE6: =AC6-AD6 -> 0 | AF6: 31140208 | AG6: 31140208 | AH6: =AF6-AG6 -> 0
D7: 4 | E7: Brandon School Division | F7: 1031 - 6th STREET | G7: BRANDON, MANITOBA R7A 4K5 | H7: BR | K7: 24879523 | L7: 24879522.75 | M7: 24879522.75 | N7: 0.2499999925 | O7: 2184722 | P7: 2184722 | Q7: 2184722 | R7: 0 | S7: 20188077.67 | T7: 20188077.67 | U7: 20188077.67 | V7: 0 | W7: 2506723 | X7: 2506723 | Y7: 0 | Z7: 73662063.67 | AA7: 73662063.67 | AB7: 0 | AC7: 137038805.6 | AD7: 137038805.6 | AE7: 0 | AF7: 63376741.95 | AG7: 63376741.95 | AH7: 0
A8: Title | B8: =IF(A40=1,"March 31, "&TEXT(B14,"0")&" Financial Information","États financiers Mars 31 "&TEXT(B14,"0")) -> March 31, 2022 Financial Information | D8: 5 | E8: la Division scolaire franco-manitobaine | F8: C.P. 204, 485, CHEMIN DAWSON | G8: LORETTE, MANITOBA R0A 0Y0 | H8: DI | K8: 57757124.57 | L8: 57757124.23 | M8: 57757124.23 | N8: 0.3384166509 | O8: 8283388.81 | P8: 8283388.81 | Q8: 8283388.81 | R8: -1.769512892e-08 | S8: 48813779.99 | T8: 48813779.84 | U8: 48813779.84 | V8: 0.1510992199 | W8: 659955.85 | X8: 659955.79 | Y8: 0.06000000017 | Z8: 107711513 | AA8: 107711513 | AB8: 0 | AC8: 160153023 | AD8: 160153023 | AE8: 0 | AF8: 52441510.05 | AG8: 52441510.05 | AH8: 0
D9: 6 | E9: Evergreen School Division | F9: P.O. BOX 1200 | G9: GIMLI, MANITOBA R0C 1B0 | H9: EV | K9: 14090090 | L9: 14090090 | M9: 14090090 | N9: 0 | O9: 3198049 | P9: 3198049 | Q9: 3198049 | R9: 0 | S9: 10544654 | T9: 10544654 | U9: 10544654 | V9: 0 | W9: 347387 | X9: 347387 | Y9: 0 | Z9: 21717339 | AA9: 21717339 | AB9: 0 | AC9: 48605572 | AD9: 48605572 | AE9: 0 | AF9: 26888233 | AG9: 26888233 | AH9: 0
A10: FOR | B10: =IF(A40=1,"For the Year Ended March 31, "&TEXT(B14,"0"),"pour l'exercice se terminant le 31 Mars "&TEXT(B14,"0")) -> For the Year Ended March 31, 2022 | D10: 7 | E10: Flin Flon School Division | F10: 9 TERRACE AVENUE | G10: FLIN FLON, MANITOBA R8A 1S2 | H10: FL | K10: 3942613 | L10: 3942613.05 | M10: 3942613.05 | N10: -0.04999999981 | O10: 1636257 | P10: 1636257.43 | Q10: 1636257.43 | R10: -0.4299999997 | S10: 2221403 | T10: 2221403 | U10: 2221403 | V10: 0 | W10: 84953 | X10: 84952.62 | Y10: 0.3800000001 | Z10: 9786118 | AA10: 9786118 | AB10: 0 | AC10: 20571901 | AD10: 20571901 | AE10: 0 | AF10: 10785783 | AG10: 10785783 | AH10: 0
A11: ForYr | B11: =B10 -> For the Year Ended March 31, 2022 | D11: 8 | E11: Fort La Bosse School Division | F11: P.O. BOX 1420 | G11: VIRDEN, MANITOBA R0M 2C0 | H11: FO | K11: 8296025 | L11: 8296024.54 | M11: 8296024.54 | N11: 0.4599999962 | O11: 1832614 | P11: 1832614 | Q11: 1832614 | R11: -3.725290298e-09 | S11: 5979049 | T11: 5979049 | U11: 5979049 | V11: 0 | W11: 484362 | X11: 484361.54 | Y11: 0.46 | Z11: 15640799 | AA11: 15640799 | AB11: 0 | AC11: 37817785 | AD11: 37817785 | AE11: 0 | AF11: 22176986 | AG11: 22176986 | AH11: 0
A12: Jun30 | B12: =IF(A40=1,"March 31, "&TEXT(B14,"0"),"Mars 31 "&TEXT(B14,"0")) -> March 31, 2022 | D12: 9 | E12: Frontier School Division | F12: 30 SPEERS ROAD | G12: WINNIPEG, MANITOBA R2J 1L9 | H12: FR | K12: 38476781.5 | L12: 38476781.75 | M12: 38476781.75 | N12: -0.2500000075 | O12: 2781118 | P12: 2781118.18 | Q12: 2781118.18 | R12: -0.1800000072 | S12: 35464585.44 | T12: 35464585.09 | U12: 35464585.09 | V12: 0.349999994 | W12: 231078 | X12: 231078 | Y12: 0 | Z12: 79386598.5 | AA12: 79386598.5 | AB12: 0 | AC12: 185039155 | AD12: 185039155 | AE12: 0 | AF12: 105652556.5 | AG12: 105652556.5 | AH12: 0
D13: 10 | E13: Garden Valley School Division | F13: BOX 1330, 750 TRIPLE E. BLVD | G13: WINKLER, MANITOBA R6W 4B3 | H13: GA | K13: 28426606 | L13: 28426606 | M13: 28426606 | N13: 0 | O13: 3007389 | P13: 3007389 | Q13: 3007389 | R13: 0 | S13: 25287974 | T13: 25287974 | U13: 25287974 | V13: 0 | W13: 131243 | X13: 131243 | Y13: 0 | Z13: 100828878 | AA13: 100828878 | AB13: 0 | AC13: 165087819 | AD13: 165087819 | AE13: 0 | AF13: 64258941 | AG13: 64258941 | AH13: 0
A14: YREND | B14: 2022 | D14: 11 | E14: Hanover School Division | F14: 5 CHRYSLER GATE | G14: STEINBACH, MANITOBA R5G 0E2 | H14: HA | K14: 31231295 | L14: 31231295 | M14: 31231295 | N14: 0 | O14: 2246253 | P14: 2246253 | Q14: 2246253 | R14: 0 | S14: 28435777 | T14: 28435777 | U14: 28435777 | V14: 0 | W14: 549265 | X14: 549265 | Y14: 0 | Z14: 128417690 | AA14: 128417690 | AB14: 0 | AC14: 202954128 | AD14: 202954128 | AE14: 0 | AF14: 74536438 | AG14: 74536438 | AH14: 0
A15: THISYR | B15: =IF(A40=1,TEXT(B25,"0")&"/"&RIGHT(TEXT(B14,"0"),2),TEXT(B25,"0")&"-"&RIGHT(TEXT(B14,"0"),2)) -> 2021/22 | D15: 12 | E15: Interlake School Division | F15: 192 - 2nd AVENUE NORTH | G15: STONEWALL, MANITOBA R0C 2Z0 | H15: IN | K15: 7219362 | L15: 7219362 | M15: 7219362 | N15: 0 | O15: 1622499 | P15: 1622499 | Q15: 1622499 | R15: 0 | S15: 5417280 | T15: 5417280 | U15: 5417280 | V15: 0 | W15: 179583 | X15: 179583 | Y15: 0 | Z15: 22737473 | AA15: 22737473 | AB15: 0 | AC15: 49166768.21 | AD15: 49166768.21 | AE15: 0 | AF15: 26429295.21 | AG15: 26429295.21 | AH15: 0
A16: LASTYR | B16: =IF(A40=1,TEXT(B25-1,"0")&"/"&RIGHT(TEXT(B25,"0"),2),TEXT(B25-1,"0")&"-"&RIGHT(TEXT(B25,"0"),2)) -> 2020/21 | D16: 13 | E16: Kelsey School Division | F16: P.O. BOX 4700 | G16: THE PAS, MANITOBA R9A 1R4 | H16: KE | K16: 19518150 | L16: 19518149.41 | M16: 19518149.41 | N16: 0.5899999999 | O16: 961252 | P16: 961252.41 | Q16: 961252.41 | R16: -0.4100000001 | S16: 18302357 | T16: 18302357 | U16: 18302357 | V16: 0 | W16: 254541 | X16: 254540.65 | Y16: 0.35 | Z16: 35087725 | AA16: 35087725 | AB16: 0 | AC16: 54033050 | AD16: 54033050 | AE16: 0 | AF16: 18945325 | AG16: 18945325 | AH16: 0
D17: 14 | E17: Lakeshore School Division | F17: P.O. BOX 100 | G17: ERIKSDALE, MANITOBA R0C 0W0 | H17: LA | K17: 7622115 | L17: 7622115.21 | M17: 7622115.21 | N17: -0.21 | O17: 1449770.4 | P17: 1449770 | Q17: 1449770 | R17: 0.4000000004 | S17: 5953316 | T17: 5953316.2 | U17: 5953316.2 | V17: -0.2000000002 | W17: 219029 | X17: 219029.01 | Y17: -0.01000000001 | Z17: 12119813 | AA17: 12119813 | AB17: 0 | AC17: 31625784 | AD17: 31625784 | AE17: 0 | AF17: 19505971 | AG17: 19505971 | AH17: 0
A18: DATE | B18: =IF(B29=TRUE,NOW(),"") -> 2022-04-27T11:41:17.460 | D18: 15 | E18: Lord Selkirk School Division | F18: 205 MERCY STREET | G18: SELKIRK, MANITOBA R1A 2C8 | H18: LO | K18: 15100675.47 | L18: 15100675.84 | M18: 15100675.84 | N18: -0.3669814765 | O18: 1857723 | P18: 1857723.46 | Q18: 1857723.46 | R18: -0.4599999997 | S18: 12878480.47 | T18: 12878480.38 | U18: 12878480.38 | V18: 0.09301852249 | W18: 364472 | X18: 364472 | Y18: 0 | Z18: 38713194.47 | AA18: 38713194.47 | AB18: 0 | AC18: 87990050.47 | AD18: 87990050.47 | AE18: 0 | AF18: 49276856 | AG18: 49276856 | AH18: 0
D19: 16 | E19: Louis Riel School Division | F19: 900 ST.MARY'S ROAD | G19: WINNIPEG, MANITOBA R2M 3R3 | H19: LR | K19: 42058578.8 | L19: 42058578.88 | M19: 42058578.88 | N19: -0.07999999821 | O19: 13551087 | P19: 13551086.8 | Q19: 13551086.8 | R19: 0.200000016 | S19: 26489430.8 | T19: 26489430.89 | U19: 26489430.89 | V19: -0.09000001848 | W19: 2018061 | X19: 2018061.19 | Y19: -0.1899999999 | Z19: 85067326.8 | AA19: 85067326.8 | AB19: 0 | AC19: 198492597.8 | AD19: 198492597.8 | AE19: 0 | AF19: 113425271 | AG19: 113425271 | AH19: 0
A20: ATSEP | B20: =IF(A40=1,"September 30, "&TEXT(B25,"0"),"Septembre 30 "&TEXT(B25,"0")) -> September 30, 2021 | D20: 17 | E20: Mountain View School Division | F20: BOX 715 | G20: DAUPHIN, MANITOBA R7N 3B3 | H20: MO | K20: 8829340 | L20: 8829340 | M20: 8829340 | N20: 0 | O20: 1248187 | P20: 1248187 | Q20: 1248187 | R20: 0 | S20: 7038952 | T20: 7038952 | U20: 7038952 | V20: 0 | W20: 542201 | X20: 542201 | Y20: 0 | Z20: 46755767 | AA20: 46755767 | AB20: 0 | AC20: 92675051 | AD20: 92675051 | AE20: 0 | AF20: 45919284 | AG20: 45919284 | AH20: 0
A21: ATJUN1 | B21: =IF(A40=1,"at March 31, "&TEXT(B25,"0"),"au Mars 31 "&TEXT(B25,"0")) -> at March 31, 2021 | D21: 18 | E21: Mystery Lake School District | F21: 408 THOMPSON DRIVE N. | G21: THOMPSON, MANITOBA R8N 0C5 | H21: MY | K21: 15233664.74 | L21: 15233663.29 | M21: 15233663.29 | N21: 1.449999977 | O21: 6452098.85 | P21: 6452098.6 | Q21: 6452098.6 | R21: 0.2499999618 | S21: 8656046.97 | T21: 8656047.44 | U21: 8656047.44 | V21: -0.4699999932 | W21: 125518 | X21: 125517.65 | Y21: 0.35 | Z21: 19871261.86 | AA21: 19871261.86 | AB21: 0 | AC21: 51913831.86 | AD21: 51913831.86 | AE21: 0 | AF21: 32042570 | AG21: 32042570 | AH21: 0
A22: ATJUN2 | B22: =IF(A40=1,"at March 31, "&TEXT(B24,"0"),"au Mars 31, "&TEXT(B24,"0")) -> at March 31, 2022 | D22: 19 | E22: Park West School Division | F22: P.O. BOX 68, 1161 ST. CLAIRE STREET | G22: BIRTLE, MANITOBA R0M 0C0 | H22: PA | K22: 4001042.155 | L22: 4001042.005 | M22: 4001042.005 | N22: 0.1500000078 | O22: 2281627 | P22: 2281626.79 | Q22: 2281626.79 | R22: 0.2100000102 | S22: 1151507.155 | T22: 1151507.375 | U22: 1151507.375 | V22: -0.2199999986 | W22: 567908 | X22: 567908 | Y22: 0 | Z22: 11172100.16 | AA22: 11172100.16 | AB22: 0 | AC22: 35868213.78 | AD22: 35868213.78 | AE22: 0 | AF22: 24696113.62 | AG22: 24696113.62 | AH22: 0
A23: ASAT | B23: =IF(A40=1,"as at March 31, "&TEXT(B24,"0"),"au 31 Mars "&TEXT(B24,"0")) -> as at March 31, 2022 | D23: 20 | E23: Pembina Trails School Division | F23: 181 HENLOW BAY | G23: WINNIPEG, MANITOBA R3Y 1M7 | H23: PE | K23: 56100048.15 | L23: 56100047.63 | M23: 56100047.63 | N23: 0.5180000141 | O23: 10663543.08 | P23: 10663543.08 | Q23: 10663543.08 | R23: 0 | S23: 44940679.15 | T23: 44940679.63 | U23: 44940679.63 | V23: -0.4799999818 | W23: 495825 | X23: 495825 | Y23: 0 | Z23: 116720611.1 | AA23: 116720611.1 | AB23: 0 | AC23: 210687424.5 | AD23: 210687424.5 | AE23: 0 | AF23: 93966813.37 | AG23: 93966813.37 | AH23: 0
A24: YEAR | B24: =B14 -> 2022 | D24: 21 | E24: Pine Creek School Division | F24: P.O. BOX 420 | G24: GLADSTONE, MANITOBA R0J 0T0 | H24: PI | K24: 3344600 | L24: 3344599.95 | M24: 3344599.95 | N24: 0.04999999749 | O24: 640457 | P24: 640457.06 | Q24: 640457.06 | R24: -0.06000000238 | S24: 2569321 | T24: 2569321 | U24: 2569321 | V24: 0 | W24: 134822 | X24: 134821.89 | Y24: 0.11 | Z24: 7043996 | AA24: 7043996 | AB24: 0 | AC24: 21171188 | AD24: 21171188 | AE24: 0 | AF24: 14127192 | AG24: 14127192 | AH24: 0
A25: YEAR_PR | B25: =VALUE(B24)-1 -> 2021 | D25: 22 | E25: Portage La Prairie School Division | F25: 535 - 3rd STREET N.W. | G25: PORTAGE LA PRAIRIE, MANITOBA R1N 2C4 | H25: PO | K25: 13575408.45 | L25: 13575408.64 | M25: 13575408.64 | N25: -0.1900000032 | O25: 2957583.5 | P25: 2957583.62 | Q25: 2957583.62 | R25: -0.1199999936 | S25: 10329879.45 | T25: 10329879.33 | U25: 10329879.33 | V25: 0.1199999955 | W25: 287946 | X25: 287946 | Y25: 0 | Z25: 25791363.45 | AA25: 25791363.45 | AB25: 0 | AC25: 58778300.45 | AD25: 58778300.45 | AE25: 0 | AF25: 32986937 | AG25: 32986937 | AH25: 0
D26: 23 | E26: Prairie Rose School Division | F26: 45 MAIN STREET S. | G26: CARMAN, MANITOBA R0G 0J0 | H26: PR | K26: 6629034 | L26: 6629036.87 | M26: 6629036.87 | N26: -2.870000001 | O26: 251772 | P26: 251772.46 | Q26: 251772.46 | R26: -0.4600000009 | S26: 6155229 | T26: 6155231.41 | U26: 6155231.41 | V26: -2.41 | W26: 222033 | X26: 222033 | Y26: 0 | Z26: 18167364 | AA26: 18167364 | AB26: 0 | AC26: 43073959 | AD26: 43073959 | AE26: 0 | AF26: 24906595 | AG26: 24906595 | AH26: 0
A27: YESNO | B27: FALSE | D27: 24 | E27: Prairie Spirit School Division | F27: Box 130 15 Lorne Avenue | G27: Swan Lake, Manitoba R0G 2S0 | H27: PS | K27: 9333077 | L27: 9333077 | M27: 9333077 | N27: 0 | O27: 1950594 | P27: 1950594 | Q27: 1950594 | R27: 0 | S27: 7044283 | T27: 7044283 | U27: 7044283 | V27: 0 | W27: 338200 | X27: 338200 | Y27: 0 | Z27: 10121806 | AA27: 10121806 | AB27: 0 | AC27: 42160692 | AD27: 42160692 | AE27: 0 | AF27: 32038886 | AG27: 32038886 | AH27: 0
A28: YESNO2 | B28: TRUE | D28: 25 | E28: Red River Valley School Division | F28: P.O. BOX 400 | G28: MORRIS, MANITOBA R0G 1K0 | H28: RE | K28: 10089826.36 | L28: 10089826.39 | M28: 10089826.39 | N28: -0.03000000492 | O28: 1823438 | P28: 1823437.84 | Q28: 1823437.84 | R28: 0.1599999964 | S28: 8097615.36 | T28: 8097615.37 | U28: 8097615.37 | V28: -0.01000000164 | W28: 168773 | X28: 168773.18 | Y28: -0.18 | Z28: 24634003.36 | AA28: 24634003.36 | AB28: 0 | AC28: 51560857.86 | AD28: 51560857.86 | AE28: 0 | AF28: 26926854.5 | AG28: 26926854.5 | AH28: 0
A29: YESNO3 | B29: TRUE | D29: 26 | E29: River East Transcona School Division | F29: 589 ROCH STREET | G29: WINNIPEG, MANITOBA R2K 2P7 | H29: RI | K29: 41835043 | L29: 41835043 | M29: 41835043 | N29: 0 | O29: 12512411 | P29: 12512411 | Q29: 12512411 | R29: 0 | S29: 29111978 | T29: 29111978 | U29: 29111978 | V29: 0 | W29: 210654 | X29: 210654 | Y29: 0 | Z29: 107207793 | AA29: 107207793 | AB29: 0 | AC29: 230517775 | AD29: 230517775 | AE29: 0 | AF29: 123309982 | AG29: 123309982 | AH29: 0
A30: YESNO4 | B30: FALSE | D30: 27 | E30: Rolling River School Division | F30: P.O. BOX 1170 | G30: MINNEDOSA, MANITOBA R0J 1E0 | H30: RO | K30: 9102627 | L30: 9102627 | M30: 9102627 | N30: 0 | O30: 1533722 | P30: 1533722 | Q30: 1533722 | R30: 0 | S30: 7334647 | T30: 7334647 | U30: 7334647 | V30: 0 | W30: 234258 | X30: 234258 | Y30: 0 | Z30: 11047588 | AA30: 11047588 | AB30: 0 | AC30: 34082893 | AD30: 34082893 | AE30: 0 | AF30: 23035305 | AG30: 23035305 | AH30: 0
D31: 28 | E31: Seine River School Division | F31: 475-A SENEZ STREET | G31: LORETTE, MANITOBA R0A 0Y0 | H31: SE | K31: 14642108 | L31: 14642108 | M31: 14642108 | N31: 0 | O31: 2624169 | P31: 2624168.56 | Q31: 2624168.56 | R31: 0.4399999999 | S31: 11757660 | T31: 11757660.44 | U31: 11757660.44 | V31: -0.4399999995 | W31: 260279 | X31: 260279 | Y31: 0 | Z31: 46042374 | AA31: 46042374 | AB31: 0 | AC31: 86133954 | AD31: 86133954 | AE31: 0 | AF31: 40091580 | AG31: 40091580 | AH31: 0
D32: 29 | E32: Seven Oaks School Division | F32: 830 POWERS STREET | G32: WINNIPEG, MANITOBA R2V 4E7 | H32: SO | K32: 61697546.83 | L32: 61697547.33 | M32: 61697547.33 | N32: -0.4999999851 | O32: 4079957 | P32: 4079957 | Q32: 4079957 | R32: 0 | S32: 57435181.33 | T32: 57435181.33 | U32: 57435181.33 | V32: 0 | W32: 182409 | X32: 182409 | Y32: 0 | Z32: 181891971.8 | AA32: 181891971.8 | AB32: 0 | AC32: 268362054 | AD32: 268362054 | AE32: 0 | AF32: 86470082.17 | AG32: 86470082.17 | AH32: 0
A33: DIVNUM | B33: 1 | D33: 30 | E33: Southwest Horizon School Division | F33: P.O. BOX 370 | G33: MELITA, MANITOBA R0M 1L0 | H33: SR | K33: 12292760 | L33: 12292760 | M33: 12292760 | N33: 0 | O33: 2106862 | P33: 2106862 | Q33: 2106862 | R33: 0 | S33: 9903671 | T33: 9903671 | U33: 9903671 | V33: 0 | W33: 282227 | X33: 282227 | Y33: 0 | Z33: 19852003 | AA33: 19852003 | AB33: 0 | AC33: 44828206 | AD33: 44828206 | AE33: 0 | AF33: 24976203 | AG33: 24976203 | AH33: 0
D34: 31 | E34: St. James - Assiniboia School Division | F34: 2574 PORTAGE AVENUE | G34: WINNIPEG, MANITOBA R3J 0H8 | H34: ST | K34: 38837473.84 | L34: 38837473.84 | M34: 38837473.84 | N34: 0 | O34: 3820876 | P34: 3820876 | Q34: 3820876 | R34: 0 | S34: 34231693.84 | T34: 34231693.84 | U34: 34231693.84 | V34: 0 | W34: 784904 | X34: 784904 | Y34: 0 | Z34: 59519849.84 | AA34: 59519849.84 | AB34: 0 | AC34: 131169900 | AD34: 131169900 | AE34: 0 | AF34: 71650050.16 | AG34: 71650050.16 | AH34: 0
A35: DIVCODE | B35: =VLOOKUP(B33,D4:H42,5) -> 0 | D35: 32 | E35: Sunrise School Division | F35: P.O. BOX 1206 | G35: BEAUSEJOUR, MANITOBA R0E 0C0 | H35: SU | K35: 20284713 | L35: 20284713 | M35: 20284713 | N35: 0 | O35: 5457245 | P35: 5457245 | Q35: 5457245 | R35: 0 | S35: 14400993 | T35: 14400993 | U35: 14400993 | V35: 0 | W35: 426475 | X35: 426475 | Y35: 0 | Z35: 45850657 | AA35: 45850657 | AB35: 0 | AC35: 102904000 | AD35: 102904000 | AE35: 0 | AF35: 57053343 | AG35: 57053343 | AH35: 0
D36: 33 | E36: Swan Valley School Division | F36: P.O. BOX 995, 431 3rd STREET N. | G36: SWAN RIVER, MANITOBA R0L 1Z0 | H36: SW | K36: 7559304 | L36: 7559304.82 | M36: 7559304.82 | N36: -0.8200000003 | O36: 1446388 | P36: 1446387.51 | Q36: 1446387.51 | R36: 0.4899999998 | S36: 5831947.45 | T36: 5831947.9 | U36: 5831947.9 | V36: -0.4500000011 | W36: 280969 | X36: 280969 | Y36: 0 | Z36: 19228850 | AA36: 19228850 | AB36: 0 | AC36: 40723238 | AD36: 40723238 | AE36: 0 | AF36: 21494388 | AG36: 21494388 | AH36: 0
D37: 34 | E37: Turtle Mountain School Division | F37: P.O. BOX 280 | G37: KILLARNEY, MANITOBA R0K 1G0 | H37: TM | K37: 3490734 | L37: 3490734 | M37: 3490734 | N37: 0 | O37: 2197634.03 | P37: 2197634 | Q37: 2197634 | R37: 0.0299999998 | S37: 1231730 | T37: 1231730 | U37: 1231730 | V37: 0 | W37: 61370 | X37: 61370 | Y37: 0 | Z37: 11641399 | AA37: 11641399 | AB37: 0 | AC37: 22830302 | AD37: 22830302 | AE37: 0 | AF37: 11188903 | AG37: 11188903 | AH37: 0
A38: English | D38: 35 | E38: Turtle River School Division | F38: P.O. BOX 309 | G38: MC CREARY, MANITOBA R0J 1B0 | H38: TR | K38: 4305717 | L38: 4305717 | M38: 4305717 | N38: 0 | O38: 971836 | P38: 971836 | Q38: 971836 | R38: 0 | S38: 3177743 | T38: 3177743 | U38: 3177743 | V38: 0 | W38: 156138 | X38: 156138 | Y38: 0 | Z38: 6178125 | AA38: 6178125 | AB38: 0 | AC38: 18135215 | AD38: 18135215 | AE38: 0 | AF38: 11957090 | AG38: 11957090 | AH38: 0
A39: French | D39: 36 | E39: Western School Division | F39: UNIT 4-75 THORNHILL | G39: MORDEN, MANITOBA R6M 1P2 | H39: WE | K39: 5987269 | L39: 5987269 | M39: 5987269 | N39: 0 | O39: 971123 | P39: 971123 | Q39: 971123 | R39: 0 | S39: 4899416 | T39: 4899416 | U39: 4899416 | V39: 0 | W39: 116730 | X39: 116730 | Y39: 0 | Z39: 14156935 | AA39: 14156935 | AB39: 0 | AC39: 30531413 | AD39: 30531413 | AE39: 0 | AF39: 16374478 | AG39: 16374478 | AH39: 0
A40: 1 | D40: 37 | E40: Winnipeg School Division | F40: 1577 WALL STREET EAST | G40: WINNIPEG, MANITOBA R3E 2S5 | H40: WI | K40: 90468397 | L40: 90468397 | M40: 90468397 | N40: 0 | O40: -939094 | P40: -939094 | Q40: -939094 | R40: 0 | S40: 87571011 | T40: 87571011 | U40: 87571011 | V40: 0 | W40: 3836480 | X40: 3836480 | Y40: 0 | Z40: 254456397 | AA40: 254456397 | AB40: 0 | AC40: 460190375 | AD40: 460190375 | AE40: 0 | AF40: 205733978 | AG40: 205733978 | AH40: 0
D41: 38 | E41: Manitoba Institute of Trades and Technology | F41: 130 HENLOW BAY | G41: WINNIPEG, MANITOBA R3Y 1G4 | H41: WT | K41: 15088843.71 | L41: 15088843.71 | M41: 15088843.71 | N41: 0 | O41: 10780659 | P41: 10780659 | Q41: 10780659 | R41: 0 | S41: 4308184.71 | T41: 4308184.71 | U41: 4308184.71 | V41: 0 | W41: 0 | X41: 0 | Y41: 0 | Z41: 8752321.71 | AA41: 8752321.71 | AB41: 0 | AC41: 23653195 | AD41: 23653195 | AE41: 0 | AF41: 14900873.29 | AG41: 14900873.29 | AH41: 0
D42: 39 | E42: Whiteshell School District | F42: P.O. BOX 130 | G42: PINAWA, MANITOBA R0E 1L0 | H42: XW | K42: 2128916 | L42: 2128915.67 | M42: 2128915.67 | N42: 0.3300000001 | O42: 1277359 | P42: 1277359 | Q42: 1277359 | R42: 0 | S42: 833889 | T42: 833889 | U42: 833889 | V42: 0 | W42: 17668 | X42: 17667.67 | Y42: 0.33 | Z42: 716736 | AA42: 716736 | AB42: 0 | AC42: 3696431 | AD42: 3696431 | AE42: 0 | AF42: 2979695 | AG42: 2979695 | AH42: 0
D47: PAGE | E47: CONS Fin Pos | F47: use Mar31-xxPROVINCIAL SUMMARY
F48: copy & paste values
E50: MANITOBA PUBLIC SCHOOL DIVISIONS | K50: THE CELLS HIGH LITED IN YELLOW ARE REFERENCED TO SCHOOL DIVISION STATEMENT FILES.
E51: CONSOLIDATED FINANCIAL POSITION | K51: The cells high lited in yellow have been "copy - paste special - values" for this spreadsheet
E52: As at March 31, 2021 | I52: FORMULAS
I53: =B33 -> 1 | K53: 2 | L53: =K53+1 -> 3 | M53: =L53+1 -> 4 | N53: =M53+1 -> 5 | O53: 6 | P53: 7 | Q53: =P53+1 -> 8 | R53: 9 | S53: 10 | T53: =S53+1 -> 11 | U53: 12 | V53: 13 | W53: 14 | X53: 15 | Y53: 16 | Z53: 17 | AA53: 18 | AB53: 19 | AC53: 20 | AD53: 21 | AE53: 22 | AF53: 23 | AG53: 24 | AH53: 25 | AI53: 26 | AJ53: 27 | AK53: 28 | AL53: 29 | AM53: 30 | AN53: 31 | AO53: 32 | AP53: 33 | AQ53: 34 | AR53: 35 | AS53: 36 | AT53: 37 | AU53: 38 | AV53: 39 | AW53: 40
I54: =HLOOKUP(B33,$K$53:$AW$88,J54,FALSE) ->  | J54: 2 | K54: BE | L54: BO | M54: BR | N54: DI | O54: EV | P54: FL | Q54: FO | R54: FR | S54: GA | T54: HA | U54: IN | V54: KE | W54: LA | X54: LO | Y54: LR | Z54: MO | AA54: MY | AB54: PA | AC54: PE | AD54: PI | AE54: PO | AF54: PR | AG54: PS | AH54: RE | AI54: RI | AJ54: RO | AK54: SE | AL54: SO | AM54: SR | AN54: ST | AO54: SU | AP54: SW | AQ54: TM | AR54: TR | AS54: WE | AT54: WI | AU54: WT | AV54: XW | AW54: TOTAL
E55: Financial Assets | J55: =J54+1 -> 3
F56: Cash and Bank | I56: =IF($I$53=1,0,HLOOKUP($I$53,$K$53:$AW$88,J56,FALSE)) -> 0 | J56: 4 | K56: 3404200 | L56: 3959916 | M56: 18613672 | N56: 35217978.2 | O56: 4533620 | P56: 3655987 | Q56: 611367 | R56: 0 | S56: 6780383 | T56: 13928444 | U56: 4863974 | V56: 1491201 | W56: 3278126 | X56: 2892365 | Y56: 5602942 | Z56: 1800282 | AA56: 16764017.4 | AB56: 0 | AC56: 23980665.73 | AD56: 2732391 | AE56: 7905509.84 | AF56: 2110361 | AG56: 3991619 | AH56: 1212422 | AI56: 28148130 | AJ56: 411579 | AK56: 4415652 | AL56: 14846135 | AM56: 5969015 | AN56: 18495170 | AO56: 3305308 | AP56: 6483782 | AQ56: 2258216 | AR56: 4620034 | AS56: 640942 | AT56: 35383440 | AU56: 19150770 | AV56: 1507143 | AW56: =SUM($K56:AV56) -> 314966759.2
F57: Due from | G57: - Provincial Government | I57: 0 | J57: 5 | K57: 1070506 | L57: 1995198 | M57: 4135703 | N57: 3719815.03 | O57: 1918365 | P57: 664674 | Q57: 853261 | R57: 2024077 | S57: 3217429 | T57: 4319762 | U57: 1657464 | V57: 1065590 | W57: 688513 | X57: 3394022 | Y57: 12290059 | Z57: 2074619 | AA57: 1117629.76 | AB57: 965433 | AC57: 9843854 | AD57: 580905 | AE57: 1582294 | AF57: 1797382 | AG57: 950979 | AH57: 1374689 | AI57: 9632883 | AJ57: 1082964 | AK57: 2385510 | AL57: 7240374 | AM57: 952981 | AN57: 2961661 | AO57: 4568324 | AP57: 1072126.45 | AQ57: 615611 | AR57: 352804 | AS57: 931236 | AT57: 15466463 | AU57: 805211 | AV57: 0 | AW57: =SUM($K57:AV57) -> 111370371.2
G58: - Federal Government | I58: 0 | J58: 6 | K58: 25309 | L58: 86709 | M58: 43345 | N58: 495806.68 | O58: 311878 | P58: 14300 | Q58: 80945 | R58: 748435 | S58: 74352 | T58: 171324 | U58: 5330 | V58: 0 | W58: 20637.4 | X58: 20454 | Y58: 296371 | Z58: 129019 | AA58: 40982.17 | AB58: 45371 | AC58: 202592.15 | AD58: 150176 | AE58: 57271 | AF58: 70011 | AG58: 106258 | AH58: 67822 | AI58: 428993 | AJ58: 27457 | AK58: 217162 | AL58: 408107 | AM58: 66613 | AN58: 121318 | AO58: 103615 | AP58: 113478 | AQ58: 18449.03 | AR58: 25134 | AS58: 71974 | AT58: 1126047 | AU58: 299465 | AV58: 3706 | AW58: =SUM($K58:AV58) -> 6296216.43
G59: - Municipal Government | I59: 0 | J59: 7 | K59: 2036873 | L59: 3872594 | M59: 11423074 | N59: 8507964.45 | O59: 2451762 | P59: 927030 | Q59: 2398597 | R59: 853174 | S59: 4300356 | T59: 8490734 | U59: 4108533 | V59: 1277977 | W59: 1188632 | X59: 7744962 | Y59: 24235995 | Z59: 4119609 | AA59: 2142579.6 | AB59: 2358763 | AC59: 26702540 | AD59: 1678798 | AE59: 4095203 | AF59: 3232699 | AG59: 3457065 | AH59: 4615599 | AI59: 20645294 | AJ59: 2960062 | AK59: 5197762 | AL59: 14792787 | AM59: 2572004 | AN59: 16938943 | AO59: 8883120 | AP59: 1795461 | AQ59: 1882582 | AR59: 714551 | AS59: 2262011 | AT59: 50241534 | AU59: 0 | AV59: 8339 | AW59: =SUM($K59:AV59) -> 265115563.1
G60: - Other School Divisions | I60: 0 | J60: 8 | K60: 0 | L60: 220306 | M60: 33608 | N60: 530803 | O60: 10920 | P60: 0 | Q60: 0 | R60: 0 | S60: 255617 | T60: 8375 | U60: 0 | V60: 0 | W60: 2256 | X60: 0 | Y60: 92862 | Z60: 57945 | AA60: 0 | AB60: 0 | AC60: 247785.98 | AD60: 0 | AE60: 0 | AF60: 0 | AG60: 2286 | AH60: 135730 | AI60: 0 | AJ60: 0 | AK60: 490 | AL60: 0 | AM60: 0 | AN60: 0 | AO60: 0 | AP60: 4200 | AQ60: 0 | AR60: 0 | AS60: 0 | AT60: 194603 | AU60: 335970 | AV60: 0 | AW60: =SUM($K60:AV60) -> 2133756.98
G61: - First Nations | I61: 0 | J61: 9 | K61: 0 | L61: 14632 | M61: 49200 | N61: 0 | O61: 198000 | P61: 0 | Q61: 177691 | R61: 28012035 | S61: 0 | T61: 0 | U61: 0 | V61: 10800 | W61: 23265 | X61: 12100 | Y61: 0 | Z61: 327108 | AA61: -1258 | AB61: 4514072 | AC61: 0 | AD61: 0 | AE61: 0 | AF61: 0 | AG61: 48844 | AH61: 0 | AI61: 22325 | AJ61: 451859 | AK61: 0 | AL61: 498900 | AM61: 0 | AN61: 43200 | AO61: 26311 | AP61: 0 | AQ61: 0 | AR61: 0 | AS61: 0 | AT61: 714572 | AU61: 0 | AV61: 0 | AW61: =SUM($K61:AV61) -> 35143656
F62: Accounts Receivable | I62: 0 | J62: 10 | K62: 21697 | L62: 127489 | M62: 97344 | N62: 92976.65 | O62: 80503 | P62: 111681 | Q62: 30782 | R62: 1487295 | S62: 32235 | T62: 152183 | U62: 103957 | V62: 33960 | W62: 21936 | X62: 106353 | Y62: 710989 | Z62: 49738 | AA62: 32065.39 | AB62: 1840924 | AC62: 428737 | AD62: 230638 | AE62: 199874 | AF62: 45315 | AG62: 106708 | AH62: 24814 | AI62: 392464 | AJ62: 28122 | AK62: 57498 | AL62: 242497 | AM62: 18467 | AN62: 105097 | AO62: 123237 | AP62: 59712 | AQ62: 18171 | AR62: 11701 | AS62: 54416 | AT62: 1095571 | AU62: 1041563 | AV62: 296 | AW62: =SUM($K62:AV62) -> 9419006.04
F63: Accrued Investment Income | I63: 0 | J63: 11 | K63: 0 | L63: 0 | M63: 0 | N63: 0 | O63: 12 | P63: 0 | Q63: 0 | R63: 0 | S63: 0 | T63: 0 | U63: 630 | V63: 0 | W63: 0 | X63: 0 | Y63: 0 | Z63: 0 | AA63: 0 | AB63: 0 | AC63: 0 | AD63: 0 | AE63: 0 | AF63: 0 | AG63: 0 | AH63: 0 | AI63: 0 | AJ63: 0 | AK63: 0 | AL63: 0 | AM63: 0 | AN63: 0 | AO63: 0 | AP63: 0 | AQ63: 0 | AR63: 0 | AS63: 0 | AT63: 170 | AU63: 9191 | AV63: 0 | AW63: =SUM($K63:AV63) -> 10003
F64: Portfolio Investments | I64: 0 | J64: =J63+1 -> 12 | K64: 0 | L64: 0 | M64: 0 | N64: 50663.67 | O64: 15000 | P64: 0 | Q64: 65823 | R64: 0 | S64: 0 | T64: 0 | U64: 0 | V64: 0 | W64: 0 | X64: 0 | Y64: 0 | Z64: 27859 | AA64: 0 | AB64: 0 | AC64: 0 | AD64: 0 | AE64: 0 | AF64: 0 | AG64: 0 | AH64: 0 | AI64: 0 | AJ64: 0 | AK64: 0 | AL64: 0 | AM64: 0 | AN64: 0 | AO64: 501949 | AP64: 0 | AQ64: 0 | AR64: 0 | AS64: 0 | AT64: 5548935 | AU64: 10848381 | AV64: 0 | AW64: =SUM($K64:AV64) -> 17058610.67
I65: 0 | J65: =J64+1 -> 13 | K65: =SUM(K56:K64) -> 6558585 | L65: =SUM(L56:L64) -> 10276844 | M65: =ROUND(SUM(M56:M64),0) -> 34395946 | N65: 48616008 | O65: 9520060 | P65: 5373672 | Q65: 4218466 | R65: 33125016 | S65: 14660372 | T65: 27070822 | U65: 10739888 | V65: =SUM(V56:V64) -> 3879528 | W65: 5223365.4 | X65: 14170256 | Y65: 43229218 | Z65: 8586179 | AA65: 20096016.32 | AB65: 9724563 | AC65: 61406174.86 | AD65: 5372908 | AE65: 13840151.84 | AF65: 7255768 | AG65: 8663759 | AH65: 7431076 | AI65: 59270089 | AJ65: 4962043 | AK65: 12274074 | AL65: 38028800 | AM65: 9579080 | AN65: 38665389 | AO65: 17511864 | AP65: 9528759.45 | AQ65: 4793029.03 | AR65: 5724224 | AS65: 3960579 | AT65: 109771335 | AU65: 32490551 | AV65: 1519484 | AW65: 761513942.6
E66: Liabilities | J66: 14
F67: Overdraft | I67: =IF($I$53=1,0,HLOOKUP($I$53,$K$53:$AW$88,J67,FALSE)) -> 0 | J67: 15 | K67: 0 | L67: 0 | M67: 0 | N67: 0 | O67: 0 | P67: 0 | Q67: 0 | R67: 502536 | S67: 0 | T67: 0 | U67: 0 | V67: 0 | W67: 0 | X67: 0 | Y67: 0 | Z67: 0 | AA67: 0 | AB67: 1514985 | AC67: 0 | AD67: 0 | AE67: 0 | AF67: 0 | AG67: 0 | AH67: 0 | AI67: 0 | AJ67: 0 | AK67: 0 | AL67: 0 | AM67: 0 | AN67: 0 | AO67: 0 | AP67: 0 | AQ67: 0 | AR67: 0 | AS67: 0 | AT67: 0 | AU67: 0 | AV67: 0 | AW67: =SUM($K67:AV67) -> 2017521
F68: Accounts Payable | I68: 0 | J68: 16 | K68: 430897 | L68: 637332 | M68: 1274328 | N68: 2323154.73 | O68: 673640 | P68: 409047 | Q68: 347256 | R68: 14177994 | S68: 1679906 | T68: 2358010 | U68: -1006 | V68: 755634 | W68: 657792 | X68: 1817375 | Y68: 7219155 | Z68: 1302674 | AA68: 507424.2 | AB68: 1370736 | AC68: 4844501 | AD68: 1185316 | AE68: 233984.34 | AF68: 684568 | AG68: 3254989 | AH68: 269625 | AI68: 2020188 | AJ68: 573144 | AK68: 1098793 | AL68: 2012788 | AM68: 2670475 | AN68: 4939684 | AO68: 1503476 | AP68: 463153 | AQ68: 294039 | AR68: 169411 | AS68: 165317 | AT68: 11566598 | AU68: 721160 | AV68: 1590 | AW68: =SUM($K68:AV68) -> 76614148.27
F69: Accrued Liabilities | I69: 0 | J69: 17 | K69: 2375999 | L69: 3633867 | M69: 16964312 | N69: 7917853.76 | O69: 2414441 | P69: 1859590 | Q69: 1086064 | R69: 11550944 | S69: 6946657 | T69: 11798220 | U69: 5510237 | V69: 1433335 | W69: 1495251 | X69: 6161306 | Y69: 15610799 | Z69: 4369241 | AA69: 6678871.03 | AB69: 2072583 | AC69: 18403579.75 | AD69: 1803556 | AE69: 4393697 | AF69: 3841236 | AG69: 1308131 | AH69: 3501768 | AI69: 26035255 | AJ69: 1156913 | AK69: 6421447 | AL69: 18745435 | AM69: 945374 | AN69: 13487550 | AO69: 6783504 | AP69: 2714810 | AQ69: 403568 | AR69: 1100288 | AS69: 2747383 | AT69: 62101294 | AU69: 1114573 | AV69: 91964 | AW69: =SUM($K69:AV69) -> 286980896.5
F70: Employee Future Benefits | I70: 0 | J70: 18 | K70: 46223 | L70: 0 | M70: 1901632 | N70: 1430584.46 | O70: 122062 | P70: 163391 | Q70: 48105 | R70: 946877 | S70: 0 | T70: 986732 | U70: 1534119 | V70: 98075 | W70: 95178 | X70: 314171 | Y70: 1791507 | Z70: 489494 | AA70: 5172520.65 | AB70: 60123 | AC70: 2450964.65 | AD70: 159677 | AE70: 164319 | AF70: 247864 | AG70: 285330 | AH70: 115060 | AI70: 1957390 | AJ70: 194095 | AK70: 248711 | AL70: 686089 | AM70: 0 | AN70: 2059683 | AO70: 954734 | AP70: 295165 | AQ70: 47382 | AR70: 55919 | AS70: 0 | AT70: 6036208 | AU70: 0 | AV70: 0 | AW70: =SUM($K70:AV70) -> 31159384.76
F71: Accrued Interest Payable | I71: 0 | J71: 19 | K71: 444005 | L71: 162827 | M71: 781682 | N71: 773667.2798 | O71: 259362 | P71: 126892 | Q71: 219273 | R71: 776882.06 | S71: 1297759 | T71: 1442644 | U71: 293789 | V71: 296091 | W71: 158951 | X71: 490355 | Y71: 681830 | Z71: 585516 | AA71: 201789.37 | AB71: 218839 | AC71: 1236754 | AD71: 81946 | AE71: 231251 | AF71: 165679 | AG71: 95721 | AH71: 224099 | AI71: 1035926 | AJ71: 108171 | AK71: 554570 | AL71: 1263630.5 | AM71: 214741 | AN71: 430481 | AO71: 450019 | AP71: 260282 | AQ71: 149211 | AR71: 77066 | AS71: 198360 | AT71: 1902968 | AU71: 109440 | AV71: 0 | AW71: =SUM($K71:AV71) -> 18002469.21
F72: Due to | G72: - Provincial Government | I72: 0 | J72: 20 | K72: 0 | L72: 6716 | M72: 186656 | N72: 353127.45 | O72: 0 | P72: 0 | Q72: 0 | R72: 422453 | S72: 2824 | T72: 60472 | U72: 0 | V72: 0 | W72: 0 | X72: 0 | Y72: 4507 | Z72: 0 | AA72: 2121.47 | AB72: 0 | AC72: 361463.93 | AD72: 0 | AE72: 62210 | AF72: 15645 | AG72: 0 | AH72: 1836 | AI72: 16580 | AJ72: 0 | AK72: 157233 | AL72: 217687 | AM72: 0 | AN72: 2520972 | AO72: 0 | AP72: 36573 | AQ72: 0 | AR72: 2337 | AS72: 32843 | AT72: 1903779 | AU72: 0 | AV72: 0 | AW72: =SUM($K72:AV72) -> 6368035.85
G73: - Federal Government | I73: 0 | J73: 21 | K73: 0 | L73: 201381 | M73: 2089468 | N73: 3201585.73 | O73: 26192 | P73: 0 | Q73: 0 | R73: 0 | S73: 2107 | T73: 0 | U73: 0 | V73: 0 | W73: 0 | X73: 1308 | Y73: 4011 | Z73: 0 | AA73: 118.69 | AB73: 0 | AC73: 2004693 | AD73: 0 | AE73: 500038 | AF73: 0 | AG73: 0 | AH73: 5372 | AI73: 0 | AJ73: 0 | AK73: 601160 | AL73: 1334117 | AM73: 0 | AN73: 0 | AO73: 0 | AP73: 219771 | AQ73: 0 | AR73: 0 | AS73: 33128 | AT73: 7715620 | AU73: 0 | AV73: 0 | AW73: =SUM($K73:AV73) -> 17940070.42
G74: - Municipal Government | I74: 0 | J74: 22 | K74: 0 | L74: 10443 | M74: 75435 | N74: 5967.89 | O74: 7623 | P74: 0 | Q74: 0 | R74: 0 | S74: 0 | T74: 0 | U74: 0 | V74: 0 | W74: 4565 | X74: 0 | Y74: 0 | Z74: 0 | AA74: 0 | AB74: 0 | AC74: 77405 | AD74: 0 | AE74: 0 | AF74: 21225 | AG74: 0 | AH74: 22691 | AI74: 0 | AJ74: 0 | AK74: 39063 | AL74: 179640 | AM74: 0 | AN74: 0 | AO74: 0 | AP74: 0 | AQ74: 0 | AR74: 0 | AS74: 0 | AT74: 372815 | AU74: 0 | AV74: 0 | AW74: =SUM($K74:AV74) -> 816872.89
G75: - Other School Divisions | I75: 0 | J75: 23 | K75: 0 | L75: 270733 | M75: 0 | N75: 0 | O75: 0 | P75: 92036 | Q75: 0 | R75: 0 | S75: 0 | T75: 0 | U75: 0 | V75: 0 | W75: 0 | X75: 0 | Y75: 0 | Z75: 0 | AA75: 0 | AB75: 0 | AC75: 125100 | AD75: 0 | AE75: 0 | AF75: 0 | AG75: 0 | AH75: 164809 | AI75: 0 | AJ75: 0 | AK75: 43582 | AL75: 60 | AM75: 0 | AN75: 0 | AO75: 0 | AP75: 0 | AQ75: 0 | AR75: 0 | AS75: 0 | AT75: 0 | AU75: 0 | AV75: 0 | AW75: =SUM($K75:AV75) -> 696320
G76: - First Nations | I76: 0 | J76: 24 | K76: 0 | L76: 0 | M76: 0 | N76: 0 | O76: 0 | P76: 0 | Q76: 0 | R76: 0 | S76: 0 | T76: 0 | U76: 0 | V76: 0 | W76: 0 | X76: 0 | Y76: 0 | Z76: 0 | AA76: 0 | AB76: 0 | AC76: 0 | AD76: 0 | AE76: 0 | AF76: 0 | AG76: 0 | AH76: 0 | AI76: 0 | AJ76: 0 | AK76: 0 | AL76: 0 | AM76: 0 | AN76: 0 | AO76: 0 | AP76: 0 | AQ76: 0 | AR76: 0 | AS76: 0 | AT76: 0 | AU76: 0 | AV76: 0 | AW76: =SUM($K76:AV76) -> 0
F77: Deferred Revenue | I77: 0 | J77: 25 | K77: 45276 | L77: 293968 | M77: 336430 | N77: 950002.35 | O77: 152226 | P77: 30053 | Q77: 22167 | R77: 1802455 | S77: 29888 | T77: 127033 | U77: 16339 | V77: 0 | W77: 0 | X77: 1069209 | Y77: 731450 | Z77: 483453 | AA77: 91418 | AB77: 3621 | AC77: 4841315 | AD77: 80506 | AE77: 84182 | AF77: 9062 | AG77: 18092 | AH77: 20459 | AI77: 2036751 | AJ77: 0 | AK77: 404038 | AL77: 778741 | AM77: 3582 | AN77: 770663 | AO77: 215704 | AP77: 299884 | AQ77: 194144 | AR77: 0 | AS77: 171925 | AT77: 3351251 | AU77: 15745740 | AV77: 13750 | AW77: =SUM($K77:AV77) -> 35224777.35
F78: Debenture Debt | I78: 0 | J78: 26 | K78: 28751117 | L78: 12407081 | M78: 60175274 | N78: 81579250.94 | O78: 12221421 | P78: 8607644 | Q78: 9871940 | R78: 41159151 | S78: 77207814 | T78: 109374194 | U78: 19033784 | V78: 16865968 | W78: 7374025 | X78: 28177563 | Y78: 61382962 | Z78: 35783244 | AA78: 12221089.08 | AB78: 8036698 | AC78: 86633441 | AD78: 5800913 | AE78: 20394660 | AF78: 12817794 | AG78: 4654885 | AH78: 14772782 | AI78: 84846328 | AJ78: 4884122 | AK78: 34251959 | AL78: 111422272 | AM78: 13491845 | AN78: 35355020 | AO78: 32509351 | AP78: 17033521 | AQ78: 12035928 | AR78: 6329902 | AS78: 8916778 | AT78: 177253281 | AU78: 9043488 | AV78: 0 | AW78: =SUM($K78:AV78) -> 1322678490
F79: Other Borrowings | I79: 0 | J79: 27 | K79: 0 | L79: 0 | M79: 0 | N79: 811144.88 | O79: 1354840 | P79: 0 | Q79: 0 | R79: 2854964 | S79: 29522 | T79: 0 | U79: 0 | V79: 0 | W79: 0 | X79: 0 | Y79: 0 | Z79: 4305233 | AA79: 0 | AB79: 3902736 | AC79: 0 | AD79: 0 | AE79: 0 | AF79: 955273 | AG79: 0 | AH79: 3020638 | AI79: 5173971 | AJ79: 0 | AK79: 0 | AL79: 21540103 | AM79: 164966 | AN79: 0 | AO79: 1459361 | AP79: 0 | AQ79: 0 | AR79: 0 | AS79: 0 | AT79: 0 | AU79: 2783 | AV79: 0 | AW79: =SUM($K79:AV79) -> 45575534.88
F80: School Generated Funds Liability | I80: 0 | J80: 28 | K80: 7803 | L80: 0 | M80: 239237 | N80: 300221.71 | O80: 44509 | P80: 0 | Q80: 0 | R80: 527173 | S80: 0 | T80: 0 | U80: 73375 | V80: 0 | W80: 0 | X80: 92784 | Y80: 76060 | Z80: 133925 | AA80: 156756 | AB80: 0 | AC80: 1645914 | AD80: 0 | AE80: 127555 | AF80: 35752 | AG80: 31735 | AH80: 76807 | AI80: 2251792 | AJ80: 0 | AK80: 48534 | AL80: 383078 | AM80: 0 | AN80: 386851 | AO80: 49351 | AP80: 0 | AQ80: 0 | AR80: 0 | AS80: 0 | AT80: 4302470 | AU80: 0 | AV80: 0 | AW80: =SUM($K80:AV80) -> 10991682.71
I81: 0 | J81: 29 | K81: =SUM(K67:K80) -> 32101320 | L81: =SUM(L67:L80) -> 17624348 | M81: =ROUND(SUM(M67:M80),0) -> 84024454 | N81: 99646561.18 | O81: 17276316 | P81: 11288653 | Q81: 11594805 | R81: 74721429.06 | S81: 87196477 | T81: 126147305 | U81: 26460637 | V81: 19449103 | W81: 9785762 | X81: 38124071 | Y81: 87502281 | Z81: 47452780 | AA81: 25032108.49 | AB81: 17180321 | AC81: 122625131.3 | AD81: 9111914 | AE81: 26191896.34 | AF81: 18794098 | AG81: 9648883 | AH81: 22195946 | AI81: 125374181 | AJ81: 6916445 | AK81: 43869090 | AL81: 158563640.5 | AM81: 17490983 | AN81: 59950904 | AO81: 43925500 | AP81: 21323159 | AQ81: 13124272 | AR81: 7734923 | AS81: 12265734 | AT81: 276506284 | AU81: 26737184 | AV81: 107304 | AW81: =SUM(AW67:AW80) -> 1855066204
E82: Net Debt | I82: 0 | J82: 30 | K82: =ROUND(K65-K81,0) -> -25542735 | L82: -7347504 | M82: -49628508 | N82: -51030553 | O82: -7756256 | P82: -5914981 | Q82: -7376339 | R82: -41596413 | S82: -72536105 | T82: -99076483 | U82: -15720749 | V82: =ROUND(V65-V81,0) -> -15569575 | W82: -4562397 | X82: -23953815 | Y82: -44273063 | Z82: -38866601 | AA82: -4936092 | AB82: -7455758 | AC82: -61218956 | AD82: -3739006 | AE82: -12351745 | AF82: -11538330 | AG82: -985124 | AH82: -14764870 | AI82: -66104092 | AJ82: -1954402 | AK82: -31595016 | AL82: -120534841 | AM82: -7911903 | AN82: -21285515 | AO82: -26413636 | AP82: -11794400 | AQ82: -8331243 | AR82: -2010699 | AS82: -8305155 | AT82: -166734949 | AU82: 5753367 | AV82: 1412180 | AW82: =AW65-AW81 -> -1093552261
E83: Non-Financial Assets | J83: 31
F84: Net Tangible Capital Assets (TCA Schedule) | I84: =IF($I$53=1,0,HLOOKUP($I$53,$K$53:$AW$88,J84,FALSE)) -> 0 | J84: 32 | K84: 35289668.47 | L84: 22152798.23 | M84: 73662063.67 | N84: 107711513 | O84: 21717339 | P84: 9786118 | Q84: 15640799 | R84: 79386598.5 | S84: 100828878 | T84: 128417690 | U84: 22737473 | V84: 35087725 | W84: 12119813 | X84: 38713194.47 | Y84: 85067326.8 | Z84: 46755767 | AA84: 19871261.86 | AB84: 11172100.16 | AC84: 116720611.1 | AD84: 7043996 | AE84: 25791363.45 | AF84: 18167364 | AG84: 10121806 | AH84: 24634003.36 | AI84: 107207793 | AJ84: 11047588 | AK84: 46042374 | AL84: 181891971.8 | AM84: 19852003 | AN84: 59519849.84 | AO84: 45850657 | AP84: 19228850 | AQ84: 11641399 | AR84: 6178125 | AS84: 14156935 | AT84: 254456397 | AU84: 8752321.71 | AV84: 716736 | AW84: =SUM($K84:AV84) -> 1855140271
F85: Inventories | I85: =IF($I$53=1,0,HLOOKUP($I$53,$K$53:$AW$88,J85,FALSE)) -> 0 | J85: 33 | K85: 0 | L85: 135248 | M85: 148965 | N85: 0 | O85: 0 | P85: 0 | Q85: 0 | R85: 0 | S85: 0 | T85: 513505 | U85: 124087 | V85: 0 | W85: 0 | X85: 82156 | Y85: 35728 | Z85: 250267 | AA85: 143456.71 | AB85: 148775 | AC85: 0 | AD85: 0 | AE85: 37835 | AF85: 0 | AG85: 0 | AH85: 174951 | AI85: 0 | AJ85: 0 | AK85: 0 | AL85: 9414 | AM85: 134374 | AN85: 0 | AO85: 405950 | AP85: 27240 | AQ85: 5395 | AR85: 138291 | AS85: 34907 | AT85: 1232215 | AU85: 0 | AV85: 0 | AW85: =SUM($K85:AV85) -> 3782759.71
F86: Prepaid Expenses | I86: =IF($I$53=1,0,HLOOKUP($I$53,$K$53:$AW$88,J86,FALSE)) -> 0 | J86: 34 | K86: 191547 | L86: 93185 | M86: 697002 | N86: 1076164.6 | O86: 129007 | P86: 71476 | Q86: 31565 | R86: 686596 | S86: 133833 | T86: 1376583 | U86: 78551 | V86: 0 | W86: 64699 | X86: 259140 | Y86: 1228587 | Z86: 689907 | AA86: 155038.17 | AB86: 135925 | AC86: 598393 | AD86: 39610 | AE86: 97955 | AF86: 0 | AG86: 196395 | AH86: 45742 | AI86: 731342 | AJ86: 9441 | AK86: 194750 | AL86: 331002 | AM86: 218286 | AN86: 603139 | AO86: 441742 | AP86: 97614 | AQ86: 175183 | AR86: 0 | AS86: 100582 | AT86: 1514734 | AU86: 583155 | AV86: 0 | AW86: =SUM($K86:AV86) -> 13077870.77
I87: =IF($I$53=1,0,HLOOKUP($I$53,$K$53:$AW$88,J87,FALSE)) -> 0 | J87: 35 | K87: =SUM(K84:K86) -> 35481215.47 | L87: =SUM(L84:L86) -> 22381231.23 | M87: =ROUND(SUM(M84:M86),0) -> 74508031 | N87: 108787677.6 | O87: 21846346 | P87: 9857594 | Q87: 15672364 | R87: 80073194.5 | S87: 100962711 | T87: 130307778 | U87: =ROUND(SUM(U84:U86),0) -> 22940111 | V87: 35087725 | W87: 12184512 | X87: 39054490.47 | Y87: 86331641.8 | Z87: 47695941 | AA87: 20169756.74 | AB87: 11456800.16 | AC87: 117319004.1 | AD87: 7083606 | AE87: 25927153.45 | AF87: 18167364 | AG87: 10318201 | AH87: 24854696.36 | AI87: 107939135 | AJ87: 11057029 | AK87: 46237124 | AL87: 182232387.8 | AM87: 20204663 | AN87: 60122988.84 | AO87: 46698349 | AP87: 19353704 | AQ87: 11821977 | AR87: 6316416 | AS87: 14292424 | AT87: 257203346 | AU87: 9335476.71 | AV87: 716736 | AW87: =SUM(AW84:AW86) -> 1872000902
E88: Accumulated Surplus | I88: =IF($I$53=1,0,HLOOKUP($I$53,$K$53:$AW$88,J88,FALSE)) -> 0 | J88: 36 | K88: =SUM(K82,K87) -> 9938480.47 | L88: =SUM(L82,L87) -> 15033727.23 | M88: 24879523 | N88: 57757124.57 | O88: 14090090 | P88: 3942613 | Q88: 8296025 | R88: 38476781.5 | S88: 28426606 | T88: 31231295 | U88: 7219362 | V88: 19518150 | W88: 7622115 | X88: 15100675.47 | Y88: 42058578.8 | Z88: 8829340 | AA88: 15233664.74 | AB88: 4001042.155 | AC88: 56100048.15 | AD88: 3344600 | AE88: 13575408.45 | AF88: 6629034 | AG88: 9333077 | AH88: 10089826.36 | AI88: 41835043 | AJ88: 9102627 | AK88: 14642108 | AL88: 61697546.83 | AM88: 12292760 | AN88: 38837473.84 | AO88: 20284713 | AP88: 7559304 | AQ88: 3490734 | AR88: 4305717 | AS88: 5987269 | AT88: 90468397 | AU88: 15088843.71 | AV88: 2128916 | AW88: =SUM(AW82,AW87) -> 778448640.6
D94: PAGE | E94: CONS Rev Exp | F94: use Mar31-xxPROVINCIAL SUMMARY
F95: copy & paste values
E97: MANITOBA PUBLIC SCHOOL DIVISIONS | K97: THE CELLS HIGH LITED IN YELLOW ARE REFERENCED TO SCHOOL DIVISION STATEMENT FILES.
E98: CONSOLIDATED STATEMENT | K98: The cells high lited in yellow have been "copy - paste special - values" for this spreadsheet
E99: OF REVENUE, EXPENSES
E100: AND ACCUMULATED SURPLUS
E101: For the Year Ended March 31, 2021 | I101: FORMULAS | K101: 0 | L101: 0 | M101: 0 | N101: 0 | O101: 0 | P101: 0 | Q101: 0 | R101: 0 | S101: 0 | T101: 0 | U101: 0 | V101: 0 | W101: 0 | X101: 0 | Y101: 0 | Z101: 0 | AA101: 0 | AB101: 0 | AC101: 0 | AD101: 0 | AE101: 0 | AF101: 0 | AG101: 0 | AH101: 0 | AI101: 0 | AJ101: 0 | AK101: 0 | AL101: 0 | AM101: 0 | AN101: 0 | AO101: 0 | AP101: 0 | AQ101: 0 | AR101: 0 | AS101: 0 | AT101: 0 | AU101: 0 | AV101: 0
I102: =$I$53 -> 1 | K102: 2 | L102: =K102+1 -> 3 | M102: =L102+1 -> 4 | N102: =M102+1 -> 5 | O102: 6 | P102: 7 | Q102: =P102+1 -> 8 | R102: 9 | S102: 10 | T102: =S102+1 -> 11 | U102: 12 | V102: 13 | W102: 14 | X102: 15 | Y102: 16 | Z102: 17 | AA102: 18 | AB102: 19 | AC102: 20 | AD102: 21 | AE102: 22 | AF102: 23 | AG102: 24 | AH102: 25 | AI102: 26 | AJ102: 27 | AK102: 28 | AL102: 29 | AM102: 30 | AN102: 31 | AO102: 32 | AP102: 33 | AQ102: 34 | AR102: 35 | AS102: 36 | AT102: 37 | AU102: 38 | AV102: 39 | AW102: 40
I103: =HLOOKUP(B33,$K$102:$AW$131,J103,FALSE) ->  | J103: 2 | K103: BE | L103: BO | M103: BR | N103: DI | O103: EV | P103: FL | Q103: FO | R103: FR | S103: GA | T103: HA | U103: IN | V103: KE | W103: LA | X103: LO | Y103: LR | Z103: MO | AA103: MY | AB103: PA | AC103: PE | AD103: PI | AE103: PO | AF103: PR | AG103: PS | AH103: RE | AI103: RI | AJ103: RO | AK103: SE | AL103: SO | AM103: SR | AN103: ST | AO103: SU | AP103: SW | AQ103: TM | AR103: TR | AS103: WE | AT103: WI | AU103: WT | AV103: XW | AW103: TOTAL
E104: Revenue | J104: 3
F105: Provincial Government | I105: =IF($I$102=1,0,HLOOKUP($B$33,$K$102:$AW$133,J105,FALSE)) -> 0 | J105: 4 | K105: 17530104 | L105: 22886311 | M105: 71723329 | N105: 78349143.08 | O105: 15507378 | P105: 11664493 | Q105: 11242409 | R105: 56998198.46 | S105: 43788803 | T105: 76836829 | U105: 25158599 | V105: 19206384 | W105: 12821392 | X105: 37062710 | Y105: 124635476 | Z105: 31121629 | AA105: 36572328.2 | AB105: 14543013 | AC105: 95802631 | AD105: 10038257 | AE105: 25723463 | AF105: 18439567.54 | AG105: 17702217 | AH105: 17543529 | AI105: 138914855 | AJ105: 14331876 | AK105: 42334877 | AL105: 114338063 | AM105: 13641507 | AN105: 60211889 | AO105: 42406239 | AP105: 16092242 | AQ105: 8485826 | AR105: 9127613 | AS105: 15898041 | AT105: 265782829 | AU105: 11304626 | AV105: 1493648 | AW105: =SUM($K105:AV105) -> 1647262324
F106: Federal Government | I106: 0 | J106: 5 | K106: 66923 | L106: 29632 | M106: 109844 | N106: 559117.58 | O106: 114488 | P106: 103908 | Q106: 68072 | R106: 878925 | S106: 125128 | T106: 212155 | U106: 0 | V106: 0 | W106: 144480 | X106: 82122 | Y106: 245330 | Z106: 102766 | AA106: 153381 | AB106: 85389 | AC106: 369068 | AD106: 108614 | AE106: 5310 | AF106: 0 | AG106: 56938 | AH106: 124785 | AI106: 491299 | AJ106: 0 | AK106: 140845 | AL106: 1887570 | AM106: 94676 | AN106: 122452 | AO106: 0 | AP106: 214189 | AQ106: 29519 | AR106: 33600 | AS106: 74698 | AT106: 4234291 | AU106: 1417897 | AV106: 0 | AW106: =SUM($K106:AV106) -> 12487411.58
F107: Municipal Government | I107: 0 | J107: 6 | K107: 7780991 | L107: 12808192 | M107: 40458043 | N107: 27329499.96 | O107: 8630198 | P107: 3779305 | Q107: 8367406 | R107: 3223919 | S107: 16844812 | T107: 28221980 | U107: 16348791 | V107: 3393442 | W107: 3937886 | X107: 25554652 | Y107: 80165386 | Z107: 13891797 | AA107: 7126130.74 | AB107: 8476557 | AC107: 88452513 | AD107: 6764028 | AE107: 15649971 | AF107: 14602490.46 | AG107: 11983452 | AH107: 15267358 | AI107: 69346903 | AJ107: 10144743 | AK107: 17923317 | AL107: 48950432 | AM107: 12059339 | AN107: 53373392 | AO107: 30655040 | AP107: 6468090 | AQ107: 6288054 | AR107: 2866502 | AS107: 7455577 | AT107: 166342503 | AU107: 0 | AV107: 1315264 | AW107: =SUM($K107:AV107) -> 902247956.2
F108: Other School Divisions | I108: 0 | J108: 7 | K108: 31525 | L108: 324690 | M108: 401398 | N108: 2107179.95 | O108: 19500 | P108: 294452 | Q108: 48700 | R108: 27960 | S108: 285312 | T108: 105651 | U108: 10950 | V108: 0 | W108: 36589 | X108: 123850 | Y108: 423238 | Z108: 403834 | AA108: 113998 | AB108: 21350 | AC108: 473358 | AD108: 30147 | AE108: 169956.3 | AF108: 121050 | AG108: 48750 | AH108: 1460677 | AI108: 505190 | AJ108: 58500 | AK108: 402825 | AL108: 1491497 | AM108: 96350 | AN108: 297830 | AO108: 107183 | AP108: 23929 | AQ108: 32335 | AR108: 39650 | AS108: 52650 | AT108: 2293362 | AU108: 2076446 | AV108: 37700 | AW108: =SUM($K108:AV108) -> 14599562.25
F109: First Nations | I109: 0 | J109: 8 | K109: 0 | L109: 1113602 | M109: 229140 | N109: 0 | O109: 180000 | P109: 0 | Q109: 674462 | R109: 79332070 | S109: 0 | T109: 0 | U109: 0 | V109: 77700 | W109: 232863 | X109: 479050 | Y109: 62700 | Z109: 659354 | AA109: 305271 | AB109: 7583512 | AC109: 14850 | AD109: 0 | AE109: 2287317 | AF109: 0 | AG109: 241765 | AH109: -410 | AI109: 135100 | AJ109: 1304702 | AK109: 12467 | AL109: 438400 | AM109: 0 | AN109: 189840 | AO109: 351539 | AP109: 239482 | AQ109: 0 | AR109: -3987 | AS109: 0 | AT109: 1668820 | AU109: 0 | AV109: 0 | AW109: =SUM($K109:AV109) -> 97809609
F110: Private Organizations and Individuals | I110: 0 | J110: 9 | K110: 49096 | L110: 85907 | M110: 304352 | N110: 323710.08 | O110: 72836 | P110: 157624 | Q110: 0 | R110: 5428084 | S110: 5965 | T110: 158869 | U110: 257311 | V110: 99205 | W110: 118121 | X110: 73860 | Y110: 2388022 | Z110: 224767 | AA110: 203622 | AB110: 474128 | AC110: 1573334 | AD110: 0 | AE110: 16549 | AF110: 70023 | AG110: 176820 | AH110: 165435 | AI110: 919170 | AJ110: 82728 | AK110: 21434 | AL110: 1781851 | AM110: 0 | AN110: 756904 | AO110: 48202 | AP110: 143407 | AQ110: 2275 | AR110: 12647 | AS110: 33258 | AT110: 1154494 | AU110: 18033853 | AV110: 0 | AW110: =SUM($K110:AV110) -> 35417863.08
F111: Other Sources | I111: 0 | J111: 10 | K111: 68521 | L111: 197583 | M111: 182577 | N111: 405288.34 | O111: 47478 | P111: 114946 | Q111: 33788 | R111: 1696353.36 | S111: 50179 | T111: 229262 | U111: 52477 | V111: 0 | W111: 256871 | X111: 348848 | Y111: 1736058 | Z111: 247867 | AA111: 221408 | AB111: 46600 | AC111: 1744486 | AD111: 109252 | AE111: 281637 | AF111: 60607 | AG111: 118459 | AH111: 65893 | AI111: 420875 | AJ111: 40084 | AK111: -497661 | AL111: 374600 | AM111: 53226 | AN111: 534203 | AO111: 237050 | AP111: -44877 | AQ111: 30684 | AR111: 0 | AS111: 55776 | AT111: 1265744 | AU111: 591189 | AV111: 110377 | AW111: =SUM($K111:AV111) -> 11487708.7
F112: School Generated Funds | I112: 0 | J112: 11 | K112: 230507 | L112: 192539 | M112: 485631 | N112: 573845.98 | O112: 75208 | P112: 105452 | Q112: 447356 | R112: 247363 | S112: 193170 | T112: 1594541 | U112: 132976 | V112: 207034.41 | W112: 89414 | X112: 254304 | Y112: 1641537 | Z112: 253900 | AA112: 94778 | AB112: 537688 | AC112: 343949 | AD112: 149931 | AE112: 272672 | AF112: 197641 | AG112: 259943 | AH112: 69815 | AI112: 130085 | AJ112: 146976 | AK112: 147370 | AL112: 75787 | AM112: 113375 | AN112: 573822 | AO112: 196755 | AP112: 173289 | AQ112: 82402 | AR112: 94717 | AS112: 111290 | AT112: 1563961 | AU112: 0 | AV112: 6981 | AW112: =SUM($K112:AV112) -> 12068005.39
F113: Other Special Purpose Funds | I113: 0 | J113: 12 | K113: 0 | L113: 0 | M113: 173069 | N113: 45407.32 | O113: 16742 | P113: 0 | Q113: 54922 | R113: 0 | S113: 0 | T113: 0 | U113: 1175 | V113: 0 | W113: 0 | X113: 0 | Y113: 0 | Z113: 0 | AA113: 0 | AB113: 0 | AC113: 0 | AD113: 0 | AE113: 0 | AF113: 22979 | AG113: 0 | AH113: 0 | AI113: 0 | AJ113: 0 | AK113: 0 | AL113: 0 | AM113: 0 | AN113: 0 | AO113: 8448 | AP113: 21651 | AQ113: 0 | AR113: 0 | AS113: 0 | AT113: 1292536 | AU113: 0 | AV113: 0 | AW113: =SUM($K113:AV113) -> 1636929.32
I114: 0 | J114: 13 | K114: =ROUND(SUM(K105:K113),0) -> 25757667 | L114: =ROUND(SUM(L105:L113),0) -> 37638456 | M114: =ROUND(SUM(M105:M113),0) -> 114067383 | N114: =ROUND(SUM(N105:N113),0) -> 109693192 | O114: 24663828 | P114: 16220180 | Q114: 20937115 | R114: 147832873 | S114: 61293369 | T114: 107359287 | U114: 41962279 | V114: 22983765 | W114: 17637616 | X114: 63979396 | Y114: 211297747 | Z114: 46905914 | AA114: 44790917 | AB114: 31768237 | AC114: 188774189 | AD114: 17200229 | AE114: 44406875 | AF114: 33514358 | AG114: 30588344 | AH114: 34697082 | AI114: 210863477 | AJ114: 26109609 | AK114: 60485474 | AL114: 169338200 | AM114: 26058473 | AN114: 116060332 | AO114: 74010456 | AP114: 23331402 | AQ114: 14951095 | AR114: 12170742 | AS114: 23681290 | AT114: 445598540 | AU114: 33424011 | AV114: 2963970 | AW114: =SUM(AW105:AW113) -> 2735017370
E115: Expenses | I115: 0 | J115: 14
F116: Salaries | I116: 0 | J116: 15 | K116: 16968165 | L116: 25784215 | M116: 85545488.08 | N116: 69581409.72 | O116: 15168646 | P116: 11178990 | Q116: 14564130 | R116: 90389683 | S116: 40522772 | T116: 73846875 | U116: 31496721 | V116: 16155221 | W116: 11574797 | X116: 46822550 | Y116: 149855976 | Z116: 31578199 | AA116: 32698478 | AB116: 21732989 | AC116: 132714060.5 | AD116: 13037979 | AE116: 33088502 | AF116: 25468303 | AG116: 21794334 | AH116: 24769096 | AI116: 158969335 | AJ116: 18476587 | AK116: 43950908 | AL116: 115305992 | AM116: 17280586 | AN116: 85164235 | AO116: 51677431 | AP116: 16294371 | AQ116: 10008423 | AR116: 7894760 | AS116: 17746044 | AT116: 338149006 | AU116: 18829787 | AV116: 1934398 | AW116: =SUM($K116:AV116) -> 1938019442
F117: Employees Benefits and Allowances | I117: 0 | J117: 16 | K117: 1333326 | L117: 1999489 | M117: 5964895 | N117: 5345488.34 | O117: 1421171 | P117: 911940 | Q117: 1031261 | R117: 8661351 | S117: 3826151 | T117: 5093779 | U117: 2257783 | V117: 1524722 | W117: 1141289 | X117: 3848892 | Y117: 11740440 | Z117: 3019196 | AA117: 4000689 | AB117: 1495731.34 | AC117: 9405704 | AD117: 1052848 | AE117: 2269106 | AF117: 2123771 | AG117: 2262559 | AH117: 1865034 | AI117: 11190826 | AJ117: 1422289 | AK117: 3013061 | AL117: 12617663 | AM117: 1266931 | AN117: 6636603 | AO117: 3694905 | AP117: 1462999 | AQ117: 685682 | AR117: 615751 | AS117: 1194548 | AT117: 28577126 | AU117: 2163983 | AV117: 173814 | AW117: =SUM($K117:AV117) -> 158312796.7
F118: Services | I118: 0 | J118: 17 | K118: 1668243 | L118: 2353814 | M118: 6235513 | N118: 12281762.92 | O118: 1615193 | P118: 1483982 | Q118: 1281604 | R118: 21134766 | S118: 3805418 | T118: 4016202 | U118: 2406050 | V118: 1246775 | W118: 1317754 | X118: 3649256 | Y118: 15611342 | Z118: 3748760 | AA118: 2248250.15 | AB118: 2656242.44 | AC118: 13614682 | AD118: 1035637 | AE118: 2539093.99 | AF118: 2146552 | AG118: 2446301 | AH118: 2376528 | AI118: 13635235 | AJ118: 2048558 | AK118: 4239273 | AL118: 9581483 | AM118: 1645059 | AN118: 8350953 | AO118: 6253209 | AP118: 1792462 | AQ118: 1058939 | AR118: 1092296 | AS118: 1551833 | AT118: 26590192 | AU118: 6650168 | AV118: 434571 | AW118: =SUM($K118:AV118) -> 197843952.5
F119: Supplies, Materials and Minor Equipment | I119: 0 | J119: 18 | K119: 1633880 | L119: 2698324 | M119: 8719103 | N119: 5357122.57 | O119: 1678303 | P119: 536539 | Q119: 1093566 | R119: 16231952 | S119: 2990712 | T119: 8489769 | U119: 2616124 | V119: 884671 | W119: 1242991 | X119: 3399607 | Y119: 9255882 | Z119: 2440489 | AA119: 2099859.4 | AB119: 1927097.06 | AC119: 9998707 | AD119: 1262115 | AE119: 2827833 | AF119: 2207615 | AG119: 2091723 | AH119: 1939981 | AI119: 8031419 | AJ119: 1864719 | AK119: 2936061 | AL119: 9142281 | AM119: 1684805 | AN119: 5665650 | AO119: 3040065 | AP119: 1757624 | AQ119: 824793 | AR119: 1145349 | AS119: 1222644 | AT119: 27693408 | AU119: 1634344 | AV119: 216344 | AW119: =SUM($K119:AV119) -> 160483471
F120: Interest, Bank Charges and Bad Debt Expense | I120: 0 | J120: 19 | K120: 1085442 | L120: 537389 | M120: 2034297 | N120: 2341313.702 | O120: 546548 | P120: 331030 | Q120: 436978 | R120: 2040888.48 | S120: 3103661 | T120: 4106337 | U120: 728169 | V120: 708468 | W120: 401381 | X120: 1198128 | Y120: 2172628 | Z120: 1527807 | AA120: 405137.4 | AB120: 458648 | AC120: 3125334 | AD120: 170826 | AE120: 669943 | AF120: 500508 | AG120: 217987 | AH120: 614478 | AI120: 2629658 | AJ120: 246897 | AK120: 1408450 | AL120: 4835731 | AM120: 590732 | AN120: 1145344 | AO120: 1401950 | AP120: 628722.41 | AQ120: 435114 | AR120: 179655 | AS120: 355563 | AT120: 6209798 | AU120: 337086 | AV120: 1873 | AW120: =SUM($K120:AV120) -> 49869899.99
F121: Transfers | I121: 0 | J121: 20 | K121: 454860 | L121: 1106695 | M121: 1797186 | N121: 2432812.26 | O121: 482823 | P121: 227302 | Q121: 380330 | R121: 5844531 | S121: 1188837 | T121: 3750427 | U121: 964728 | V121: 343506 | W121: 292815 | X121: 1187562 | Y121: 4476591 | Z121: 594329 | AA121: 679517.59 | AB121: 510836 | AC121: 5060997 | AD121: 285925 | AE121: 720803 | AF121: 687646 | AG121: 539258 | AH121: 868032 | AI121: 3912375 | AJ121: 735113 | AK121: 1540886 | AL121: 3520055 | AM121: 584453 | AN121: 2505142 | AO121: 1585007 | AP121: 408547 | AQ121: 248543 | AR121: 283853 | AS121: 444825 | AT121: 9838721 | AU121: 745424 | AV121: 51350 | AW121: =SUM($K121:AV121) -> 61282642.85
F122: Amortization | I122: 0 | J122: 21 | K122: 1429905 | L122: 2454861 | M122: 3761705 | N122: 3511643.054 | O122: 1657699 | P122: 389687 | Q122: 1103901 | R122: 4476028.82 | S122: 4721823 | T122: 5115158 | U122: 1668900 | V122: 1218969 | W122: 882670 | X122: 3080124 | Y122: 5941333 | Z122: 2275325 | AA122: 1240463 | AB122: 963266 | AC122: 5303163.372 | AD122: 631002 | AE122: 1799355 | AF122: 1243539 | AG122: 1436373 | AH122: 1769727 | AI122: 7986729 | AJ122: 1049725 | AK122: 2566719 | AL122: 7064962 | AM122: 1504344 | AN122: 4322840 | AO122: 3161039 | AP122: 1374383 | AQ122: 755609 | AR122: 527339 | AS122: 786879 | AT122: 12487353 | AU122: 1312840 | AV122: 99411 | AW122: =SUM($K122:AV122) -> 103076792.2
F123: Other Capital Items | I123: 0 | J123: 22 | K123: 0 | L123: 0 | M123: 908035 | N123: 0 | O123: 0 | P123: 41 | Q123: 0 | R123: 0 | S123: 0 | T123: -75015 | U123: 0 | V123: 0 | W123: 0 | X123: -63735 | Y123: 6481 | Z123: 0 | AA123: 0 | AB123: 0 | AC123: 0 | AD123: 0 | AE123: 34496 | AF123: 0 | AG123: 0 | AH123: 0 | AI123: 32222 | AJ123: 0 | AK123: 0 | AL123: 0 | AM123: 0 | AN123: 127988 | AO123: 0 | AP123: 112095 | AQ123: 0 | AR123: 0 | AS123: 0 | AT123: 2752 | AU123: 0 | AV123: 0 | AW123: =SUM($K123:AV123) -> 1085360
F124: School Generated Funds | I124: 0 | J124: 23 | K124: 250237 | L124: 214151 | M124: 413919 | N124: 639692.04 | O124: 84892 | P124: 113853 | Q124: 411010 | R124: 271591 | S124: 257079 | T124: 1504081 | U124: 122148 | V124: 185389.76 | W124: 99367 | X124: 319085 | Y124: 1710659 | Z124: 229972 | AA124: 128865 | AB124: 457097 | AC124: 393149 | AD124: 135313 | AE124: 266601 | AF124: 199767 | AG124: 233095 | AH124: 82237 | AI124: 239209 | AJ124: 190328 | AK124: 168419 | AL124: 51705 | AM124: 89173 | AN124: 364008 | AO124: 323866 | AP124: 189594 | AQ124: 114558 | AR124: 117980 | AS124: 127987 | AT124: 1614477 | AU124: 0 | AV124: 0 | AW124: =SUM($K124:AV124) -> 12314553.8
F125: Other Special Purpose Funds | I125: 0 | J125: 24 | K125: 0 | L125: 0 | M125: 102775 | N125: 209351.47 | O125: 3601 | P125: 0 | Q125: 58768 | R125: 0 | S125: 0 | T125: 0 | U125: 1175 | V125: 0 | W125: 0 | X125: 0 | Y125: 36716 | Z125: 0 | AA125: 0 | AB125: 0 | AC125: 0 | AD125: 0 | AE125: 0 | AF125: 6419 | AG125: 0 | AH125: 0 | AI125: 0 | AJ125: 0 | AK125: 0 | AL125: 0 | AM125: 0 | AN125: 0 | AO125: 48 | AP125: 21651 | AQ125: 0 | AR125: 0 | AS125: 0 | AT125: 200954 | AU125: 0 | AV125: 0 | AW125: =SUM($K125:AV125) -> 641458.47
I126: 0 | J126: 25 | K126: =ROUND(SUM(K116:K125),0) -> 24824058 | L126: =ROUND(SUM(L116:L125),0) -> 37148938 | M126: =ROUND(SUM(M116:M125),0) -> 115482916 | N126: =ROUND(SUM(N116:N125),0) -> 101700596 | O126: 22658876 | P126: 15173364 | Q126: 20361548 | R126: 149050791 | S126: 60416453 | T126: 105847613 | U126: 42261798 | V126: 22267722 | W126: 16953064 | X126: 63441469 | Y126: 200808048 | Z126: 45414077 | AA126: 43501260 | AB126: 30201907 | AC126: 179615797 | AD126: 17611645 | AE126: 44215733 | AF126: 34584120 | AG126: 31021630 | AH126: 34285113 | AI126: 206627008 | AJ126: 26034216 | AK126: 59823777 | AL126: 162119872 | AM126: 24646083 | AN126: 114282763 | AO126: 71137520 | AP126: 24042448 | AQ126: 14131661 | AR126: 11856983 | AS126: 23430323 | AT126: 451363787 | AU126: 31673632 | AV126: 2911761 | AW126: =SUM($K126:AV126) -> 2682930370
E127: Current Year Surplus (Deficit) | I127: 0 | J127: 26 | K127: =K114-K126 -> 933609 | L127: =L114-L126 -> 489518 | M127: -1415533 | N127: 7992596 | O127: 2004952 | P127: 1046816 | Q127: 575567 | R127: -1217918 | S127: 876916 | T127: 1511674 | U127: -299519 | V127: 716043 | W127: 684552 | X127: 537927 | Y127: 10489699 | Z127: 1491837 | AA127: 1289657 | AB127: 1566330 | AC127: 9158392 | AD127: -411416 | AE127: 191142 | AF127: -1069762 | AG127: -433286 | AH127: 411969 | AI127: 4236469 | AJ127: 75393 | AK127: 661697 | AL127: 7218328 | AM127: 1412390 | AN127: 1777569 | AO127: 2872936 | AP127: -711046 | AQ127: 819434 | AR127: 313759 | AS127: 250967 | AT127: -5765247 | AU127: 1750379 | AV127: 52209 | AW127: =SUM($K127:AV127) -> 52086999
E128: Less: Non-vested Sick Leave Expense (Recovery) | I128: 0 | J128: 27 | K128: 5675 | L128: 0 | M128: -47838 | N128: 129210.95 | O128: -14104 | P128: 0 | Q128: -23962 | R128: 0 | S128: 0 | T128: 0 | U128: -20225 | V128: 64114 | W128: 0 | X128: -75938 | Y128: -24528 | Z128: -38994 | AA128: -23160 | AB128: -7891 | AC128: -76084.63 | AD128: 35118 | AE128: 21509 | AF128: 26504 | AG128: 38238 | AH128: -22202 | AI128: -85864 | AJ128: 48228 | AK128: 20059 | AL128: 53235 | AM128: -28649 | AN128: -31654 | AO128: -134930 | AP128: 9666 | AQ128: 12459 | AR128: -3037 | AS128: 553 | AT128: -1424129 | AU128: 0 | AV128: 0 | AW128: =SUM($K128:AV128) -> -1618620.68
E129: Net Current Year Surplus (Deficit) | I129: 0 | J129: 28 | K129: =K127-K128 -> 927934 | L129: =L127-L128 -> 489518 | M129: -1367695 | N129: 7863385.05 | O129: 2019056 | P129: 1046816 | Q129: 599529 | R129: -1217918 | S129: 876916 | T129: 1511674 | U129: -279294 | V129: 651929 | W129: 684552 | X129: 613865 | Y129: 10514227 | Z129: 1530831 | AA129: 1312817 | AB129: 1574221 | AC129: 9234476.63 | AD129: -446534 | AE129: 169633 | AF129: -1096266 | AG129: -471524 | AH129: 434171 | AI129: 4322333 | AJ129: 27165 | AK129: 641638 | AL129: 7165093 | AM129: 1441039 | AN129: 1809223 | AO129: 3007866 | AP129: -720712 | AQ129: 806975 | AR129: 316796 | AS129: 250414 | AT129: -4341118 | AU129: 1750379 | AV129: 52209 | AW129: =SUM($K129:AV129) -> 53705619.68
E130: Opening Accumulated Surplus | I130: 0 | J130: 29 | K130: 9010546.84 | L130: 14544209.19 | M130: 26247217.75 | N130: 49893739.18 | O130: 12071034 | P130: 2895797.05 | Q130: 7696495.54 | R130: 39694699.75 | S130: 27549690 | T130: 29719621 | U130: 7498656 | V130: 18712080.41 | W130: 6937563.21 | X130: 14486810.84 | Y130: 31544351.88 | Z130: 7298509 | AA130: 13920846.29 | AB130: 2426821.005 | AC130: 46865571 | AD130: 3791133.95 | AE130: 13405775.64 | AF130: 7725302.87 | AG130: 9804601 | AH130: 9655655.39 | AI130: 37512710 | AJ130: 9075462 | AK130: 14000470 | AL130: 54532454.33 | AM130: 10851721 | AN130: 37028250.84 | AO130: 17276847 | AP130: 8280016.82 | AQ130: 2683759 | AR130: 3988921 | AS130: 5736855 | AT130: 94809515 | AU130: 13338464.71 | AV130: 2076706.67 | AW130: =SUM($K130:AV130) -> 724588882.2
E131: Adjustments to Opening Accumulated Surplus | I131: 0 | J131: 30 | K131: 0 | L131: 0 | M131: 0 | N131: 0 | O131: 0 | P131: 0 | Q131: 0 | R131: 0 | S131: 0 | T131: 0 | U131: 0 | V131: 154140 | W131: 0 | X131: 0 | Y131: 0 | Z131: 0 | AA131: 0 | AB131: 0 | AC131: 0 | AD131: 0 | AE131: 0 | AF131: 0 | AG131: 0 | AH131: 0 | AI131: 0 | AJ131: 0 | AK131: 0 | AL131: 0 | AM131: 0 | AN131: 0 | AO131: 0 | AP131: 0 | AQ131: 0 | AR131: 0 | AS131: 0 | AT131: 0 | AU131: 0 | AV131: 0 | AW131: =SUM($K131:AV131) -> 154140
E132: Opening Accumulated Surplus, as restated | I132: 0 | J132: 31 | K132: =K130+K131 -> 9010546.84 | L132: =L130+L131 -> 14544209.19 | M132: 26247217.75 | N132: 49893739.18 | O132: 12071034 | P132: 2895797.05 | Q132: 7696495.54 | R132: 39694699.75 | S132: 27549690 | T132: 29719621 | U132: 7498656 | V132: 18866220.41 | W132: 6937563.21 | X132: 14486810.84 | Y132: 31544351.88 | Z132: 7298509 | AA132: 13920846.29 | AB132: 2426821.005 | AC132: 46865571 | AD132: 3791133.95 | AE132: 13405775.64 | AF132: 7725302.87 | AG132: 9804601 | AH132: 9655655.39 | AI132: 37512710 | AJ132: 9075462 | AK132: 14000470 | AL132: 54532454.33 | AM132: 10851721 | AN132: 37028250.84 | AO132: 17276847 | AP132: 8280016.82 | AQ132: 2683759 | AR132: 3988921 | AS132: 5736855 | AT132: 94809515 | AU132: 13338464.71 | AV132: 2076706.67 | AW132: =SUM($K132:AV132) -> 724743022.2
E133: Closing Accumulated Surplus | I133: 0 | J133: 32 | K133: =K132+K129 -> 9938480.84 | L133: =L132+L129 -> 15033727.19 | M133: 24879522.75 | N133: 57757124.23 | O133: 14090090 | P133: 3942613.05 | Q133: 8296024.54 | R133: 38476781.75 | S133: 28426606 | T133: 31231295 | U133: 7219362 | V133: 19518149.41 | W133: 7622115.21 | X133: 15100675.84 | Y133: 42058578.88 | Z133: 8829340 | AA133: 15233663.29 | AB133: 4001042.005 | AC133: 56100047.63 | AD133: 3344599.95 | AE133: 13575408.64 | AF133: 6629036.87 | AG133: 9333077 | AH133: 10089826.39 | AI133: 41835043 | AJ133: 9102627 | AK133: 14642108 | AL133: 61697547.33 | AM133: 12292760 | AN133: 38837473.84 | AO133: 20284713 | AP133: 7559304.82 | AQ133: 3490734 | AR133: 4305717 | AS133: 5987269 | AT133: 90468397 | AU133: 15088843.71 | AV133: 2128915.67 | AW133: =SUM($K133:AV133) -> 778448641.8
D135: PAGE | E135: OP Fin Pos
E137: MANITOBA PUBLIC SCHOOL DIVISIONS | K137: THE CELLS HIGH LITED IN YELLOW ARE REFERENCED TO SCHOOL DIVISION STATEMENT FILES.
E138: OPERATING FUND | K138: The cells high lited in yellow have been "copy - paste special - values" for this spreadsheet
E139: STATEMENT OF FINANCIAL POSITION
E140: For the Year Ended March 31, 2021 | I140: FORMULAS | K140: 0 | L140: 0 | M140: 0 | N140: 0 | O140: 0 | P140: 0 | Q140: 0 | R140: 0 | S140: 0 | T140: 0 | U140: 0 | V140: 0 | W140: 0 | X140: 0 | Y140: 0 | Z140: 0 | AA140: 0 | AB140: 0 | AC140: 0 | AD140: 0 | AE140: 0 | AF140: 0 | AG140: 0 | AH140: 0 | AI140: 0 | AJ140: 0 | AK140: 0 | AL140: 0 | AM140: 0 | AN140: 0 | AO140: 0 | AP140: 0 | AQ140: 0 | AR140: 0 | AS140: 0 | AT140: 0 | AU140: 0 | AV140: 0
I141: =$I$53 -> 1 | K141: 2 | L141: =K141+1 -> 3 | M141: =L141+1 -> 4 | N141: =M141+1 -> 5 | O141: 6 | P141: 7 | Q141: =P141+1 -> 8 | R141: 9 | S141: 10 | T141: =S141+1 -> 11 | U141: 12 | V141: 13 | W141: 14 | X141: 15 | Y141: 16 | Z141: 17 | AA141: 18 | AB141: 19 | AC141: 20 | AD141: 21 | AE141: 22 | AF141: 23 | AG141: 24 | AH141: 25 | AI141: 26 | AJ141: 27 | AK141: 28 | AL141: 29 | AM141: 30 | AN141: 31 | AO141: 32 | AP141: 33 | AQ141: 34 | AR141: 35 | AS141: 36 | AT141: 37 | AU141: 38 | AV141: 39 | AW141: 40
I142: =HLOOKUP($I$141,$K$141:$AW$175,J142,FALSE) ->  | J142: 2 | K142: BE | L142: BO | M142: BR | N142: DI | O142: EV | P142: FL | Q142: FO | R142: FR | S142: GA | T142: HA | U142: IN | V142: KE | W142: LA | X142: LO | Y142: LR | Z142: MO | AA142: MY | AB142: PA | AC142: PE | AD142: PI | AE142: PO | AF142: PR | AG142: PS | AH142: RE | AI142: RI | AJ142: RO | AK142: SE | AL142: SO | AM142: SR | AN142: ST | AO142: SU | AP142: SW | AQ142: TM | AR142: TR | AS142: WE | AT142: WI | AU142: WT | AV142: XW | AW142: TOTAL
E143: Financial Assets | J143: 3
F144: Cash and Bank | I144: =IF($I$141=1,0,HLOOKUP($B$33,$K$141:$AW$175,J144,FALSE)) -> 0 | J144: 4 | K144: 3536441 | L144: 815036 | M144: 14828092 | N144: 27494866.53 | O144: 4156736 | P144: 2551196 | Q144: 255991 | R144: 0 | S144: 5287688 | T144: 979755 | U144: 2854665 | V144: 1156060 | W144: 3059097 | X144: 1224974 | Y144: 0 | Z144: 1147544 | AA144: 15768754.03 | AB144: 88209 | AC144: 6035433.73 | AD144: 2597569 | AE144: 5650652.84 | AF144: 1852576 | AG144: 3621684 | AH144: 966637 | AI144: 13104130 | AJ144: 177321 | AK144: 4112253 | AL144: 1758426 | AM144: 5273832 | AN144: 11697526 | AO144: 16793 | AP144: 6121044 | AQ144: 1693468 | AR144: 4463896 | AS144: 63490 | AT144: 16794089 | AU144: 13295897 | AV144: 790815 | AW144: =SUM($K144:AV144) -> 185292637.1
F145: Due from | I145: 0 | J145: 5 | K145: 626501 | L145: 1791728 | M145: 3354021 | N145: 2946147.75 | O145: 1659003 | P145: 537782 | Q145: 633988 | R145: 1247195 | S145: 1919670 | T145: 2877118 | U145: 1363675 | V145: 769499 | W145: 529562 | X145: 2903667 | Y145: 11608229 | Z145: 1550223 | AA145: 915840.13 | AB145: 826276 | AC145: 8607100 | AD145: 446406 | AE145: 1411651 | AF145: 1631703 | AG145: 855258 | AH145: 1150590 | AI145: 8596957 | AJ145: 974793 | AK145: 1830940 | AL145: 5961977 | AM145: 738240 | AN145: 2531180 | AO145: 4118305 | AP145: 811844 | AQ145: 466400 | AR145: 275738 | AS145: 732876 | AT145: 13563495 | AU145: 805211 | AV145: 0 | AW145: =SUM($K145:AV145) -> 93570788.88
G146: - Provincial Government | I146: 0 | J146: 6 | K146: 25204 | L146: 37674 | M146: 27374 | N146: 495806.68 | O146: 311878 | P146: 14300 | Q146: 80945 | R146: 748435 | S146: 70194 | T146: 169957 | U146: 5330 | V146: 0 | W146: 20637.4 | X146: 20433 | Y146: 261945 | Z146: 129019 | AA146: 40982.17 | AB146: 45371 | AC146: 202592.15 | AD146: 150176 | AE146: 57271 | AF146: 70011 | AG146: 106258 | AH146: 67822 | AI146: 374727 | AJ146: 27457 | AK146: 211748 | AL146: 408107 | AM146: 31775 | AN146: 121318 | AO146: 94242 | AP146: 113478 | AQ146: 18449.03 | AR146: 25134 | AS146: 71974 | AT146: 1125689 | AU146: 299465 | AV146: 3706 | AW146: =SUM($K146:AV146) -> 6086884.43
G147: - Federal Government | I147: 0 | J147: 7 | K147: 2036873 | L147: 3872594 | M147: 11423074 | N147: 8507964.45 | O147: 2451762 | P147: 927030 | Q147: 2398597 | R147: 853174 | S147: 4300356 | T147: 8490734 | U147: 4108533 | V147: 1277977 | W147: 1188632 | X147: 7744962 | Y147: 24235995 | Z147: 4119609 | AA147: 2142579.6 | AB147: 2358763 | AC147: 26702540 | AD147: 1678798 | AE147: 4095203 | AF147: 3232699 | AG147: 3457065 | AH147: 4615599 | AI147: 20645294 | AJ147: 2960062 | AK147: 5197762 | AL147: 14792787 | AM147: 2572004 | AN147: 16938943 | AO147: 8883120 | AP147: 1795461 | AQ147: 1882582 | AR147: 714551 | AS147: 2262011 | AT147: 50241534 | AU147: 0 | AV147: 8339 | AW147: =SUM($K147:AV147) -> 265115563.1
G148: - Municipal Government | I148: 0 | J148: 8 | K148: 0 | L148: 220306 | M148: 33608 | N148: 530803 | O148: 10920 | P148: 0 | Q148: 0 | R148: 0 | S148: 255617 | T148: 8375 | U148: 0 | V148: 0 | W148: 2256 | X148: 0 | Y148: 92862 | Z148: 57945 | AA148: 0 | AB148: 0 | AC148: 247785.98 | AD148: 0 | AE148: 0 | AF148: 0 | AG148: 2286 | AH148: 135730 | AI148: 0 | AJ148: 0 | AK148: 490 | AL148: 0 | AM148: 0 | AN148: 0 | AO148: 0 | AP148: 4200 | AQ148: 0 | AR148: 0 | AS148: 0 | AT148: 194603 | AU148: 335970 | AV148: 0 | AW148: =SUM($K148:AV148) -> 2133756.98
G149: - Other School Divisions | I149: 0 | J149: 9 | K149: 0 | L149: 14632 | M149: 49200 | N149: 0 | O149: 198000 | P149: 0 | Q149: 177691 | R149: 28012035 | S149: 0 | T149: 0 | U149: 0 | V149: 10800 | W149: 23265 | X149: 12100 | Y149: 0 | Z149: 327108 | AA149: -1258 | AB149: 4514072 | AC149: 0 | AD149: 0 | AE149: 0 | AF149: 0 | AG149: 48844 | AH149: 0 | AI149: 22325 | AJ149: 451859 | AK149: 0 | AL149: 498900 | AM149: 0 | AN149: 43200 | AO149: 26311 | AP149: 0 | AQ149: 0 | AR149: 0 | AS149: 0 | AT149: 714572 | AU149: 0 | AV149: 0 | AW149: =SUM($K149:AV149) -> 35143656
G150: - First Nations | I150: 0 | J150: 10 | K150: -499186 | L150: 0 | M150: 0 | N150: 172277.47 | O150: 0 | P150: 0 | Q150: -66123 | R150: 0 | S150: 127856 | T150: 3008510 | U150: 10752 | V150: 0 | W150: 0 | X150: 0 | Y150: 6266816 | Z150: 0 | AA150: -77915.56 | AB150: 0 | AC150: 353272.55 | AD150: 0 | AE150: -91141 | AF150: 0 | AG150: 0 | AH150: 305 | AI150: 0 | AJ150: 0 | AK150: 63118 | AL150: 4260816 | AM150: 0 | AN150: 0 | AO150: 447007 | AP150: 123957 | AQ150: -1208966 | AR150: 0 | AS150: 1276335 | AT150: 4433028 | AU150: 717515 | AV150: 581507 | AW150: =SUM($K150:AV150) -> 19899740.46
F151: Accounts Receivable | G151: - Capital and Special Purpose Fund | I151: 0 | J151: 11 | K151: 21697 | L151: 76327 | M151: 97344 | N151: 92976.65 | O151: 80503 | P151: 111681 | Q151: 30782 | R151: 1487295 | S151: 32235 | T151: 152183 | U151: 103957 | V151: 33960 | W151: 21936 | X151: 106353 | Y151: 710989 | Z151: 49738 | AA151: 32065.39 | AB151: 32696 | AC151: 428737 | AD151: 230638 | AE151: 199874 | AF151: 45315 | AG151: 106708 | AH151: 24814 | AI151: 392464 | AJ151: 28122 | AK151: 57498 | AL151: 242497 | AM151: 18467 | AN151: 105097 | AO151: 123237 | AP151: 42972 | AQ151: 18171 | AR151: 11701 | AS151: 54416 | AT151: 1010729 | AU151: 1041235 | AV151: 296 | AW151: =SUM($K151:AV151) -> 7457706.04
F152: Accrued Investment Income | I152: 0 | J152: 12 | K152: 0 | L152: 0 | M152: 0 | N152: 0 | O152: 0 | P152: 0 | Q152: 0 | R152: 0 | S152: 0 | T152: 0 | U152: 0 | V152: 0 | W152: 0 | X152: 0 | Y152: 0 | Z152: 0 | AA152: 0 | AB152: 0 | AC152: 0 | AD152: 0 | AE152: 0 | AF152: 0 | AG152: 0 | AH152: 0 | AI152: 0 | AJ152: 0 | AK152: 0 | AL152: 0 | AM152: 0 | AN152: 0 | AO152: 0 | AP152: 0 | AQ152: 0 | AR152: 0 | AS152: 0 | AT152: 0 | AU152: 9191 | AV152: 0 | AW152: =SUM($K152:AV152) -> 9191
F153: Portfolio Investments | I153: 0 | J153: 13 | K153: 0 | L153: 0 | M153: 0 | N153: 0 | O153: 0 | P153: 0 | Q153: 0 | R153: 0 | S153: 0 | T153: 0 | U153: 0 | V153: 0 | W153: 0 | X153: 0 | Y153: 0 | Z153: 0 | AA153: 0 | AB153: 0 | AC153: 0 | AD153: 0 | AE153: 0 | AF153: 0 | AG153: 0 | AH153: 0 | AI153: 0 | AJ153: 0 | AK153: 0 | AL153: 0 | AM153: 0 | AN153: 0 | AO153: 0 | AP153: 0 | AQ153: 0 | AR153: 0 | AS153: 0 | AT153: 802825 | AU153: 10848381 | AV153: 0 | AW153: =SUM($K153:AV153) -> 11651206
I154: 0 | J154: 14 | K154: =SUM(K144:K153) -> 5747530 | L154: =SUM(L144:L153) -> 6828297 | M154: 29812713 | N154: 40240842.53 | O154: 8868802 | P154: 4141989 | Q154: 3511871 | R154: 32348134 | S154: 11993616 | T154: 15686632 | U154: 8446912 | V154: 3248296 | W154: 4845385.4 | X154: 12012489 | Y154: 43176836 | Z154: 7381186 | AA154: 18821047.76 | AB154: 7865387 | AC154: 42577461.41 | AD154: 5103587 | AE154: 11323510.84 | AF154: 6832304 | AG154: 8198103 | AH154: 6961497 | AI154: 43135897 | AJ154: 4619614 | AK154: 11473809 | AL154: 27923510 | AM154: 8634318 | AN154: 31437264 | AO154: 13709015 | AP154: 9012956 | AQ154: 2870104.03 | AR154: 5491020 | AS154: 4461102 | AT154: 88880564 | AU154: 27352865 | AV154: 1384663 | AW154: =SUM(AW144:AW153) -> 626361130
E155: Liabilities | I155: 0 | J155: 15
F156: Overdraft | I156: 0 | J156: 16 | K156: 0 | L156: 6020 | M156: 0 | N156: 0 | O156: 0 | P156: 0 | Q156: 63271 | R156: 1260787 | S156: 0 | T156: 0 | U156: 0 | V156: 0 | W156: 0 | X156: 0 | Y156: 5859234 | Z156: 0 | AA156: 0 | AB156: 2171102 | AC156: 0 | AD156: 0 | AE156: 0 | AF156: 0 | AG156: 0 | AH156: 0 | AI156: 0 | AJ156: 0 | AK156: 0 | AL156: 0 | AM156: 0 | AN156: 0 | AO156: 221500 | AP156: 0 | AQ156: 0 | AR156: 0 | AS156: 0 | AT156: 0 | AU156: 0 | AV156: 0 | AW156: =SUM($K156:AV156) -> 9581914
F157: Accounts Payable | I157: 0 | J157: 17 | K157: 407395 | L157: 564741 | M157: 1268131 | N157: 2323154.73 | O157: 673640 | P157: 268854 | Q157: 347148 | R157: 14177994 | S157: 1679066 | T157: 2358010 | U157: -1636 | V157: 755634 | W157: 657792 | X157: 1727361 | Y157: 7064878 | Z157: 1302674 | AA157: 507424.2 | AB157: 1715232 | AC157: 4844501 | AD157: 1185316 | AE157: 212783.34 | AF157: 684568 | AG157: 3254989 | AH157: 269625 | AI157: 1085468 | AJ157: 573144 | AK157: 1098793 | AL157: 2001953 | AM157: 2670475 | AN157: 4939684 | AO157: 987741 | AP157: 456106 | AQ157: 207954 | AR157: 169411 | AS157: 165317 | AT157: 11561049 | AU157: 625833 | AV157: 1590 | AW157: =SUM($K157:AV157) -> 74793793.27
F158: Accrued Liabilities | I158: 0 | J158: 18 | K158: 2338292 | L158: 3633867 | M158: 15290534 | N158: 7916853.76 | O158: 2414441 | P158: 1859590 | Q158: 1086064 | R158: 11550944 | S158: 6946657 | T158: 11798220 | U158: 5478229 | V158: 1433335 | W158: 1495251 | X158: 6161306 | Y158: 14810932 | Z158: 4369241 | AA158: 6678871.03 | AB158: 2072583 | AC158: 18403579.75 | AD158: 1803556 | AE158: 4393697 | AF158: 3841236 | AG158: 1308131 | AH158: 3501768 | AI158: 25192857 | AJ158: 1156913 | AK158: 6421447 | AL158: 18725118 | AM158: 945374 | AN158: 13487550 | AO158: 6719783 | AP158: 2714810 | AQ158: 403568 | AR158: 1100288 | AS158: 2747383 | AT158: 62101294 | AU158: 1114573 | AV158: 91964 | AW158: =SUM($K158:AV158) -> 283510100.5
F159: Employee Future Benefits | I159: 0 | J159: 19 | K159: 46223 | L159: 0 | M159: 1901632 | N159: 1430584.46 | O159: 122062 | P159: 163391 | Q159: 48105 | R159: 946877 | S159: 0 | T159: 986732 | U159: 1534119 | V159: 98075 | W159: 95178 | X159: 314171 | Y159: 1791507 | Z159: 489494 | AA159: 5172520.65 | AB159: 60123 | AC159: 2450964.65 | AD159: 159677 | AE159: 164319 | AF159: 247864 | AG159: 285330 | AH159: 115060 | AI159: 1957390 | AJ159: 194095 | AK159: 248711 | AL159: 686089 | AM159: 0 | AN159: 2059683 | AO159: 954734 | AP159: 295165 | AQ159: 47382 | AR159: 55919 | AS159: 0 | AT159: 6036208 | AU159: 0 | AV159: 0 | AW159: =SUM($K159:AV159) -> 31159384.76
F160: Accrued Interest Payable | I160: 0 | J160: 20 | K160: 0 | L160: 0 | M160: 0 | N160: 0 | O160: 0 | P160: 0 | Q160: 0 | R160: 0 | S160: 0 | T160: 0 | U160: 0 | V160: 0 | W160: 0 | X160: 0 | Y160: 0 | Z160: 0 | AA160: 0 | AB160: 0 | AC160: 0 | AD160: 0 | AE160: 0 | AF160: 0 | AG160: 0 | AH160: 0 | AI160: 0 | AJ160: 0 | AK160: 0 | AL160: 0 | AM160: 0 | AN160: 0 | AO160: 0 | AP160: 0 | AQ160: 0 | AR160: 0 | AS160: 0 | AT160: 0 | AU160: 0 | AV160: 0 | AW160: =SUM($K160:AV160) -> 0
F161: Due to | G161: - Provincial Government | I161: 0 | J161: 21 | K161: 0 | L161: 6716 | M161: 186656 | N161: 353127.45 | O161: 0 | P161: 0 | Q161: 0 | R161: 422453 | S161: 0 | T161: 60472 | U161: 0 | V161: 0 | W161: 0 | X161: 0 | Y161: 4507 | Z161: 0 | AA161: 2121.47 | AB161: 0 | AC161: 361463.93 | AD161: 0 | AE161: 62210 | AF161: 15645 | AG161: 0 | AH161: 1836 | AI161: 16580 | AJ161: 0 | AK161: 157233 | AL161: 217687 | AM161: 0 | AN161: 2520972 | AO161: 0 | AP161: 36573 | AQ161: 0 | AR161: 2337 | AS161: 32843 | AT161: 1903779 | AU161: 0 | AV161: 0 | AW161: =SUM($K161:AV161) -> 6365211.85
G162: - Federal Government | I162: 0 | J162: 22 | K162: 0 | L162: 201381 | M162: 2089468 | N162: 3201585.73 | O162: 26192 | P162: 0 | Q162: 0 | R162: 0 | S162: 2107 | T162: 0 | U162: 0 | V162: 0 | W162: 0 | X162: 0 | Y162: 4011 | Z162: 0 | AA162: 118.69 | AB162: 0 | AC162: 2004693 | AD162: 0 | AE162: 500038 | AF162: 0 | AG162: 0 | AH162: 5372 | AI162: 0 | AJ162: 0 | AK162: 601160 | AL162: 1334117 | AM162: 0 | AN162: 0 | AO162: 0 | AP162: 219771 | AQ162: 0 | AR162: 0 | AS162: 33128 | AT162: 7715620 | AU162: 0 | AV162: 0 | AW162: =SUM($K162:AV162) -> 17938762.42
G163: - Municipal Government | I163: 0 | J163: 23 | K163: 0 | L163: 10443 | M163: 75435 | N163: 5967.89 | O163: 7623 | P163: 0 | Q163: 0 | R163: 0 | S163: 0 | T163: 0 | U163: 0 | V163: 0 | W163: 4565 | X163: 0 | Y163: 0 | Z163: 0 | AA163: 0 | AB163: 0 | AC163: 77405 | AD163: 0 | AE163: 0 | AF163: 21225 | AG163: 0 | AH163: 22691 | AI163: 0 | AJ163: 0 | AK163: 39063 | AL163: 179640 | AM163: 0 | AN163: 0 | AO163: 0 | AP163: 0 | AQ163: 0 | AR163: 0 | AS163: 0 | AT163: 372815 | AU163: 0 | AV163: 0 | AW163: =SUM($K163:AV163) -> 816872.89
G164: - Other School Divisions | I164: 0 | J164: 24 | K164: 0 | L164: 270733 | M164: 0 | N164: 0 | O164: 0 | P164: 92036 | Q164: 0 | R164: 0 | S164: 0 | T164: 0 | U164: 0 | V164: 0 | W164: 0 | X164: 0 | Y164: 0 | Z164: 0 | AA164: 0 | AB164: 0 | AC164: 125100 | AD164: 0 | AE164: 0 | AF164: 0 | AG164: 0 | AH164: 164809 | AI164: 0 | AJ164: 0 | AK164: 43582 | AL164: 60 | AM164: 0 | AN164: 0 | AO164: 0 | AP164: 0 | AQ164: 0 | AR164: 0 | AS164: 0 | AT164: 0 | AU164: 0 | AV164: 0 | AW164: =SUM($K164:AV164) -> 696320
G165: - First Nations | I165: 0 | J165: 25 | K165: 0 | L165: 0 | M165: 0 | N165: 0 | O165: 0 | P165: 0 | Q165: 0 | R165: 0 | S165: 0 | T165: 0 | U165: 0 | V165: 0 | W165: 0 | X165: 0 | Y165: 0 | Z165: 0 | AA165: 0 | AB165: 0 | AC165: 0 | AD165: 0 | AE165: 0 | AF165: 0 | AG165: 0 | AH165: 0 | AI165: 0 | AJ165: 0 | AK165: 0 | AL165: 0 | AM165: 0 | AN165: 0 | AO165: 0 | AP165: 0 | AQ165: 0 | AR165: 0 | AS165: 0 | AT165: 0 | AU165: 0 | AV165: 0 | AW165: =SUM($K165:AV165) -> 0
G166: - Capital and Special Purpose Fund | I166: 0 | J166: 26 | K166: 1299102 | L166: 740856 | M166: 7325672 | N166: 16041197.07 | O166: 2403576 | P166: 163284 | Q166: 154648 | R166: 1092458 | S166: 462342 | T166: 0 | U166: 0 | V166: 0 | W166: 1207528 | X166: 1286200 | Y166: 623545 | Z166: 363114 | AA166: 306387.75 | AB166: -154201 | AC166: 0 | AD166: 1347483 | AE166: 3084488 | AF166: 1760932 | AG166: 1577362 | AH166: 1257132 | AI166: 1586504 | AJ166: 1171181 | AK166: 30363 | AL166: 260564 | AM166: 3095719 | AN166: 4737228 | AO166: 0 | AP166: 3884714 | AQ166: 0 | AR166: 3329520 | AS166: 474872 | AT166: 93100 | AU166: 0 | AV166: 0 | AW166: =SUM($K166:AV166) -> 61006870.82
F167: Deferred Revenue | I167: 0 | J167: 27 | K167: 5655 | L167: 293968 | M167: 336430 | N167: 950002.35 | O167: 152226 | P167: 30053 | Q167: 11586 | R167: 802099 | S167: 29888 | T167: 127033 | U167: 16339 | V167: 0 | W167: 0 | X167: 1007024 | Y167: 731450 | Z167: 163676 | AA167: 0 | AB167: 3621 | AC167: 4244604 | AD167: 6708 | AE167: 84182 | AF167: 9062 | AG167: 18092 | AH167: 20459 | AI167: 1516029 | AJ167: 0 | AK167: 404038 | AL167: 778741 | AM167: 3582 | AN167: 474410 | AO167: 215704 | AP167: 84283 | AQ167: 194144 | AR167: 0 | AS167: 171925 | AT167: 2782742 | AU167: 15412172 | AV167: 13750 | AW167: =SUM($K167:AV167) -> 31095677.35
F168: Other Borrowings | I168: 0 | J168: 28 | K168: 0 | L168: 0 | M168: 0 | N168: 811144.88 | O168: 0 | P168: 0 | Q168: 0 | R168: 0 | S168: 0 | T168: 0 | U168: 0 | V168: 0 | W168: 0 | X168: 0 | Y168: 0 | Z168: 384974 | AA168: 0 | AB168: 0 | AC168: 0 | AD168: 0 | AE168: 0 | AF168: 0 | AG168: 0 | AH168: 0 | AI168: 0 | AJ168: 0 | AK168: 0 | AL168: 0 | AM168: 164966 | AN168: 0 | AO168: 0 | AP168: 0 | AQ168: 0 | AR168: 0 | AS168: 0 | AT168: 0 | AU168: 2783 | AV168: 0 | AW168: =SUM($K168:AV168) -> 1363867.88
I169: 0 | J169: 29 | K169: =SUM(K156:K168) -> 4096667 | L169: =SUM(L156:L168) -> 5728725 | M169: 28473958 | N169: 33033618.32 | O169: 5799760 | P169: 2577208 | Q169: 1710822 | R169: 30253612 | S169: 9120060 | T169: 15330467 | U169: 7027051 | V169: 2287044 | W169: 3460314 | X169: 10496062 | Y169: 30890064 | Z169: 7073173 | AA169: 12667443.79 | AB169: 5868460 | AC169: 32512311.33 | AD169: 4502740 | AE169: 8501717.34 | AF169: 6580532 | AG169: 6443904 | AH169: 5358752 | AI169: 31354828 | AJ169: 3095333 | AK169: 9044390 | AL169: 24183969 | AM169: 6880116 | AN169: 28219527 | AO169: 9099462 | AP169: 7691422 | AQ169: 853048 | AR169: 4657475 | AS169: 3625468 | AT169: 92566607 | AU169: 17155361 | AV169: 107304 | AW169: =SUM($K169:AV169) -> 518328775.8
E170: Net Financial Assets (Net Debt) | I170: 0 | J170: 30 | K170: =K154-K169 -> 1650863 | L170: =L154-L169 -> 1099572 | M170: 1338755 | N170: 7207224.21 | O170: 3069042 | P170: 1564781 | Q170: 1801049 | R170: 2094522 | S170: 2873556 | T170: 356165 | U170: 1419861 | V170: 961252 | W170: 1385071.4 | X170: 1516427 | Y170: 12286772 | Z170: 308013 | AA170: 6153603.97 | AB170: 1996927 | AC170: 10065150.08 | AD170: 600847 | AE170: 2821793.5 | AF170: 251772 | AG170: 1754199 | AH170: 1602745 | AI170: 11781069 | AJ170: 1524281 | AK170: 2429419 | AL170: 3739541 | AM170: 1754202 | AN170: 3217737 | AO170: 4609553 | AP170: 1321534 | AQ170: 2017056.03 | AR170: 833545 | AS170: 835634 | AT170: -3686043 | AU170: 10197504 | AV170: 1277359 | AW170: =SUM($K170:AV170) -> 108032354.2
E171: Non-Financial Assets | I171: 0 | J171: 31
F172: Inventories | I172: 0 | J172: 32 | K172: 0 | L172: 135248 | M172: 148965 | N172: 0 | O172: 0 | P172: 0 | Q172: 0 | R172: 0 | S172: 0 | T172: 513505 | U172: 124087 | V172: 0 | W172: 0 | X172: 82156 | Y172: 35728 | Z172: 250267 | AA172: 143456.71 | AB172: 148775 | AC172: 0 | AD172: 0 | AE172: 37835 | AF172: 0 | AG172: 0 | AH172: 174951 | AI172: 0 | AJ172: 0 | AK172: 0 | AL172: 9414 | AM172: 134374 | AN172: 0 | AO172: 405950 | AP172: 27240 | AQ172: 5395 | AR172: 138291 | AS172: 34907 | AT172: 1232215 | AU172: 0 | AV172: 0 | AW172: =SUM($K172:AV172) -> 3782759.71
F173: Prepaid Expenses | I173: 0 | J173: 33 | K173: 191547 | L173: 93185 | M173: 697002 | N173: 1076164.6 | O173: 129007 | P173: 71476 | Q173: 31565 | R173: 686596 | S173: 133833 | T173: 1376583 | U173: 78551 | V173: 0 | W173: 64699 | X173: 259140 | Y173: 1228587 | Z173: 689907 | AA173: 155038.17 | AB173: 135925 | AC173: 598393 | AD173: 39610 | AE173: 97955 | AF173: 0 | AG173: 196395 | AH173: 45742 | AI173: 731342 | AJ173: 9441 | AK173: 194750 | AL173: 331002 | AM173: 218286 | AN173: 603139 | AO173: 441742 | AP173: 97614 | AQ173: 175183 | AR173: 0 | AS173: 100582 | AT173: 1514734 | AU173: 583155 | AV173: 0 | AW173: =SUM($K173:AV173) -> 13077870.77
I174: 0 | J174: 34 | K174: =SUM(K172:K173) -> 191547 | L174: =SUM(L172:L173) -> 228433 | M174: 845967 | N174: 1076164.6 | O174: 129007 | P174: 71476 | Q174: 31565 | R174: 686596 | S174: 133833 | T174: 1890088 | U174: 202638 | V174: 0 | W174: 64699 | X174: 341296 | Y174: 1264315 | Z174: 940174 | AA174: 298494.88 | AB174: 284700 | AC174: 598393 | AD174: 39610 | AE174: 135790 | AF174: 0 | AG174: 196395 | AH174: 220693 | AI174: 731342 | AJ174: 9441 | AK174: 194750 | AL174: 340416 | AM174: 352660 | AN174: 603139 | AO174: 847692 | AP174: 124854 | AQ174: 180578 | AR174: 138291 | AS174: 135489 | AT174: 2746949 | AU174: 583155 | AV174: 0 | AW174: =SUM($K174:AV174) -> 16860630.48
E175: Accumulated Surplus (Deficit) | I175: 0 | J175: 35 | K175: =SUM(K170,K174) -> 1842410 | L175: =SUM(L170,L174) -> 1328005 | M175: 2184722 | N175: 8283388.81 | O175: 3198049 | P175: 1636257 | Q175: 1832614 | R175: 2781118 | S175: 3007389 | T175: 2246253 | U175: 1622499 | V175: 961252 | W175: 1449770.4 | X175: 1857723 | Y175: 13551087 | Z175: 1248187 | AA175: 6452098.85 | AB175: 2281627 | AC175: 10663543.08 | AD175: 640457 | AE175: 2957583.5 | AF175: 251772 | AG175: 1950594 | AH175: 1823438 | AI175: 12512411 | AJ175: 1533722 | AK175: 2624169 | AL175: 4079957 | AM175: 2106862 | AN175: 3820876 | AO175: 5457245 | AP175: 1446388 | AQ175: 2197634.03 | AR175: 971836 | AS175: 971123 | AT175: -939094 | AU175: 10780659 | AV175: 1277359 | AW175: =SUM($K175:AV175) -> 124892984.7
D180: PAGE | E180: OP Rev Exp
E182: MANITOBA PUBLIC SCHOOL DIVISIONS | K182: THE CELLS HIGH LITED IN YELLOW ARE REFERENCED TO SCHOOL DIVISION STATEMENT FILES.
E183: OPERATING FUND | K183: The cells high lited in yellow have been "copy - paste special - values" for this spreadsheet
E184: STATEMENT OF REVENUE, EXPENSES
E185: AND ACCUMULATED SURPLUS
E186: For the Year Ended March 31, 2021 | I186: FORMULAS | K186: 0 | L186: 0 | M186: 0 | N186: 0 | O186: 0 | P186: 0 | Q186: 0 | R186: 0 | S186: 0 | T186: 0 | U186: 0 | V186: 0 | W186: 0 | X186: 0 | Y186: 0 | Z186: 0 | AA186: 0 | AB186: 0 | AC186: 0 | AD186: 0 | AE186: 0 | AF186: 0 | AG186: 0 | AH186: 0 | AI186: 0 | AJ186: 0 | AK186: 0 | AL186: 0 | AM186: 0 | AN186: 0 | AO186: 0 | AP186: 0 | AQ186: 0 | AR186: 0 | AS186: 0 | AT186: 0 | AU186: 0 | AV186: 0
I187: =$I$53 -> 1 | K187: 2 | L187: 3 | M187: 4 | N187: 5 | O187: 6 | P187: 7 | Q187: 8 | R187: 9 | S187: 10 | T187: 11 | U187: 12 | V187: 13 | W187: 14 | X187: 15 | Y187: 16 | Z187: 17 | AA187: 18 | AB187: 19 | AC187: 20 | AD187: 21 | AE187: 22 | AF187: 23 | AG187: 24 | AH187: 25 | AI187: 26 | AJ187: 27 | AK187: 28 | AL187: 29 | AM187: 30 | AN187: 31 | AO187: 32 | AP187: 33 | AQ187: 34 | AR187: 35 | AS187: 36 | AT187: 37 | AU187: 38 | AV187: 39 | AW187: 40
I188: =HLOOKUP($I$187,$K$187:$AW$245,J188,FALSE) ->  | J188: 2 | K188: BE | L188: BO | M188: BR | N188: DI | O188: EV | P188: FL | Q188: FO | R188: FR | S188: GA | T188: HA | U188: IN | V188: KE | W188: LA | X188: LO | Y188: LR | Z188: MO | AA188: MY | AB188: PA | AC188: PE | AD188: PI | AE188: PO | AF188: PR | AG188: PS | AH188: RE | AI188: RI | AJ188: RO | AK188: SE | AL188: SO | AM188: SR | AN188: ST | AO188: SU | AP188: SW | AQ188: TM | AR188: TR | AS188: WE | AT188: WI | AU188: WT | AV188: XW | AW188: TOTAL
E189: Revenue | J189: 3
F190: Provincial Government | J190: 4
F191: Department of Education, Citizenship and Youth | J191: 5
F192: Funding of Schools Program | I192: =IF($I$187=1,0,HLOOKUP($I$187,$K$187:$AW$247,J192,FALSE)) -> 0 | J192: 6 | K192: 11646452 | L192: 14288678 | M192: 53053312 | N192: 37653741 | O192: 7769070 | P192: 9100377 | Q192: 6940495 | R192: 37088451 | S192: 29234107 | T192: 54534968 | U192: 17835780 | V192: 13480476 | W192: 9052205 | X192: 22477110 | Y192: 81696292 | Z192: 22259178 | AA192: 31516558 | AB192: 9978125 | AC192: 60325961 | AD192: 7102351 | AE192: 18729608 | AF192: 12461197 | AG192: 13172814 | AH192: 11469157 | AI192: 97582111 | AJ192: 9479782 | AK192: 30012515 | AL192: 82614572 | AM192: 8472331 | AN192: 37978987 | AO192: 25346862 | AP192: 10941647 | AQ192: 5629970 | AR192: 7191724 | AS192: 11743384 | AT192: 186627121 | AU192: 0 | AV192: 908067 | AW192: =SUM($K192:AV192) -> 1107395536
F193: Education Property Tax Credit | I193: 0 | J193: 7 | K193: 1773625 | L193: 2446985 | M193: 7851680 | N193: 6590407.544 | O193: 2974715 | P193: 809286 | Q193: 1400149 | R193: 560746 | S193: 3548617 | T193: 6939295 | U193: 3746328 | V193: 1099041 | W193: 1140016 | X193: 6151139 | Y193: 21918644 | Z193: 3563251 | AA193: 1593123 | AB193: 1677252 | AC193: 21628172 | AD193: 1032670 | AE193: 3391716 | AF193: 2552962 | AG193: 1877133 | AH193: 2352463 | AI193: 23684492 | AJ193: 2312188 | AK193: 5206341 | AL193: 12511885 | AM193: 1662241 | AN193: 12601337 | AO193: 7536736 | AP193: 1657986 | AQ193: 1287446 | AR193: 811326 | AS193: 2129084 | AT193: 29594983 | AU193: 0 | AV193: 585581 | AW193: =SUM($K193:AV193) -> 210201041.5
F194: Tax Incentive Grant | I194: 0 | J194: 8 | K194: 252166 | L194: 2566795 | M194: 909005 | N194: 1127132.5 | O194: 1501497 | P194: 357539 | Q194: 458758 | R194: 159238 | S194: 323086 | T194: 747252 | U194: 840809 | V194: 154704 | W194: 411659 | X194: 2519021 | Y194: 2910625 | Z194: 345180 | AA194: 526092 | AB194: 746974 | AC194: 2401933 | AD194: 314149 | AE194: 269136 | AF194: 1058595.54 | AG194: 763121 | AH194: 657475 | AI194: 731165 | AJ194: 717685 | AK194: 1027522 | AL194: 2675137 | AM194: 714980 | AN194: 1819127 | AO194: 1465595 | AP194: 964754 | AQ194: 0 | AR194: 263938 | AS194: 0 | AT194: 4731590 | AU194: 0 | AV194: 0 | AW194: =SUM($K194:AV194) -> 37433435.04
F195: Property Tax Offset Grant | I195: 0 | J195: 9 | K195: 0 | L195: 0 | M195: 0 | N195: 0 | O195: 0 | P195: 0 | Q195: 0 | R195: 0 | S195: 0 | T195: 0 | U195: 0 | V195: 0 | W195: 0 | X195: 0 | Y195: 0 | Z195: 0 | AA195: 0 | AB195: 0 | AC195: 0 | AD195: 0 | AE195: 0 | AF195: 0 | AG195: 0 | AH195: 0 | AI195: 0 | AJ195: 0 | AK195: 0 | AL195: 0 | AM195: 0 | AN195: 0 | AO195: 0 | AP195: 0 | AQ195: 0 | AR195: 0 | AS195: 0 | AT195: 0 | AU195: 0 | AV195: 0 | AW195: =SUM($K195:AV195) -> 0
F196: General Support Grant | I196: 0 | J196: 10 | K196: 393473 | L196: 474859 | M196: 1547056 | N196: 1207596.64 | O196: 243261 | P196: 222575 | Q196: 271411 | R196: 1426636 | S196: 725957 | T196: 1286451 | U196: 592516 | V196: 327922 | W196: 212178 | X196: 886750 | Y196: 3009453 | Z196: 580615 | AA196: 615981.7 | AB196: 371702 | AC196: 2635443 | AD196: 219893 | AE196: 596966 | AF196: 476329 | AG196: 402533 | AH196: 445079 | AI196: 2864990 | AJ196: 334374 | AK196: 799363 | AL196: 2082548 | AM196: 298387 | AN196: 1705702 | AO196: 946993 | AP196: 287063 | AQ196: 199793 | AR196: 149750 | AS196: 301210 | AT196: 6255460 | AU196: 158804 | AV196: 0 | AW196: =SUM($K196:AV196) -> 35557073.34
F197: Other Funding | I197: 0 | J197: 11 | K197: 436027 | L197: 935652 | M197: 3241854 | N197: 22711453.79 | O197: 1209230 | P197: 431396 | Q197: 623108 | R197: 11069941 | S197: 2017319 | T197: 2690790 | U197: 242883 | V197: 1512446 | W197: 416632 | X197: 1260156 | Y197: 9638835 | Z197: 917592 | AA197: 1108537.64 | AB197: 693677 | AC197: 1391337 | AD197: 829588 | AE197: 1146151 | AF197: 284229 | AG197: 677751 | AH197: 986842 | AI197: 5921309 | AJ197: 557820 | AK197: 1405466 | AL197: 2497522 | AM197: 318653 | AN197: 3068430 | AO197: 2525984 | AP197: 600485 | AQ197: 124565 | AR197: 219473 | AS197: 481787 | AT197: 19333162 | AU197: 7028728 | AV197: 0 | AW197: =SUM($K197:AV197) -> 110556811.4
F198: All Other Provincial Government Departments | I198: 0 | J198: 12 | K198: 0 | L198: 509724 | M198: 2600 | N198: 0 | O198: 0 | P198: 94000 | Q198: 0 | R198: 1477272 | S198: 0 | T198: 98789 | U198: 17562 | V198: 773406 | W198: 268896 | X198: 436455 | Y198: 228759 | Z198: 61100 | AA198: 9801.63 | AB198: 0 | AC198: 2724 | AD198: 0 | AE198: 0 | AF198: 276115 | AG198: 0 | AH198: 72 | AI198: 1730170 | AJ198: 258164 | AK198: 336533 | AL198: 1940536 | AM198: 0 | AN198: 25758 | AO198: 944838 | AP198: 0 | AQ198: 183147 | AR198: 0 | AS198: 403099 | AT198: 2119902 | AU198: 3972116 | AV198: 0 | AW198: =SUM($K198:AV198) -> 16171538.63
F199: Other Government Reporting Entities | I199: 0 | J199: 13 | K199: 0 | L199: 0 | M199: 0 | N199: 0 | O199: 0 | P199: 0 | Q199: 208095 | R199: 15629 | S199: 0 | T199: 0 | U199: 0 | V199: 0 | W199: 0 | X199: 0 | Y199: 0 | Z199: 0 | AA199: 8376.72 | AB199: 0 | AC199: 0 | AD199: 0 | AE199: 0 | AF199: 0 | AG199: 5507 | AH199: 0 | AI199: 16376 | AJ199: 0 | AK199: 0 | AL199: -1257 | AM199: 0 | AN199: 81590 | AO199: 163887 | AP199: 11818 | AQ199: 0 | AR199: 0 | AS199: 10970 | AT199: 252173 | AU199: 0 | AV199: 0 | AW199: =SUM($K199:AV199) -> 773164.72
F200: Total Provincial Government | I200: 0 | J200: 14 | K200: =SUM(K192:K199) -> 14501743 | L200: =SUM(L192:L199) -> 21222693 | M200: 66605507 | N200: 69290331.47 | O200: 13697773 | P200: 11015173 | Q200: 9902016 | R200: 51797913 | S200: 35849086 | T200: 66297545 | U200: 23275878 | V200: 17347995 | W200: 11501586 | X200: 33730631 | Y200: 119402608 | Z200: 27726916 | AA200: 35378470.69 | AB200: 13467730 | AC200: 88385570 | AD200: 9498651 | AE200: 24133577 | AF200: 17109427.54 | AG200: 16898859 | AH200: 15911088 | AI200: 132530613 | AJ200: 13660013 | AK200: 38787740 | AL200: 104320943 | AM200: 11466592 | AN200: 57280931 | AO200: 38930895 | AP200: 14463753 | AQ200: 7424921 | AR200: 8636211 | AS200: 15069534 | AT200: 248914391 | AU200: 11159648 | AV200: 1493648 | AW200: =SUM(AW192:AW199) -> 1518088601
I201: 0 | J201: 15
F202: Federal Government | I202: 0 | J202: 16 | K202: 66923 | L202: 29632 | M202: -3763 | N202: 559117.58 | O202: 114488 | P202: 103908 | Q202: 68072 | R202: 878925 | S202: 125128 | T202: 212155 | U202: 0 | V202: 0 | W202: 144480 | X202: 82122 | Y202: 245330 | Z202: 102766 | AA202: 153381 | AB202: 85389 | AC202: 369068 | AD202: 108614 | AE202: 5310 | AF202: 0 | AG202: 3300 | AH202: 124785 | AI202: 491299 | AJ202: 0 | AK202: 140845 | AL202: 1887570 | AM202: 25000 | AN202: 122452 | AO202: 0 | AP202: 214189 | AQ202: 29519 | AR202: 33600 | AS202: 74698 | AT202: 4189342 | AU202: 1417897 | AV202: 0 | AW202: =SUM($K202:AV202) -> 12205541.58
F203: Municipal Government | I203: 0 | J203: 17 | K203: 7780991 | L203: 12808192 | M203: 40408043 | N203: 27329499.96 | O203: 8630198 | P203: 3779305 | Q203: 8367406 | R203: 3223919 | S203: 16844812 | T203: 28221980 | U203: 16348791 | V203: 3393442 | W203: 3937886 | X203: 25554652 | Y203: 80165386 | Z203: 13891797 | AA203: 7126130.74 | AB203: 8476557 | AC203: 88452513 | AD203: 6764028 | AE203: 15649971 | AF203: 14602490.46 | AG203: 11983452 | AH203: 15267358 | AI203: 69346903 | AJ203: 10144743 | AK203: 17923317 | AL203: 48950432 | AM203: 12059339 | AN203: 53373392 | AO203: 30655040 | AP203: 6468090 | AQ203: 6288054 | AR203: 2866502 | AS203: 7455577 | AT203: 166338784 | AU203: 0 | AV203: 1315264 | AW203: =SUM($K203:AV203) -> 902194237.2
F204: Other School Divisions | I204: 0 | J204: 18 | K204: 31525 | L204: 324690 | M204: 401398 | N204: 2107179.95 | O204: 19500 | P204: 294452 | Q204: 48700 | R204: 27960 | S204: 285312 | T204: 105651 | U204: 10950 | V204: 0 | W204: 36589 | X204: 123850 | Y204: 423238 | Z204: 403834 | AA204: 113998 | AB204: 21350 | AC204: 473358 | AD204: 30147 | AE204: 169956.3 | AF204: 121050 | AG204: 48750 | AH204: 1460677 | AI204: 505190 | AJ204: 58500 | AK204: 402825 | AL204: 1491497 | AM204: 96350 | AN204: 297830 | AO204: 107183 | AP204: 23929 | AQ204: 32335 | AR204: 39650 | AS204: 52650 | AT204: 2293362 | AU204: 2076446 | AV204: 37700 | AW204: =SUM($K204:AV204) -> 14599562.25
F205: First Nations | I205: 0 | J205: 19 | K205: 0 | L205: 1113602 | M205: 229140 | N205: 0 | O205: 180000 | P205: 0 | Q205: 674462 | R205: 79332070 | S205: 0 | T205: 0 | U205: 0 | V205: 77700 | W205: 232863 | X205: 479050 | Y205: 62700 | Z205: 659354 | AA205: 305271 | AB205: 7583512 | AC205: 14850 | AD205: 0 | AE205: 2287317 | AF205: 0 | AG205: 241765 | AH205: -410 | AI205: 135100 | AJ205: 1304702 | AK205: 12467 | AL205: 438400 | AM205: 0 | AN205: 189840 | AO205: 351539 | AP205: 239482 | AQ205: 0 | AR205: -3987 | AS205: 0 | AT205: 1668820 | AU205: 0 | AV205: 0 | AW205: =SUM($K205:AV205) -> 97809609
F206: Private Organizations & Individuals | I206: 0 | J206: 20 | K206: 49096 | L206: 85907 | M206: 304352 | N206: 323710.08 | O206: 72836 | P206: 157624 | Q206: 0 | R206: 5428084 | S206: 5965 | T206: 158869 | U206: 257311 | V206: 99205 | W206: 118121 | X206: 73860 | Y206: 2388022 | Z206: 224767 | AA206: 203622 | AB206: 474128 | AC206: 1573334 | AD206: 0 | AE206: 16549 | AF206: 70023 | AG206: 176820 | AH206: 165435 | AI206: 919170 | AJ206: 82728 | AK206: 21434 | AL206: 1781851 | AM206: 0 | AN206: 756904 | AO206: 48202 | AP206: 143407 | AQ206: 2275 | AR206: 12647 | AS206: 33258 | AT206: 1154494 | AU206: 18033853 | AV206: 0 | AW206: =SUM($K206:AV206) -> 35417863.08
F207: Other Sources | I207: 0 | J207: 21 | K207: 68521 | L207: 190411 | M207: 100403 | N207: 150629.15 | O207: 45242 | P207: 74765 | Q207: 24234 | R207: 574050 | S207: 209622 | T207: 209654 | U207: 18513 | V207: 0 | W207: 229863 | X207: 355438 | Y207: 972546 | Z207: 198709 | AA207: 194952 | AB207: 46600 | AC207: 1173515 | AD207: 73018 | AE207: 127604 | AF207: 60607 | AG207: 101509 | AH207: 63415 | AI207: 425927 | AJ207: 40084 | AK207: 102154 | AL207: 110932 | AM207: 59235 | AN207: 470869 | AO207: 117203 | AP207: 161059 | AQ207: 30157 | AR207: 0 | AS207: 54650 | AT207: 740969 | AU207: 484191 | AV207: 110377 | AW207: =SUM($K207:AV207) -> 8171627.15
G208: Total Revenue | I208: 0 | J208: 22 | K208: =ROUND(SUM(K200:K207),0) -> 22498799 | L208: =ROUND(SUM(L200:L207),0) -> 35775127 | M208: =ROUND(SUM(M200:M207),0) -> 108045080 | N208: =ROUND(SUM(N200:N207),0) -> 99760468 | O208: 22760037 | P208: 15425227 | Q208: 19084890 | R208: 141262921 | S208: 53319925 | T208: 95205854 | U208: 39911443 | V208: 20918342 | W208: 16201388 | X208: 60399603 | Y208: 203659830 | Z208: 43208143 | AA208: 43475825 | AB208: 30155266 | AC208: 180442208 | AD208: 16474458 | AE208: 42390284 | AF208: 31963598 | AG208: 29454455 | AH208: 32992348 | AI208: 204354202 | AJ208: 25290770 | AK208: 57390782 | AL208: 158981625 | AM208: 23706516 | AN208: 112492218 | AO208: 70210062 | AP208: 21713909 | AQ208: 13807261 | AR208: 11584623 | AS208: 22740367 | AT208: 425300162 | AU208: 33172035 | AV208: 2956989 | AW208: =SUM(AW200:AW207) -> 2588487041
E209: Expenses | I209: 0 | J209: 23
F210: 300 Salaries | I210: 0 | J210: 24 | K210: 16968165 | L210: 25784215 | M210: 85545488.08 | N210: 69581409.72 | O210: 15168646 | P210: 11178990 | Q210: 14564130 | R210: 90389683 | S210: 40522772 | T210: 73846875 | U210: 31496721 | V210: 16155221 | W210: 11574797 | X210: 46822550 | Y210: 149855976 | Z210: 31578199 | AA210: 32698478 | AB210: 21732989 | AC210: 132714060.5 | AD210: 13037979 | AE210: 33088502 | AF210: 25468303 | AG210: 21794334 | AH210: 24769096 | AI210: 158969335 | AJ210: 18476587 | AK210: 43950908 | AL210: 115305992 | AM210: 17280586 | AN210: 85164235 | AO210: 51677431 | AP210: 16294371 | AQ210: 10008423 | AR210: 7894760 | AS210: 17746044 | AT210: 338149006 | AU210: 18829787 | AV210: 1934398 | AW210: =SUM($K210:AV210) -> 1938019442
F211: 400 Employee Benefits And Allowances | I211: 0 | J211: 25 | K211: 1333326 | L211: 1999489 | M211: 5964895 | N211: 5345488.34 | O211: 1421171 | P211: 911940 | Q211: 1031261 | R211: 8661351 | S211: 3826151 | T211: 5093779 | U211: 2257783 | V211: 1524722 | W211: 1141289 | X211: 3848892 | Y211: 11740440 | Z211: 3019196 | AA211: 4000689 | AB211: 1495731.34 | AC211: 9405704 | AD211: 1052848 | AE211: 2269106 | AF211: 2123771 | AG211: 2262559 | AH211: 1865034 | AI211: 11190826 | AJ211: 1422289 | AK211: 3013061 | AL211: 12617663 | AM211: 1266931 | AN211: 6636603 | AO211: 3694905 | AP211: 1462999 | AQ211: 685682 | AR211: 615751 | AS211: 1194548 | AT211: 28577126 | AU211: 2163983 | AV211: 173814 | AW211: =SUM($K211:AV211) -> 158312796.7
F212: 510 Professional, Technical and Specialized | I212: 0 | J212: 26 | K212: 100002 | L212: 297522 | M212: 997135 | N212: 1811214.04 | O212: 100230 | P212: 89874 | Q212: 19780 | R212: 1457402 | S212: 140973 | T212: 370514 | U212: 192135 | V212: 172640 | W212: 233034 | X212: 364888 | Y212: 1022034 | Z212: 961106 | AA212: 179754 | AB212: 164628 | AC212: 1033839 | AD212: 200447 | AE212: 598441 | AF212: 171912 | AG212: 190587 | AH212: 245012 | AI212: 2136726 | AJ212: 175762 | AK212: 233880 | AL212: 2124421 | AM212: 263050 | AN212: 1116138 | AO212: 473761 | AP212: 249105 | AQ212: 86686 | AR212: 109002 | AS212: 160946 | AT212: 6284279 | AU212: 170584 | AV212: 79449 | AW212: =SUM($K212:AV212) -> 24778892.04
F213: 520 Communications | I213: 0 | J213: 27 | K213: 71731 | L213: 140890 | M213: 147875 | N213: 270628.79 | O213: 55271 | P213: 71971 | Q213: 59872 | R213: 619234 | S213: 69282 | T213: 160586 | U213: 111583 | V213: 81711 | W213: 28360 | X213: 150282 | Y213: 304907 | Z213: 110701 | AA213: 65617 | AB213: 70875.7 | AC213: 266651 | AD213: 68489 | AE213: 129898 | AF213: 104997 | AG213: 90423 | AH213: 76026 | AI213: 459241 | AJ213: 92240 | AK213: 221049 | AL213: 226118 | AM213: 99413 | AN213: 142943 | AO213: 255680 | AP213: 102022 | AQ213: 49125 | AR213: 35123 | AS213: 51967 | AT213: 1085879 | AU213: 2569665 | AV213: 28060 | AW213: =SUM($K213:AV213) -> 8746386.49
F214: 530 Utility Services | I214: 0 | J214: 28 | K214: 347495 | L214: 582636 | M214: 1376358 | N214: 1343198.5 | O214: 454841 | P214: 471120 | Q214: 327270 | R214: 5484298 | S214: 840464 | T214: 1301002 | U214: 614894 | V214: 462096 | W214: 385049 | X214: 994229 | Y214: 3601701 | Z214: 1103133 | AA214: 761653 | AB214: 802619 | AC214: 2948702 | AD214: 244856 | AE214: 652208 | AF214: 589997 | AG214: 754700 | AH214: 509580 | AI214: 3544528 | AJ214: 569247 | AK214: 680361 | AL214: 1971139 | AM214: 460429 | AN214: 1871295 | AO214: 1331088 | AP214: 392150 | AQ214: 176771 | AR214: 346081 | AS214: 286820 | AT214: 6486168 | AU214: 352476 | AV214: 138984 | AW214: =SUM($K214:AV214) -> 45561636.5
F215: 540 Travel and Meetings | I215: 0 | J215: 29 | K215: 47121 | L215: 96554 | M215: 117659 | N215: 225671.82 | O215: 36912 | P215: 5584 | Q215: 57480 | R215: 2479171 | S215: 83205 | T215: 185783 | U215: 94302 | V215: 61498 | W215: 49659 | X215: 52673 | Y215: 111073 | Z215: 106367 | AA215: 36507 | AB215: 33247.76 | AC215: 217905 | AD215: 25931 | AE215: 42558 | AF215: 108121 | AG215: 69402 | AH215: 60323 | AI215: 154341 | AJ215: 35296 | AK215: 62388 | AL215: 126693 | AM215: 86571 | AN215: 137800 | AO215: 75846 | AP215: 5706 | AQ215: 7390 | AR215: 33647 | AS215: 22955 | AT215: 206616 | AU215: 99032 | AV215: 7305 | AW215: =SUM($K215:AV215) -> 5466293.58
F216: 550 Transportation of Pupils | I216: 0 | J216: 30 | K216: 4688 | L216: 0 | M216: 24231 | N216: 5216194.19 | O216: 3564 | P216: 228263 | Q216: 0 | R216: 900453 | S216: 23567 | T216: 0 | U216: 726 | V216: 756 | W216: -2183 | X216: 11176 | Y216: 2130125 | Z216: 4744 | AA216: 164802.47 | AB216: 199538 | AC216: 1039551 | AD216: 80 | AE216: -2320.01 | AF216: 332 | AG216: 0 | AH216: 11709 | AI216: 7713 | AJ216: 3825 | AK216: 13619 | AL216: 290447 | AM216: 0 | AN216: 1295175 | AO216: 17630 | AP216: 0 | AQ216: 1888 | AR216: 3503 | AS216: 14550 | AT216: 1376745 | AU216: 170 | AV216: 3914 | AW216: =SUM($K216:AV216) -> 12989175.65
F217: 560 Tuition | I217: 0 | J217: 31 | K217: 154720 | L217: 78738 | M217: 42404 | N217: 883.05 | O217: 0 | P217: 0 | Q217: 250 | R217: 9715 | S217: 0 | T217: 1135 | U217: 31591 | V217: 0 | W217: 0 | X217: 87786 | Y217: 41085 | Z217: 42358 | AA217: 5294.46 | AB217: 11155 | AC217: 753462 | AD217: 2207 | AE217: 47358 | AF217: 11582 | AG217: 16987 | AH217: 85329 | AI217: 0 | AJ217: 65741 | AK217: 4020 | AL217: 331020 | AM217: 6542 | AN217: 0 | AO217: 102234 | AP217: 0 | AQ217: 4857 | AR217: 18733 | AS217: 0 | AT217: 0 | AU217: 0 | AV217: 1200 | AW217: =SUM($K217:AV217) -> 1958386.51
F218: 570 Printing and Binding | I218: 0 | J218: 32 | K218: 1860 | L218: 3317 | M218: 0 | N218: 0 | O218: 0 | P218: 0 | Q218: 0 | R218: 31258 | S218: 0 | T218: 0 | U218: 1776 | V218: 3398 | W218: 0 | X218: 12512 | Y218: 142073 | Z218: 0 | AA218: 85109.14 | AB218: 26636 | AC218: 6206 | AD218: 0 | AE218: 0 | AF218: 0 | AG218: 0 | AH218: 0 | AI218: 13657 | AJ218: 2388 | AK218: 0 | AL218: 23680 | AM218: 0 | AN218: 1847 | AO218: 0 | AP218: 0 | AQ218: 31091 | AR218: 0 | AS218: 0 | AT218: 4553 | AU218: 17435 | AV218: 720 | AW218: =SUM($K218:AV218) -> 409516.14
... 686 more rows
